Workbook

Sheet 1_共通入力シート【記載必須】
B1: 共通入力シート 【地域少子化対策重点推進事業・結婚・妊娠・共育ての相談機会提供・支援プログラム】
G2: 【自治体における少子化対策の全体像】 ※全ての個別事業共通（地域少子化対策重点推進事業・結婚・妊娠・共育ての相談機会提供・支援プログラムいずれも共通） ※250字以内（2～3段落程度）で要約してください。 ※改行する場合は「Alt + Enter キー」を活用すること。以下に続く全ての欄において同じ。 | H2: 【自治体における全体ＫＰＩ】 ※全ての個別事業共通（地域少子化対策重点推進事業・結婚・妊娠・共育ての相談機会提供・支援プログラムいずれも共通） ※少子化対策に関連した各自治体における計画（総合計画、総合戦略、次世代育成計画等）で設定しているKPIの主な項目を最大５つまで記載 | AB2: 【自治体における参考指標】 ※全ての個別事業共通（地域少子化対策重点推進事業・ 結婚・妊娠・共育ての相談機会提供・支援プログラムいずれも共通） ※項目名は変更しないこと。
B3: 自治体コード ６桁 | C3: 自治体の区分 【リスト選択】 | D3: 都道府県名 【自動表記】 | E3: 市町村名 【自動表記】 | F3: 都道府県名 ＋ 市町村名 【自動表記】 | G3: 自治体における少子化対策の全体像 | H3: 少子化対策全体の重要業績評価指標(KPI)及び定量的成果目標 | AB3: 参考指標
H4: ① | L4: ② | P4: ③ | T4: ④ | X4: ⑤ | AB4: ① | AE4: ② | AH4: ③
H5: 項目名 | I5: 単位 【リスト選択】 | J5: 目標値（時点） | K5: 現状値（時点） | L5: 項目名 | M5: 単位 【リスト選択】 | N5: 目標値（時点） | O5: 現状値（時点） | P5: 項目名 | Q5: 単位 【リスト選択】 | R5: 目標値（時点） | S5: 現状値（時点） | T5: 項目名 | U5: 単位 【リスト選択】 | V5: 目標値（時点） | W5: 現状値（時点） | X5: 項目名 | Y5: 単位 【リスト選択】 | Z5: 目標値（時点） | AA5: 現状値（時点） | AB5: 項目名 | AC5: 単位 | AD5: 直近の 実績値(時点) | AE5: 項目名 | AF5: 単位 | AG5: 直近の 実績値(時点) | AH5: 項目名 | AI5: 単位 | AJ5: 直近の 実績値（時点）
B6: vlookup用列番号 | C6: =COLUMN(C5)-COLUMN($B5)+1 -> 2 | D6: =COLUMN(D5)-COLUMN($B5)+1 -> 3 | E6: =COLUMN(E5)-COLUMN($B5)+1 -> 4 | F6: =COLUMN(F5)-COLUMN($B5)+1 -> 5 | G6: 6 | H6: 7 | I6: 8 | J6: 9 | K6: 10 | L6: 11 | M6: 12 | N6: 13 | O6: 14 | P6: =COLUMN(P5)-COLUMN($B5)+1 -> 15 | Q6: =COLUMN(Q5)-COLUMN($B5)+1 -> 16 | R6: 17 | S6: 18 | T6: 19 | U6: =COLUMN(U5)-COLUMN($B5)+1 -> 20 | V6: 21 | W6: 22 | X6: 23 | Y6: 24 | Z6: 25 | AA6: 26 | AB6: 27 | AC6: 28 | AD6: 29 | AE6: 30 | AF6: 31 | AG6: 32 | AH6: 33 | AI6: 34 | AJ6: 35
B7: 433641 | C7: 市町村 | D7: =IFERROR(VLOOKUP(B7,自治体CD!$A:$B,2,0)&"","") -> 熊本県 | E7: =IFERROR(VLOOKUP(B7,自治体CD!$A:$C,3,0)&"","") -> 玉東町 | F7: =D7&E7 -> 熊本県玉東町 | G7: 結婚・妊娠・共育ての相談機会提供・支援プログラムを実施し、結婚に伴う新生活を経済的に支援するため新生活費用に対して補助を行う。 また、荒尾・玉名地域結婚サポートセンター（有明広域行政事務組合）と連携して婚活事業を実施し、出会いの場の創出を重点的に行う。事業実施後には、対象者にアンケート調査等を行い、次年度以降により効果的な取組を行えるように留意する。 | H7: 荒尾・玉名地域結婚サポートセンター新規会員数 | I7: 人 | J7: 1 （R7年度～R11年度） | K7: 0 （R6年度 1月時点） | L7: 不妊治療補助件数 | M7: 件 | N7: 5 （R7年度～R11年度） | O7: 3 （R6.4～R7.2） | P7: 子育て関連講座参加者数 | Q7: 人 | R7: 488 （R7年度～R11年度） | S7: 487 （R6.4～R7.1） | T7: こども家庭センターにおける相談支援件数 | U7: 件 | V7: 60/年 （R7年度～R11年度） | W7: 47/年 （R6.4～R7.1） | AB7: 合計特殊出生率 | AD7: 2.44 （R6年） | AE7: 婚姻件数 | AF7: 件 | AG7: 22 （R6年） | AH7: 婚姻率 | AJ7: 4.27 （R6年）
B8: 記載例・留意点等 | C8: （留意点） 市町村事業について、政令指定都市以外（中核市、特別区等）は「市町村」を選択 | G8: （記載例） 過年度に引き続き、婚姻件数や婚姻率の低下に歯止めをかけるべく、出会いの場の創出を重点的に行うほか、主に若い世代に対してライフプランセミナーを重点的に行う。その際、EBPMを意識した事業を推進するため、実施後に事業対象者に丁寧にアンケート調査等を行い、次年度以降により効果的な取組を行えるように留意する。 また、結婚・妊娠・共育ての相談機会提供・支援プログラムを実施し、経済的不安から結婚に踏み切れない層に対して補助を行う。 （留意点） ・地域の実情及び課題を踏まえ、自治体が展開する少子化対策の全体像を記載 | H8: （記載例） 公的結婚支援による成婚者数 | I8: 件 | J8: 300（R10年度） | K8: 100（R6年度） or 数値がない場合は「---」 | AD8: 1.5（R6年） or 数値がない場合は「---」

Sheet 2_個別入力シート（支援プログラム以外）
B1: 個別入力シート 【地域少子化対策重点推進事業 （支援プログラム以外）】
I2: ※メニューに係るリスト（プルダウン）については、選択内容によって分岐して表示されるように設定されているため、左から順番に選択すること。 ※これらの欄は、「4_総括表への転記シート」に自動転記 | S2: 【費用内訳】 ※マクロの実行による自動転記ができない場合、これらの欄は、次のいずれかを必ず「値で貼り付け」すること！ ・「積算内訳書」のAR列～BU列 ・「結婚支援センターの運営費内訳」のBC列～CF列 | BK2: ※個別事業の内容の「項目」は150字以内・「内容」は1000字以内で要約すること。 ※１つの個票について最大10項目までとし、４項目以降は非表示された列を再表示すること。 | CF2: 【自治体における全体ＫＰＩ】 ※全ての個別事業共通（地域少子化対策重点推進事業・結婚・妊娠・共育ての相談機会提供・支援プログラムいずれも共通） ※少子化対策に関連した各自治体における計画（総合計画、総合戦略、次世代育成計画等）で設定しているKPI主な項目を最大５つまで記載 | CZ2: 【自治体における参考指標】 ※全ての個別事業共通（地域少子化対策重点推進事業・ 結婚・妊娠・共育ての相談機会提供・支援プログラムいずれも共通） ※項目名は変更しないこと。 | DI2: 【個別事業における個別ＫＰＩ（アウトプット）】 ※主な項目を最大５つまで記載 ※申請手順に定めるKPI設定例を参照の上設定すること。（◎の指標は必ず設定） ※目標値は事業実施年度末時点のものを設定すること。 | EC2: 【個別事業における個別ＫＰＩ（アウトカム）】 ※項目名①～③は、個別事業の性質を踏まえ、事業対象者から当該項目のアンケートをとることができる場合は必須（該当しない場合は「---」と入力） ※項目名④以下に主な項目を最大５つまで記載 ※申請手順に定めるKPI設定例を参照の上、設定すること。（◎の指標は必ず設定） ※目標値は事業実施年度末時点のものを設定すること。 | FI2: 【予算時期調査】 ※市町村事業を実施する場合、実施主体の市町村において予算が措置されていることに加え、都道府県においても対応する予算が措置されていることが必要です。 | FL2: 【共通の要件確認欄（※対象経費部分）】 ※「ＯＫ」となっているか必ず確認 | FY2: 【重点メニュー・結婚支援コンシェルジュ事業の要件確認欄】 ※「ＯＫ」となっているか必ず確認
B3: 個票番号 | C3: 自治体コード ６桁 | D3: 自治体の区分 【リスト選択】 | E3: 都道府県名 【リスト選択】 | F3: 市町村名 | G3: 都道府県名 ＋ 市町村名 【自動表記】 | H3: 本事業の担当部局名 | I3: 国予算区分 【リスト選択】 | J3: 事業メニュー 【リスト選択】 | K3: 区分 【リスト選択】 | L3: 関連事業メニュー 【リスト選択】 | M3: 個別事業名 | N3: 国補助率 【自動表記】 | O3: Ａ 総事業費（円） 【自動表記】 | P3: Ｂ 寄付金その他の収入予定額（円） | Q3: Ｃ 対象経費支出予定額（円） ※国補助率を乗じる前の額 【自動表記】 | R3: A-Ｂ 差引額（円） 【自動表記】 | S3: 諸謝金（円） | V3: 賃金（円） | Y3: 報償費（円） | AB3: 旅費（円） | AE3: 需用費（円） | AH3: 役務費（円） | AK3: 委託料（円） | AN3: 使用料及び賃借料（円） | AQ3: 負担金（円） | AT3: 補助金（円） | AZ3: 合計（円） | BC3: 実施期間（和暦） ※始期については原則として 4/1とすること。 なお、年度途中の変更決定を受けてから開始する場合は「交付決定日」とすること。 ※終期については原則として 3/31とすること。 | BE3: 新規／継続 (一般財源での 実施も含む) 【リスト選択】 | BF3: 事業開始 年度（西暦） ※新規の場合は「2026」と入力 | BG3: 事業開始 年度（和暦） 【自動表記】 | BH3: 経過年度 【自動表記】 | BI3: 自治体における少子化対策の全体像 ※全ての個別事業共通（地域少子化対策重点推進事業・結婚・妊娠・共育ての相談機会提供・支援プログラムいずれも共通） ※250字以内（2～3段落程度）で要約してください。 | BJ3: 自治体における少子化対策の全体像の中での本個別事業の位置付け ※250字以内（2～3段落程度）で要約してください。 | BK3: 個別事業の内容１ | BM3: 個別事業の内容２ | BO3: 個別事業の内容３ | BQ3: 個別事業の内容４ | BS3: 個別事業の内容５ | BU3: 個別事業の内容６ | BW3: 個別事業の内容７ | BY3: 個別事業の内容８ | CA3: 個別事業の内容９ | CC3: 個別事業の内容１０ | CE3: 過年度の本個別事業で浮かび上がった課題の分析及びそれに対する取組（ステップアップを含む。） ※箇条書きで簡潔に記載してください。 | CF3: 少子化対策全体の重要業績評価指標(KPI)及び定量的成果目標 | CZ3: 参考指標 | DI3: 個別事業の重要業績評価指標(KPI)及び定量的成果目標【アウトプット】 | EC3: 個別事業の重要業績評価指標(KPI)及び定量的成果目標【アウトカム】 | FI3: 【全事業記入】 | FL3: 【全事業記入】 | FY3: 【重点メニュー・結婚支援コンシェルジュ事業の場合のみ記入】
S4: 総事業費 | T4: 対象経費 支出予定額 【自動表記】 | U4: 対象外経費 支出予定額 | V4: 総事業費 | W4: 対象経費 支出予定額 【自動表記】 | X4: 対象外経費 支出予定額 | Y4: 総事業費 | Z4: 対象経費 支出予定額 【自動表記】 | AA4: 対象外経費 支出予定額 | AB4: 総事業費 | AC4: 対象経費 支出予定額 【自動表記】 | AD4: 対象外経費 支出予定額 | AE4: 総事業費 | AF4: 対象経費 支出予定額 【自動表記】 | AG4: 対象外経費 支出予定額 | AH4: 総事業費 | AI4: 対象経費 支出予定額 【自動表記】 | AJ4: 対象外経費 支出予定額 | AK4: 総事業費 | AL4: 対象経費 支出予定額 【自動表記】 | AM4: 対象外経費 支出予定額 | AN4: 総事業費 | AO4: 対象経費 支出予定額 【自動表記】 | AP4: 対象外経費 支出予定額 | AQ4: 総事業費 | AR4: 対象経費 支出予定額 【自動表記】 | AS4: 対象外経費 支出予定額 | AT4: 総事業費 | AU4: 対象経費 支出予定額 【自動表記】 | AV4: 対象外経費 支出予定額 | AZ4: 総事業費 【自動表記】 | BA4: 対象経費 支出予定額 【自動表記】 | BB4: 対象外経費 支出予定額 【自動表記】 | CF4: ① | CJ4: ② | CN4: ③ | CR4: ④ | CV4: ⑤ | CZ4: ① | DC4: ② | DF4: ③ | DI4: ① | DM4: ② | DQ4: ③ | DU4: ④ | DY4: ⑤ | EC4: ① | EG4: ② | EK4: ③ | EO4: ④ | ES4: ⑤ | EW4: ⑥ | FA4: ⑦ | FE4: ⑧ | FI4: 実施自治体の 予算議決(予定)日 | FJ4: 年度途中の交付決定を 希望する場合のみ記載 | FL4: 共通要件の 充足チェック結果 | FM4: 共通要件① | FO4: 共通要件② | FQ4: 共通要件③ | FS4: 共通要件④ | FU4: 共通要件⑤ | FW4: 共通要件⑥ | FY4: 重点メニュー等要件の 充足チェック結果 | FZ4: 重点メニュー等要件① | GC4: 重点メニュー要件等② | GF4: 重点メニュー等要件③
BK5: 項目 | BL5: 内容 | BM5: 項目 | BN5: 内容 | BO5: 項目 | BP5: 内容 | BQ5: 項目 | BR5: 内容 | BS5: 項目 | BT5: 内容 | BU5: 項目 | BV5: 内容 | BW5: 項目 | BX5: 内容 | BY5: 項目 | BZ5: 内容 | CA5: 項目 | CB5: 内容 | CC5: 項目 | CD5: 内容 | CF5: 項目名 | CG5: 単位 【リスト選択】 | CH5: 目標値（時点） | CI5: 現状値（時点） | CJ5: 項目名 | CK5: 単位 【リスト選択】 | CL5: 目標値（時点） | CM5: 現状値（時点） | CN5: 項目名 | CO5: 単位 【リスト選択】 | CP5: 目標値（時点） | CQ5: 現状値（時点） | CR5: 項目名 | CS5: 単位 【リスト選択】 | CT5: 目標値（時点） | CU5: 現状値（時点） | CV5: 項目名 | CW5: 単位 【リスト選択】 | CX5: 目標値（時点） | CY5: 現状値（時点） | CZ5: 項目名 | DA5: 単位 | DB5: 直近の 実績値(時点) | DC5: 項目名 | DD5: 単位 | DE5: 直近の 実績値(時点) | DF5: 項目名 | DG5: 単位 | DH5: 直近の 実績値（時点） | DI5: 項目名 | DJ5: 単位 【リスト選択】 | DK5: 目標値（時点） | DL5: 現状値（時点） | DM5: 項目名 | DN5: 単位 【リスト選択】 | DO5: 目標値（時点） | DP5: 現状値（時点） | DQ5: 項目名 | DR5: 単位 【リスト選択】 | DS5: 目標値（時点） | DT5: 現状値（時点） | DU5: 項目名 | DV5: 単位 【リスト選択】 | DW5: 目標値（時点） | DX5: 現状値（時点） | DY5: 項目名 | DZ5: 単位 【リスト選択】 | EA5: 目標値（時点） | EB5: 現状値（時点） | EC5: 項目名 | ED5: 単位 | EE5: 目標値（時点） | EF5: 現状値（時点） | EG5: 項目名 | EH5: 単位 | EI5: 目標値（時点） | EJ5: 現状値（時点） | EK5: 項目名 | EL5: 単位 | EM5: 目標値（時点） | EN5: 現状値（時点） | EO5: 項目名 | EP5: 単位 【リスト選択】 | EQ5: 目標値（時点） | ER5: 現状値（時点） | ES5: 項目名 | ET5: 単位 【リスト選択】 | EU5: 目標値（時点） | EV5: 現状値（時点） | EW5: 項目名 | EX5: 単位 【リスト選択】 | EY5: 目標値（時点） | EZ5: 現状値（時点） | FA5: 項目名 | FB5: 単位 【リスト選択】 | FC5: 目標値（時点） | FD5: 現状値（時点） | FE5: 項目名 | FF5: 単位 【リスト選択】 | FG5: 目標値（時点） | FH5: 現状値（時点） | FJ5: 国からの 交付決定希望日 ※7月～3月中旬(10日～20日)を目安とすること。 | FK5: 備考 | FM5: =リンク先!F146 -> ＜人件費＞ 職員の人件費（次に掲げるものを除く。）が含まれていないか。 ・事業に伴う会計年度任用職員のもの ・結婚支援センターのもの 【リスト選択】 | FO5: =リンク先!G146 -> ＜備品購入＞ 備品購入に要する経費が含まれていないか。 【リスト選択】 | FQ5: =リンク先!H146 -> ＜施設整備＞ 施設整備に要する経費が含まれていないか。 【リスト選択】 | FS5: =リンク先!I146 -> ＜個人給付①＞ 個人への金銭給付などによる個人の負担を直接的に軽減する事業に要する経費（次に掲げるものを除く。）が含まれていないか。 ・結婚支援センター及び結婚支援事業者の登録優待費用 【リスト選択】 | FU5: =リンク先!J146 -> ＜個人給付②＞ 結婚支援センター及び結婚支援事業者の登録優待費用が含まれていないか。 【リスト選択】 | FW5: =リンク先!K146 -> ＜他の国庫負担金等＞ 他の国庫負担金、補助金又は交付金の交付の対象となる事業に要する経費が含まれていないか。 【リスト選択】 | FZ5: 下記の要件を満たす場合は「○」を選択 | GC5: 下記の要件を満たす場合は「○」を選択 | GF5: 下記の要件を満たす場合は「○」を選択
B6: vlookup用列番号 | C6: =COLUMN(C5)-COLUMN($B5)+1 -> 2 | D6: =COLUMN(D5)-COLUMN($B5)+1 -> 3 | E6: =COLUMN(E5)-COLUMN($B5)+1 -> 4 | F6: =COLUMN(F5)-COLUMN($B5)+1 -> 5 | G6: 6 | H6: 7 | I6: 8 | J6: 9 | K6: 10 | L6: 11 | M6: 12 | N6: 13 | O6: 14 | P6: 15 | Q6: 16 | R6: =COLUMN(R5)-COLUMN($B5)+1 -> 17 | S6: 18 | T6: 19 | U6: 20 | V6: =COLUMN(V5)-COLUMN($B5)+1 -> 21 | W6: 22 | X6: 23 | Y6: 24 | Z6: 25 | AA6: 26 | AB6: =COLUMN(AB5)-COLUMN($B5)+1 -> 27 | AC6: 28 | AD6: 29 | AE6: 30 | AF6: 31 | AG6: 32 | AH6: 33 | AI6: 34 | AJ6: 35 | AK6: =COLUMN(AK5)-COLUMN($B5)+1 -> 36 | AL6: 37 | AM6: 38 | AN6: 39 | AO6: 40 | AP6: 41 | AQ6: 42 | AR6: 43 | AS6: 44 | AT6: 45 | AU6: 46 | AV6: 47 | AZ6: =COLUMN(AZ5)-COLUMN($B5)+1 -> 51 | BA6: 52 | BB6: 53 | BC6: =COLUMN(BC5)-COLUMN($B5)+1 -> 54 | BD6: =COLUMN(BD5)-COLUMN($B5)+1 -> 55 | BE6: 56 | BF6: 57 | BG6: 58 | BH6: =COLUMN(BH5)-COLUMN($B5)+1 -> 59 | BI6: 60 | BJ6: 61 | BK6: 62 | BL6: 63 | BM6: =COLUMN(BM5)-COLUMN($B5)+1 -> 64 | BN6: 65 | BO6: =COLUMN(BO5)-COLUMN($B5)+1 -> 66 | BP6: 67 | BQ6: 68 | BR6: 69 | BS6: 70 | BT6: 71 | BU6: =COLUMN(BU5)-COLUMN($B5)+1 -> 72 | BV6: 73 | BW6: 74 | BX6: 75 | BY6: 76 | BZ6: 77 | CA6: 78 | CB6: 79 | CC6: 80 | CD6: 81 | CE6: =COLUMN(CE5)-COLUMN($B5)+1 -> 82 | CF6: 83 | CG6: 84 | CH6: 85 | CI6: 86 | CJ6: 87 | CK6: 88 | CL6: 89 | CM6: 90 | CN6: 91 | CO6: 92 | CP6: 93 | CQ6: 94 | CR6: 95 | CS6: 96 | CT6: 97 | CU6: 98 | CV6: =COLUMN(CV5)-COLUMN($B5)+1 -> 99 | CW6: 100 | CX6: 101 | CY6: 102 | CZ6: 103 | DA6: 104 | DB6: 105 | DC6: 106 | DD6: 107 | DE6: 108 | DF6: 109 | DG6: 110 | DH6: 111 | DI6: 112 | DJ6: 113 | DK6: 114 | DL6: 115 | DM6: 116 | DN6: 117 | DO6: 118 | DP6: 119 | DQ6: =COLUMN(DQ5)-COLUMN($B5)+1 -> 120 | DR6: 121 | DS6: 122 | DT6: 123 | DU6: =COLUMN(DU5)-COLUMN($B5)+1 -> 124 | DV6: 125 | DW6: 126 | DX6: 127 | DY6: =COLUMN(DY5)-COLUMN($B5)+1 -> 128 | DZ6: 129 | EA6: 130 | EB6: 131 | EC6: 132 | ED6: 133 | EE6: 134 | EF6: 135 | EG6: 136 | EH6: 137 | EI6: 138 | EJ6: 139 | EK6: 140 | EL6: 141 | EM6: 142 | EN6: 143 | EO6: 144 | EP6: 145 | EQ6: 146 | ER6: 147 | ES6: =COLUMN(ES5)-COLUMN($B5)+1 -> 148 | ET6: 149 | EU6: 150 | EV6: 151 | EW6: 152 | EX6: 153 | EY6: 154 | EZ6: 155 | FA6: 156 | FB6: 157 | FC6: 158 | FD6: 159 | FE6: 160 | FF6: 161 | FG6: 162 | FH6: 163 | FI6: =COLUMN(FI5)-COLUMN($B5)+1 -> 164 | FJ6: 165 | FK6: 166 | FL6: 167 | FM6: =COLUMN(FM5)-COLUMN($B5)+1 -> 168 | FN6: 169 | FO6: =COLUMN(FO5)-COLUMN($B5)+1 -> 170 | FP6: 171 | FQ6: =COLUMN(FQ5)-COLUMN($B5)+1 -> 172 | FR6: 173 | FS6: 174 | FT6: 175 | FU6: =COLUMN(FU5)-COLUMN($B5)+1 -> 176 | FV6: 177 | FW6: 178 | FX6: =COLUMN(FX5)-COLUMN($B5)+1 -> 179 | FY6: =COLUMN(FY5)-COLUMN($B5)+1 -> 180 | FZ6: 181 | GA6: 182 | GB6: 183 | GC6: 184 | GD6: =COLUMN(GD5)-COLUMN($B5)+1 -> 185 | GE6: 186 | GF6: =COLUMN(GF5)-COLUMN($B5)+1 -> 187 | GG6: 188 | GH6: =COLUMN(GH5)-COLUMN($B5)+1 -> 189 | GK6: 補助率検索用キー | GL6: 補助率判定
B7: ① | C7: ='1_共通入力シート【記載必須】'!$B$7 -> 433641 | D7: ='1_共通入力シート【記載必須】'!$C$7 -> 市町村 | E7: ='1_共通入力シート【記載必須】'!$D$7 -> 熊本県 | F7: ='1_共通入力シート【記載必須】'!$E$7 -> 玉東町 | G7: ='1_共通入力シート【記載必須】'!$F$7 -> 熊本県玉東町 | N7: =IFERROR(VLOOKUP(GK7,リンク先!$F$3:$J$9,1+GL7,0),"") ->  | O7: =AZ7 -> 0 | Q7: =BA7 -> 0 | R7: =O7-P7 -> 0 | T7: =S7-U7 -> 0 | W7: =V7-X7 -> 0 | Z7: =Y7-AA7 -> 0 | AC7: =AB7-AD7 -> 0 | AF7: =AE7-AG7 -> 0 | AI7: =AH7-AJ7 -> 0 | AL7: =AK7-AM7 -> 0 | AO7: =AN7-AP7 -> 0 | AR7: =AQ7-AS7 -> 0 | AU7: =AT7-AV7 -> 0 | AZ7: =S7+V7+Y7+AB7+AE7+AH7+AK7+AN7+AQ7+AT7 -> 0 | BA7: =T7+W7+Z7+AC7+AF7+AI7+AL7+AO7+AR7+AU7 -> 0 | BB7: =U7+X7+AA7+AD7+AG7+AJ7+AM7+AP7+AS7+AV7 -> 0 | BG7: =DATEVALUE(BF7&"年12月31日") ->  | BH7: =2026-BF7 -> 2026 | BI7: ='1_共通入力シート【記載必須】'!$G$7 -> 結婚・妊娠・共育ての相談機会提供・支援プログラムを実施し、結婚に伴う新生活を経済的に支援するため新生活費用に対して補助を行う。 また、荒尾・玉名地域結婚サポートセンター（有明広域行政事務組合）と連携して婚活事業を実施し、出会いの場の創出を重点的に行う。事業実施後には、対象者にアンケート調査等を行い、次年度以降により効果的な取組を行えるように留意する。 | CF7: =IF('1_共通入力シート【記載必須】'!H$7="","",'1_共通入力シート【記載必須】'!H$7) -> 荒尾・玉名地域結婚サポートセンター新規会員数 | CG7: =IF('1_共通入力シート【記載必須】'!I$7="","",'1_共通入力シート【記載必須】'!I$7) -> 人 | CH7: =IF('1_共通入力シート【記載必須】'!J$7="","",'1_共通入力シート【記載必須】'!J$7) -> 1 （R7年度～R11年度） | CI7: =IF('1_共通入力シート【記載必須】'!K$7="","",'1_共通入力シート【記載必須】'!K$7) -> 0 （R6年度 1月時点） | CJ7: =IF('1_共通入力シート【記載必須】'!L$7="","",'1_共通入力シート【記載必須】'!L$7) -> 不妊治療補助件数 | CK7: =IF('1_共通入力シート【記載必須】'!M$7="","",'1_共通入力シート【記載必須】'!M$7) -> 件 | CL7: =IF('1_共通入力シート【記載必須】'!N$7="","",'1_共通入力シート【記載必須】'!N$7) -> 5 （R7年度～R11年度） | CM7: =IF('1_共通入力シート【記載必須】'!O$7="","",'1_共通入力シート【記載必須】'!O$7) -> 3 （R6.4～R7.2） | CN7: =IF('1_共通入力シート【記載必須】'!P$7="","",'1_共通入力シート【記載必須】'!P$7) -> 子育て関連講座参加者数 | CO7: =IF('1_共通入力シート【記載必須】'!Q$7="","",'1_共通入力シート【記載必須】'!Q$7) -> 人 | CP7: =IF('1_共通入力シート【記載必須】'!R$7="","",'1_共通入力シート【記載必須】'!R$7) -> 488 （R7年度～R11年度） | CQ7: =IF('1_共通入力シート【記載必須】'!S$7="","",'1_共通入力シート【記載必須】'!S$7) -> 487 （R6.4～R7.1） | CR7: =IF('1_共通入力シート【記載必須】'!T$7="","",'1_共通入力シート【記載必須】'!T$7) -> こども家庭センターにおける相談支援件数 | CS7: =IF('1_共通入力シート【記載必須】'!U$7="","",'1_共通入力シート【記載必須】'!U$7) -> 件 | CT7: =IF('1_共通入力シート【記載必須】'!V$7="","",'1_共通入力シート【記載必須】'!V$7) -> 60/年 （R7年度～R11年度） | CU7: =IF('1_共通入力シート【記載必須】'!W$7="","",'1_共通入力シート【記載必須】'!W$7) -> 47/年 （R6.4～R7.1） | CV7: =IF('1_共通入力シート【記載必須】'!X$7="","",'1_共通入力シート【記載必須】'!X$7) ->  | CW7: =IF('1_共通入力シート【記載必須】'!Y$7="","",'1_共通入力シート【記載必須】'!Y$7) ->  | CX7: =IF('1_共通入力シート【記載必須】'!Z$7="","",'1_共通入力シート【記載必須】'!Z$7) ->  | CY7: =IF('1_共通入力シート【記載必須】'!AA$7="","",'1_共通入力シート【記載必須】'!AA$7) ->  | CZ7: =IF('1_共通入力シート【記載必須】'!AB$7="","",'1_共通入力シート【記載必須】'!AB$7) -> 合計特殊出生率 | DA7: =IF('1_共通入力シート【記載必須】'!AC$7="","",'1_共通入力シート【記載必須】'!AC$7) ->  | DB7: =IF('1_共通入力シート【記載必須】'!AD$7="","",'1_共通入力シート【記載必須】'!AD$7) -> 2.44 （R6年） | DC7: =IF('1_共通入力シート【記載必須】'!AE$7="","",'1_共通入力シート【記載必須】'!AE$7) -> 婚姻件数 | DD7: =IF('1_共通入力シート【記載必須】'!AF$7="","",'1_共通入力シート【記載必須】'!AF$7) -> 件 | DE7: =IF('1_共通入力シート【記載必須】'!AG$7="","",'1_共通入力シート【記載必須】'!AG$7) -> 22 （R6年） | DF7: =IF('1_共通入力シート【記載必須】'!AH$7="","",'1_共通入力シート【記載必須】'!AH$7) -> 婚姻率 | DG7: =IF('1_共通入力シート【記載必須】'!AI$7="","",'1_共通入力シート【記載必須】'!AI$7) ->  | DH7: =IF('1_共通入力シート【記載必須】'!AJ$7="","",'1_共通入力シート【記載必須】'!AJ$7) -> 4.27 （R6年） | EC7: 交付金事業に対する事業対象者（住民等）の満足度 ※該当事業のみ必須 | ED7: ％ | EG7: 希望どおりの結婚に向けて後押ししてくれたと感じた人の割合 ※該当事業のみ必須 | EH7: ％ | EK7: 結婚、妊娠・出産、子育てに前向きになったと感じた人の割合 ※該当事業のみ必須 | EL7: ％ | FL7: =IF(OR(FN7="NG",FP7="NG",FR7="NG",FT7="NG",FV7="NG",FX7="NG"),"NG","OK") -> NG | FN7: =IF(FM7="含まれていない","OK","NG") -> NG | FP7: =IF(FO7="含まれていない","OK","NG") -> NG | FR7: =IF(FQ7="含まれていない","OK","NG") -> NG | FT7: =IF(FS7="含まれていない","OK","NG") -> NG | FV7: =IF(OR(FU7="含まれている（留意点等の要件ア〜エを満たしている）",FU7="含まれていない"),"OK","NG") -> NG | FX7: =IF(FW7="含まれていない","OK","NG") -> NG | FY7: =IF(OR(GB7="NG",GE7="NG",GH7="NG"),"NG","OK") -> OK | FZ7: =IFERROR(VLOOKUP($L7,リンク先!$E$147:$M$157,2,FALSE)&"","") ->  | GB7: =IF(OR(GA7="○",FZ7=""),"OK","NG") -> OK | GC7: =IFERROR(VLOOKUP($L7,リンク先!$E$147:$M$157,3,FALSE)&"","") ->  | GE7: =IF(OR(GD7="○",GC7=""),"OK","NG") -> OK | GF7: =IFERROR(VLOOKUP($L7,リンク先!$E$147:$M$157,4,FALSE)&"","") ->  | GH7: =IF(OR(GG7="○",GF7=""),"OK","NG") -> OK | GK7: =J7&K7 ->  | GL7: =IF(I7=リンク先!$C$12,4,VLOOKUP('1_共通入力シート【記載必須】'!$B$7,補助率判定!$B:$I,8,0)) -> 2
B8: ② | C8: ='1_共通入力シート【記載必須】'!$B$7 -> 433641 | D8: ='1_共通入力シート【記載必須】'!$C$7 -> 市町村 | E8: ='1_共通入力シート【記載必須】'!$D$7 -> 熊本県 | F8: ='1_共通入力シート【記載必須】'!$E$7 -> 玉東町 | G8: ='1_共通入力シート【記載必須】'!$F$7 -> 熊本県玉東町 | N8: =IFERROR(VLOOKUP(GK8,リンク先!$F$3:$J$9,1+GL8,0),"") ->  | O8: 0 | Q8: 0 | R8: =O8-P8 -> 0 | T8: 0 | W8: 0 | Z8: 0 | AC8: 0 | AF8: 0 | AI8: 0 | AL8: 0 | AO8: 0 | AR8: 0 | AU8: 0 | AZ8: =S8+V8+Y8+AB8+AE8+AH8+AK8+AN8+AQ8+AT8 -> 0 | BA8: =T8+W8+Z8+AC8+AF8+AI8+AL8+AO8+AR8+AU8 -> 0 | BB8: =U8+X8+AA8+AD8+AG8+AJ8+AM8+AP8+AS8+AV8 -> 0 | BG8: =DATEVALUE(BF8&"年12月31日") ->  | BH8: =2026-BF8 -> 2026 | BI8: ='1_共通入力シート【記載必須】'!$G$7 -> 結婚・妊娠・共育ての相談機会提供・支援プログラムを実施し、結婚に伴う新生活を経済的に支援するため新生活費用に対して補助を行う。 また、荒尾・玉名地域結婚サポートセンター（有明広域行政事務組合）と連携して婚活事業を実施し、出会いの場の創出を重点的に行う。事業実施後には、対象者にアンケート調査等を行い、次年度以降により効果的な取組を行えるように留意する。 | CF8: =IF('1_共通入力シート【記載必須】'!H$7="","",'1_共通入力シート【記載必須】'!H$7) -> 荒尾・玉名地域結婚サポートセンター新規会員数 | CG8: =IF('1_共通入力シート【記載必須】'!I$7="","",'1_共通入力シート【記載必須】'!I$7) -> 人 | CH8: =IF('1_共通入力シート【記載必須】'!J$7="","",'1_共通入力シート【記載必須】'!J$7) -> 1 （R7年度～R11年度） | CI8: =IF('1_共通入力シート【記載必須】'!K$7="","",'1_共通入力シート【記載必須】'!K$7) -> 0 （R6年度 1月時点） | CJ8: =IF('1_共通入力シート【記載必須】'!L$7="","",'1_共通入力シート【記載必須】'!L$7) -> 不妊治療補助件数 | CK8: =IF('1_共通入力シート【記載必須】'!M$7="","",'1_共通入力シート【記載必須】'!M$7) -> 件 | CL8: =IF('1_共通入力シート【記載必須】'!N$7="","",'1_共通入力シート【記載必須】'!N$7) -> 5 （R7年度～R11年度） | CM8: =IF('1_共通入力シート【記載必須】'!O$7="","",'1_共通入力シート【記載必須】'!O$7) -> 3 （R6.4～R7.2） | CN8: =IF('1_共通入力シート【記載必須】'!P$7="","",'1_共通入力シート【記載必須】'!P$7) -> 子育て関連講座参加者数 | CO8: =IF('1_共通入力シート【記載必須】'!Q$7="","",'1_共通入力シート【記載必須】'!Q$7) -> 人 | CP8: =IF('1_共通入力シート【記載必須】'!R$7="","",'1_共通入力シート【記載必須】'!R$7) -> 488 （R7年度～R11年度） | CQ8: =IF('1_共通入力シート【記載必須】'!S$7="","",'1_共通入力シート【記載必須】'!S$7) -> 487 （R6.4～R7.1） | CR8: =IF('1_共通入力シート【記載必須】'!T$7="","",'1_共通入力シート【記載必須】'!T$7) -> こども家庭センターにおける相談支援件数 | CS8: =IF('1_共通入力シート【記載必須】'!U$7="","",'1_共通入力シート【記載必須】'!U$7) -> 件 | CT8: =IF('1_共通入力シート【記載必須】'!V$7="","",'1_共通入力シート【記載必須】'!V$7) -> 60/年 （R7年度～R11年度） | CU8: =IF('1_共通入力シート【記載必須】'!W$7="","",'1_共通入力シート【記載必須】'!W$7) -> 47/年 （R6.4～R7.1） | CV8: =IF('1_共通入力シート【記載必須】'!X$7="","",'1_共通入力シート【記載必須】'!X$7) ->  | CW8: =IF('1_共通入力シート【記載必須】'!Y$7="","",'1_共通入力シート【記載必須】'!Y$7) ->  | CX8: =IF('1_共通入力シート【記載必須】'!Z$7="","",'1_共通入力シート【記載必須】'!Z$7) ->  | CY8: =IF('1_共通入力シート【記載必須】'!AA$7="","",'1_共通入力シート【記載必須】'!AA$7) ->  | CZ8: =IF('1_共通入力シート【記載必須】'!AB$7="","",'1_共通入力シート【記載必須】'!AB$7) -> 合計特殊出生率 | DA8: =IF('1_共通入力シート【記載必須】'!AC$7="","",'1_共通入力シート【記載必須】'!AC$7) ->  | DB8: =IF('1_共通入力シート【記載必須】'!AD$7="","",'1_共通入力シート【記載必須】'!AD$7) -> 2.44 （R6年） | DC8: =IF('1_共通入力シート【記載必須】'!AE$7="","",'1_共通入力シート【記載必須】'!AE$7) -> 婚姻件数 | DD8: =IF('1_共通入力シート【記載必須】'!AF$7="","",'1_共通入力シート【記載必須】'!AF$7) -> 件 | DE8: =IF('1_共通入力シート【記載必須】'!AG$7="","",'1_共通入力シート【記載必須】'!AG$7) -> 22 （R6年） | DF8: =IF('1_共通入力シート【記載必須】'!AH$7="","",'1_共通入力シート【記載必須】'!AH$7) -> 婚姻率 | DG8: =IF('1_共通入力シート【記載必須】'!AI$7="","",'1_共通入力シート【記載必須】'!AI$7) ->  | DH8: =IF('1_共通入力シート【記載必須】'!AJ$7="","",'1_共通入力シート【記載必須】'!AJ$7) -> 4.27 （R6年） | EC8: 交付金事業に対する事業対象者（住民等）の満足度 ※該当事業のみ必須 | ED8: ％ | EG8: 希望どおりの結婚に向けて後押ししてくれたと感じた人の割合 ※該当事業のみ必須 | EH8: ％ | EK8: 結婚、妊娠・出産、子育てに前向きになったと感じた人の割合 ※該当事業のみ必須 | EL8: ％ | FL8: =IF(OR(FN8="NG",FP8="NG",FR8="NG",FT8="NG",FV8="NG",FX8="NG"),"NG","OK") -> NG | FN8: =IF(FM8="含まれていない","OK","NG") -> NG | FP8: =IF(FO8="含まれていない","OK","NG") -> NG | FR8: =IF(FQ8="含まれていない","OK","NG") -> NG | FT8: =IF(FS8="含まれていない","OK","NG") -> NG | FV8: =IF(OR(FU8="含まれている（留意点等の要件ア〜エを満たしている）",FU8="含まれていない"),"OK","NG") -> NG | FX8: =IF(FW8="含まれていない","OK","NG") -> NG | FY8: =IF(OR(GB8="NG",GE8="NG",GH8="NG"),"NG","OK") -> OK | FZ8: =IFERROR(VLOOKUP($L8,リンク先!$E$147:$M$157,2,FALSE)&"","") ->  | GB8: =IF(OR(GA8="○",FZ8=""),"OK","NG") -> OK | GC8: =IFERROR(VLOOKUP($L8,リンク先!$E$147:$M$157,3,FALSE)&"","") ->  | GE8: =IF(OR(GD8="○",GC8=""),"OK","NG") -> OK | GF8: =IFERROR(VLOOKUP($L8,リンク先!$E$147:$M$157,4,FALSE)&"","") ->  | GH8: =IF(OR(GG8="○",GF8=""),"OK","NG") -> OK | GL8: =IF(I8=リンク先!$C$12,4,VLOOKUP('1_共通入力シート【記載必須】'!$B$7,補助率判定!$B:$I,8,0)) -> 2
B9: ③ | C9: ='1_共通入力シート【記載必須】'!$B$7 -> 433641 | D9: ='1_共通入力シート【記載必須】'!$C$7 -> 市町村 | E9: ='1_共通入力シート【記載必須】'!$D$7 -> 熊本県 | F9: ='1_共通入力シート【記載必須】'!$E$7 -> 玉東町 | G9: ='1_共通入力シート【記載必須】'!$F$7 -> 熊本県玉東町 | N9: =IFERROR(VLOOKUP(GK9,リンク先!$F$3:$J$9,1+GL9,0),"") ->  | O9: 0 | Q9: 0 | R9: =O9-P9 -> 0 | T9: 0 | W9: 0 | Z9: 0 | AC9: 0 | AF9: 0 | AI9: 0 | AL9: 0 | AO9: 0 | AR9: 0 | AU9: 0 | AZ9: 0 | BA9: 0 | BB9: 0 | BG9: =DATEVALUE(BF9&"年12月31日") ->  | BH9: 2026 | BI9: ='1_共通入力シート【記載必須】'!$G$7 -> 結婚・妊娠・共育ての相談機会提供・支援プログラムを実施し、結婚に伴う新生活を経済的に支援するため新生活費用に対して補助を行う。 また、荒尾・玉名地域結婚サポートセンター（有明広域行政事務組合）と連携して婚活事業を実施し、出会いの場の創出を重点的に行う。事業実施後には、対象者にアンケート調査等を行い、次年度以降により効果的な取組を行えるように留意する。 | CF9: =IF('1_共通入力シート【記載必須】'!H$7="","",'1_共通入力シート【記載必須】'!H$7) -> 荒尾・玉名地域結婚サポートセンター新規会員数 | CG9: =IF('1_共通入力シート【記載必須】'!I$7="","",'1_共通入力シート【記載必須】'!I$7) -> 人 | CH9: =IF('1_共通入力シート【記載必須】'!J$7="","",'1_共通入力シート【記載必須】'!J$7) -> 1 （R7年度～R11年度） | CI9: =IF('1_共通入力シート【記載必須】'!K$7="","",'1_共通入力シート【記載必須】'!K$7) -> 0 （R6年度 1月時点） | CJ9: =IF('1_共通入力シート【記載必須】'!L$7="","",'1_共通入力シート【記載必須】'!L$7) -> 不妊治療補助件数 | CK9: =IF('1_共通入力シート【記載必須】'!M$7="","",'1_共通入力シート【記載必須】'!M$7) -> 件 | CL9: =IF('1_共通入力シート【記載必須】'!N$7="","",'1_共通入力シート【記載必須】'!N$7) -> 5 （R7年度～R11年度） | CM9: =IF('1_共通入力シート【記載必須】'!O$7="","",'1_共通入力シート【記載必須】'!O$7) -> 3 （R6.4～R7.2） | CN9: =IF('1_共通入力シート【記載必須】'!P$7="","",'1_共通入力シート【記載必須】'!P$7) -> 子育て関連講座参加者数 | CO9: =IF('1_共通入力シート【記載必須】'!Q$7="","",'1_共通入力シート【記載必須】'!Q$7) -> 人 | CP9: =IF('1_共通入力シート【記載必須】'!R$7="","",'1_共通入力シート【記載必須】'!R$7) -> 488 （R7年度～R11年度） | CQ9: =IF('1_共通入力シート【記載必須】'!S$7="","",'1_共通入力シート【記載必須】'!S$7) -> 487 （R6.4～R7.1） | CR9: =IF('1_共通入力シート【記載必須】'!T$7="","",'1_共通入力シート【記載必須】'!T$7) -> こども家庭センターにおける相談支援件数 | CS9: =IF('1_共通入力シート【記載必須】'!U$7="","",'1_共通入力シート【記載必須】'!U$7) -> 件 | CT9: =IF('1_共通入力シート【記載必須】'!V$7="","",'1_共通入力シート【記載必須】'!V$7) -> 60/年 （R7年度～R11年度） | CU9: =IF('1_共通入力シート【記載必須】'!W$7="","",'1_共通入力シート【記載必須】'!W$7) -> 47/年 （R6.4～R7.1） | CV9: =IF('1_共通入力シート【記載必須】'!X$7="","",'1_共通入力シート【記載必須】'!X$7) ->  | CW9: =IF('1_共通入力シート【記載必須】'!Y$7="","",'1_共通入力シート【記載必須】'!Y$7) ->  | CX9: =IF('1_共通入力シート【記載必須】'!Z$7="","",'1_共通入力シート【記載必須】'!Z$7) ->  | CY9: =IF('1_共通入力シート【記載必須】'!AA$7="","",'1_共通入力シート【記載必須】'!AA$7) ->  | CZ9: =IF('1_共通入力シート【記載必須】'!AB$7="","",'1_共通入力シート【記載必須】'!AB$7) -> 合計特殊出生率 | DA9: =IF('1_共通入力シート【記載必須】'!AC$7="","",'1_共通入力シート【記載必須】'!AC$7) ->  | DB9: =IF('1_共通入力シート【記載必須】'!AD$7="","",'1_共通入力シート【記載必須】'!AD$7) -> 2.44 （R6年） | DC9: =IF('1_共通入力シート【記載必須】'!AE$7="","",'1_共通入力シート【記載必須】'!AE$7) -> 婚姻件数 | DD9: =IF('1_共通入力シート【記載必須】'!AF$7="","",'1_共通入力シート【記載必須】'!AF$7) -> 件 | DE9: =IF('1_共通入力シート【記載必須】'!AG$7="","",'1_共通入力シート【記載必須】'!AG$7) -> 22 （R6年） | DF9: =IF('1_共通入力シート【記載必須】'!AH$7="","",'1_共通入力シート【記載必須】'!AH$7) -> 婚姻率 | DG9: =IF('1_共通入力シート【記載必須】'!AI$7="","",'1_共通入力シート【記載必須】'!AI$7) ->  | DH9: =IF('1_共通入力シート【記載必須】'!AJ$7="","",'1_共通入力シート【記載必須】'!AJ$7) -> 4.27 （R6年） | EC9: 交付金事業に対する事業対象者（住民等）の満足度 ※該当事業のみ必須 | ED9: ％ | EG9: 希望どおりの結婚に向けて後押ししてくれたと感じた人の割合 ※該当事業のみ必須 | EH9: ％ | EK9: 結婚、妊娠・出産、子育てに前向きになったと感じた人の割合 ※該当事業のみ必須 | EL9: ％ | FL9: =IF(OR(FN9="NG",FP9="NG",FR9="NG",FT9="NG",FV9="NG",FX9="NG"),"NG","OK") -> NG | FN9: =IF(FM9="含まれていない","OK","NG") -> NG | FP9: =IF(FO9="含まれていない","OK","NG") -> NG | FR9: =IF(FQ9="含まれていない","OK","NG") -> NG | FT9: =IF(FS9="含まれていない","OK","NG") -> NG | FV9: =IF(OR(FU9="含まれている（留意点等の要件ア〜エを満たしている）",FU9="含まれていない"),"OK","NG") -> NG | FX9: =IF(FW9="含まれていない","OK","NG") -> NG | FY9: =IF(OR(GB9="NG",GE9="NG",GH9="NG"),"NG","OK") -> OK | FZ9: =IFERROR(VLOOKUP($L9,リンク先!$E$147:$M$157,2,FALSE)&"","") ->  | GB9: =IF(OR(GA9="○",FZ9=""),"OK","NG") -> OK | GC9: =IFERROR(VLOOKUP($L9,リンク先!$E$147:$M$157,3,FALSE)&"","") ->  | GE9: =IF(OR(GD9="○",GC9=""),"OK","NG") -> OK | GF9: =IFERROR(VLOOKUP($L9,リンク先!$E$147:$M$157,4,FALSE)&"","") ->  | GH9: =IF(OR(GG9="○",GF9=""),"OK","NG") -> OK | GL9: =IF(I9=リンク先!$C$12,4,VLOOKUP('1_共通入力シート【記載必須】'!$B$7,補助率判定!$B:$I,8,0)) -> 2
B10: ④ | C10: ='1_共通入力シート【記載必須】'!$B$7 -> 433641 | D10: ='1_共通入力シート【記載必須】'!$C$7 -> 市町村 | E10: ='1_共通入力シート【記載必須】'!$D$7 -> 熊本県 | F10: ='1_共通入力シート【記載必須】'!$E$7 -> 玉東町 | G10: ='1_共通入力シート【記載必須】'!$F$7 -> 熊本県玉東町 | N10: =IFERROR(VLOOKUP(GK10,リンク先!$F$3:$J$9,1+GL10,0),"") ->  | O10: =AZ10 -> 0 | Q10: =BA10 -> 0 | R10: =O10-P10 -> 0 | T10: 0 | W10: 0 | Z10: 0 | AC10: 0 | AF10: 0 | AI10: 0 | AL10: 0 | AO10: 0 | AR10: 0 | AU10: 0 | AZ10: 0 | BA10: 0 | BB10: 0 | BG10: =DATEVALUE(BF10&"年12月31日") ->  | BH10: 2026 | BI10: ='1_共通入力シート【記載必須】'!$G$7 -> 結婚・妊娠・共育ての相談機会提供・支援プログラムを実施し、結婚に伴う新生活を経済的に支援するため新生活費用に対して補助を行う。 また、荒尾・玉名地域結婚サポートセンター（有明広域行政事務組合）と連携して婚活事業を実施し、出会いの場の創出を重点的に行う。事業実施後には、対象者にアンケート調査等を行い、次年度以降により効果的な取組を行えるように留意する。 | CF10: =IF('1_共通入力シート【記載必須】'!H$7="","",'1_共通入力シート【記載必須】'!H$7) -> 荒尾・玉名地域結婚サポートセンター新規会員数 | CG10: =IF('1_共通入力シート【記載必須】'!I$7="","",'1_共通入力シート【記載必須】'!I$7) -> 人 | CH10: =IF('1_共通入力シート【記載必須】'!J$7="","",'1_共通入力シート【記載必須】'!J$7) -> 1 （R7年度～R11年度） | CI10: =IF('1_共通入力シート【記載必須】'!K$7="","",'1_共通入力シート【記載必須】'!K$7) -> 0 （R6年度 1月時点） | CJ10: =IF('1_共通入力シート【記載必須】'!L$7="","",'1_共通入力シート【記載必須】'!L$7) -> 不妊治療補助件数 | CK10: =IF('1_共通入力シート【記載必須】'!M$7="","",'1_共通入力シート【記載必須】'!M$7) -> 件 | CL10: =IF('1_共通入力シート【記載必須】'!N$7="","",'1_共通入力シート【記載必須】'!N$7) -> 5 （R7年度～R11年度） | CM10: =IF('1_共通入力シート【記載必須】'!O$7="","",'1_共通入力シート【記載必須】'!O$7) -> 3 （R6.4～R7.2） | CN10: =IF('1_共通入力シート【記載必須】'!P$7="","",'1_共通入力シート【記載必須】'!P$7) -> 子育て関連講座参加者数 | CO10: =IF('1_共通入力シート【記載必須】'!Q$7="","",'1_共通入力シート【記載必須】'!Q$7) -> 人 | CP10: =IF('1_共通入力シート【記載必須】'!R$7="","",'1_共通入力シート【記載必須】'!R$7) -> 488 （R7年度～R11年度） | CQ10: =IF('1_共通入力シート【記載必須】'!S$7="","",'1_共通入力シート【記載必須】'!S$7) -> 487 （R6.4～R7.1） | CR10: =IF('1_共通入力シート【記載必須】'!T$7="","",'1_共通入力シート【記載必須】'!T$7) -> こども家庭センターにおける相談支援件数 | CS10: =IF('1_共通入力シート【記載必須】'!U$7="","",'1_共通入力シート【記載必須】'!U$7) -> 件 | CT10: =IF('1_共通入力シート【記載必須】'!V$7="","",'1_共通入力シート【記載必須】'!V$7) -> 60/年 （R7年度～R11年度） | CU10: =IF('1_共通入力シート【記載必須】'!W$7="","",'1_共通入力シート【記載必須】'!W$7) -> 47/年 （R6.4～R7.1） | CV10: =IF('1_共通入力シート【記載必須】'!X$7="","",'1_共通入力シート【記載必須】'!X$7) ->  | CW10: =IF('1_共通入力シート【記載必須】'!Y$7="","",'1_共通入力シート【記載必須】'!Y$7) ->  | CX10: =IF('1_共通入力シート【記載必須】'!Z$7="","",'1_共通入力シート【記載必須】'!Z$7) ->  | CY10: =IF('1_共通入力シート【記載必須】'!AA$7="","",'1_共通入力シート【記載必須】'!AA$7) ->  | CZ10: =IF('1_共通入力シート【記載必須】'!AB$7="","",'1_共通入力シート【記載必須】'!AB$7) -> 合計特殊出生率 | DA10: =IF('1_共通入力シート【記載必須】'!AC$7="","",'1_共通入力シート【記載必須】'!AC$7) ->  | DB10: =IF('1_共通入力シート【記載必須】'!AD$7="","",'1_共通入力シート【記載必須】'!AD$7) -> 2.44 （R6年） | DC10: =IF('1_共通入力シート【記載必須】'!AE$7="","",'1_共通入力シート【記載必須】'!AE$7) -> 婚姻件数 | DD10: =IF('1_共通入力シート【記載必須】'!AF$7="","",'1_共通入力シート【記載必須】'!AF$7) -> 件 | DE10: =IF('1_共通入力シート【記載必須】'!AG$7="","",'1_共通入力シート【記載必須】'!AG$7) -> 22 （R6年） | DF10: =IF('1_共通入力シート【記載必須】'!AH$7="","",'1_共通入力シート【記載必須】'!AH$7) -> 婚姻率 | DG10: =IF('1_共通入力シート【記載必須】'!AI$7="","",'1_共通入力シート【記載必須】'!AI$7) ->  | DH10: =IF('1_共通入力シート【記載必須】'!AJ$7="","",'1_共通入力シート【記載必須】'!AJ$7) -> 4.27 （R6年） | EC10: 交付金事業に対する事業対象者（住民等）の満足度 ※該当事業のみ必須 | ED10: ％ | EG10: 希望どおりの結婚に向けて後押ししてくれたと感じた人の割合 ※該当事業のみ必須 | EH10: ％ | EK10: 結婚、妊娠・出産、子育てに前向きになったと感じた人の割合 ※該当事業のみ必須 | EL10: ％ | FL10: NG | FN10: =IF(FM10="含まれていない","OK","NG") -> NG | FP10: NG | FR10: =IF(FQ10="含まれていない","OK","NG") -> NG | FT10: =IF(FS10="含まれていない","OK","NG") -> NG | FV10: NG | FX10: =IF(FW10="含まれていない","OK","NG") -> NG | FY10: OK | FZ10: =IFERROR(VLOOKUP($L10,リンク先!$E$147:$M$157,2,FALSE)&"","") ->  | GB10: =IF(OR(GA10="○",FZ10=""),"OK","NG") -> OK | GC10: =IFERROR(VLOOKUP($L10,リンク先!$E$147:$M$157,3,FALSE)&"","") ->  | GE10: =IF(OR(GD10="○",GC10=""),"OK","NG") -> OK | GF10: =IFERROR(VLOOKUP($L10,リンク先!$E$147:$M$157,4,FALSE)&"","") ->  | GH10: =IF(OR(GG10="○",GF10=""),"OK","NG") -> OK | GL10: =IF(I10=リンク先!$C$12,4,VLOOKUP('1_共通入力シート【記載必須】'!$B$7,補助率判定!$B:$I,8,0)) -> 2
B11: ⑤ | C11: ='1_共通入力シート【記載必須】'!$B$7 -> 433641 | D11: ='1_共通入力シート【記載必須】'!$C$7 -> 市町村 | E11: ='1_共通入力シート【記載必須】'!$D$7 -> 熊本県 | F11: ='1_共通入力シート【記載必須】'!$E$7 -> 玉東町 | G11: ='1_共通入力シート【記載必須】'!$F$7 -> 熊本県玉東町 | N11: =IFERROR(VLOOKUP(GK11,リンク先!$F$3:$J$9,1+GL11,0),"") ->  | O11: 0 | Q11: 0 | R11: 0 | T11: 0 | W11: 0 | Z11: 0 | AC11: 0 | AF11: 0 | AI11: 0 | AL11: 0 | AO11: 0 | AR11: 0 | AU11: 0 | AZ11: 0 | BA11: 0 | BB11: 0 | BH11: 2026 | BI11: ='1_共通入力シート【記載必須】'!$G$7 -> 結婚・妊娠・共育ての相談機会提供・支援プログラムを実施し、結婚に伴う新生活を経済的に支援するため新生活費用に対して補助を行う。 また、荒尾・玉名地域結婚サポートセンター（有明広域行政事務組合）と連携して婚活事業を実施し、出会いの場の創出を重点的に行う。事業実施後には、対象者にアンケート調査等を行い、次年度以降により効果的な取組を行えるように留意する。 | CF11: =IF('1_共通入力シート【記載必須】'!H$7="","",'1_共通入力シート【記載必須】'!H$7) -> 荒尾・玉名地域結婚サポートセンター新規会員数 | CG11: =IF('1_共通入力シート【記載必須】'!I$7="","",'1_共通入力シート【記載必須】'!I$7) -> 人 | CH11: =IF('1_共通入力シート【記載必須】'!J$7="","",'1_共通入力シート【記載必須】'!J$7) -> 1 （R7年度～R11年度） | CI11: =IF('1_共通入力シート【記載必須】'!K$7="","",'1_共通入力シート【記載必須】'!K$7) -> 0 （R6年度 1月時点） | CJ11: =IF('1_共通入力シート【記載必須】'!L$7="","",'1_共通入力シート【記載必須】'!L$7) -> 不妊治療補助件数 | CK11: =IF('1_共通入力シート【記載必須】'!M$7="","",'1_共通入力シート【記載必須】'!M$7) -> 件 | CL11: =IF('1_共通入力シート【記載必須】'!N$7="","",'1_共通入力シート【記載必須】'!N$7) -> 5 （R7年度～R11年度） | CM11: =IF('1_共通入力シート【記載必須】'!O$7="","",'1_共通入力シート【記載必須】'!O$7) -> 3 （R6.4～R7.2） | CN11: =IF('1_共通入力シート【記載必須】'!P$7="","",'1_共通入力シート【記載必須】'!P$7) -> 子育て関連講座参加者数 | CO11: =IF('1_共通入力シート【記載必須】'!Q$7="","",'1_共通入力シート【記載必須】'!Q$7) -> 人 | CP11: =IF('1_共通入力シート【記載必須】'!R$7="","",'1_共通入力シート【記載必須】'!R$7) -> 488 （R7年度～R11年度） | CQ11: =IF('1_共通入力シート【記載必須】'!S$7="","",'1_共通入力シート【記載必須】'!S$7) -> 487 （R6.4～R7.1） | CR11: =IF('1_共通入力シート【記載必須】'!T$7="","",'1_共通入力シート【記載必須】'!T$7) -> こども家庭センターにおける相談支援件数 | CS11: =IF('1_共通入力シート【記載必須】'!U$7="","",'1_共通入力シート【記載必須】'!U$7) -> 件 | CT11: =IF('1_共通入力シート【記載必須】'!V$7="","",'1_共通入力シート【記載必須】'!V$7) -> 60/年 （R7年度～R11年度） | CU11: =IF('1_共通入力シート【記載必須】'!W$7="","",'1_共通入力シート【記載必須】'!W$7) -> 47/年 （R6.4～R7.1） | CV11: =IF('1_共通入力シート【記載必須】'!X$7="","",'1_共通入力シート【記載必須】'!X$7) ->  | CW11: =IF('1_共通入力シート【記載必須】'!Y$7="","",'1_共通入力シート【記載必須】'!Y$7) ->  | CX11: =IF('1_共通入力シート【記載必須】'!Z$7="","",'1_共通入力シート【記載必須】'!Z$7) ->  | CY11: =IF('1_共通入力シート【記載必須】'!AA$7="","",'1_共通入力シート【記載必須】'!AA$7) ->  | CZ11: =IF('1_共通入力シート【記載必須】'!AB$7="","",'1_共通入力シート【記載必須】'!AB$7) -> 合計特殊出生率 | DA11: =IF('1_共通入力シート【記載必須】'!AC$7="","",'1_共通入力シート【記載必須】'!AC$7) ->  | DB11: =IF('1_共通入力シート【記載必須】'!AD$7="","",'1_共通入力シート【記載必須】'!AD$7) -> 2.44 （R6年） | DC11: =IF('1_共通入力シート【記載必須】'!AE$7="","",'1_共通入力シート【記載必須】'!AE$7) -> 婚姻件数 | DD11: =IF('1_共通入力シート【記載必須】'!AF$7="","",'1_共通入力シート【記載必須】'!AF$7) -> 件 | DE11: =IF('1_共通入力シート【記載必須】'!AG$7="","",'1_共通入力シート【記載必須】'!AG$7) -> 22 （R6年） | DF11: =IF('1_共通入力シート【記載必須】'!AH$7="","",'1_共通入力シート【記載必須】'!AH$7) -> 婚姻率 | DG11: =IF('1_共通入力シート【記載必須】'!AI$7="","",'1_共通入力シート【記載必須】'!AI$7) ->  | DH11: =IF('1_共通入力シート【記載必須】'!AJ$7="","",'1_共通入力シート【記載必須】'!AJ$7) -> 4.27 （R6年） | EC11: 交付金事業に対する事業対象者（住民等）の満足度 ※該当事業のみ必須 | ED11: ％ | EG11: 希望どおりの結婚に向けて後押ししてくれたと感じた人の割合 ※該当事業のみ必須 | EH11: ％ | EK11: 結婚、妊娠・出産、子育てに前向きになったと感じた人の割合 ※該当事業のみ必須 | EL11: ％ | FL11: NG | FN11: NG | FP11: NG | FR11: NG | FT11: NG | FV11: NG | FX11: NG | FY11: OK | FZ11: =IFERROR(VLOOKUP($L11,リンク先!$E$147:$M$157,2,FALSE)&"","") ->  | GB11: OK | GC11: =IFERROR(VLOOKUP($L11,リンク先!$E$147:$M$157,3,FALSE)&"","") ->  | GE11: OK | GF11: =IFERROR(VLOOKUP($L11,リンク先!$E$147:$M$157,4,FALSE)&"","") ->  | GH11: OK | GL11: =IF(I11=リンク先!$C$12,4,VLOOKUP('1_共通入力シート【記載必須】'!$B$7,補助率判定!$B:$I,8,0)) -> 2
B12: ⑥ | C12: ='1_共通入力シート【記載必須】'!$B$7 -> 433641 | D12: ='1_共通入力シート【記載必須】'!$C$7 -> 市町村 | E12: ='1_共通入力シート【記載必須】'!$D$7 -> 熊本県 | F12: ='1_共通入力シート【記載必須】'!$E$7 -> 玉東町 | G12: ='1_共通入力シート【記載必須】'!$F$7 -> 熊本県玉東町 | N12: =IFERROR(VLOOKUP(GK12,リンク先!$F$3:$J$9,1+GL12,0),"") ->  | O12: 0 | Q12: 0 | R12: 0 | T12: 0 | W12: 0 | Z12: 0 | AC12: 0 | AF12: 0 | AI12: 0 | AL12: 0 | AO12: 0 | AR12: 0 | AU12: 0 | AZ12: 0 | BA12: 0 | BB12: 0 | BH12: 2026 | BI12: ='1_共通入力シート【記載必須】'!$G$7 -> 結婚・妊娠・共育ての相談機会提供・支援プログラムを実施し、結婚に伴う新生活を経済的に支援するため新生活費用に対して補助を行う。 また、荒尾・玉名地域結婚サポートセンター（有明広域行政事務組合）と連携して婚活事業を実施し、出会いの場の創出を重点的に行う。事業実施後には、対象者にアンケート調査等を行い、次年度以降により効果的な取組を行えるように留意する。 | CF12: =IF('1_共通入力シート【記載必須】'!H$7="","",'1_共通入力シート【記載必須】'!H$7) -> 荒尾・玉名地域結婚サポートセンター新規会員数 | CG12: =IF('1_共通入力シート【記載必須】'!I$7="","",'1_共通入力シート【記載必須】'!I$7) -> 人 | CH12: =IF('1_共通入力シート【記載必須】'!J$7="","",'1_共通入力シート【記載必須】'!J$7) -> 1 （R7年度～R11年度） | CI12: =IF('1_共通入力シート【記載必須】'!K$7="","",'1_共通入力シート【記載必須】'!K$7) -> 0 （R6年度 1月時点） | CJ12: =IF('1_共通入力シート【記載必須】'!L$7="","",'1_共通入力シート【記載必須】'!L$7) -> 不妊治療補助件数 | CK12: =IF('1_共通入力シート【記載必須】'!M$7="","",'1_共通入力シート【記載必須】'!M$7) -> 件 | CL12: =IF('1_共通入力シート【記載必須】'!N$7="","",'1_共通入力シート【記載必須】'!N$7) -> 5 （R7年度～R11年度） | CM12: =IF('1_共通入力シート【記載必須】'!O$7="","",'1_共通入力シート【記載必須】'!O$7) -> 3 （R6.4～R7.2） | CN12: =IF('1_共通入力シート【記載必須】'!P$7="","",'1_共通入力シート【記載必須】'!P$7) -> 子育て関連講座参加者数 | CO12: =IF('1_共通入力シート【記載必須】'!Q$7="","",'1_共通入力シート【記載必須】'!Q$7) -> 人 | CP12: =IF('1_共通入力シート【記載必須】'!R$7="","",'1_共通入力シート【記載必須】'!R$7) -> 488 （R7年度～R11年度） | CQ12: =IF('1_共通入力シート【記載必須】'!S$7="","",'1_共通入力シート【記載必須】'!S$7) -> 487 （R6.4～R7.1） | CR12: =IF('1_共通入力シート【記載必須】'!T$7="","",'1_共通入力シート【記載必須】'!T$7) -> こども家庭センターにおける相談支援件数 | CS12: =IF('1_共通入力シート【記載必須】'!U$7="","",'1_共通入力シート【記載必須】'!U$7) -> 件 | CT12: =IF('1_共通入力シート【記載必須】'!V$7="","",'1_共通入力シート【記載必須】'!V$7) -> 60/年 （R7年度～R11年度） | CU12: =IF('1_共通入力シート【記載必須】'!W$7="","",'1_共通入力シート【記載必須】'!W$7) -> 47/年 （R6.4～R7.1） | CV12: =IF('1_共通入力シート【記載必須】'!X$7="","",'1_共通入力シート【記載必須】'!X$7) ->  | CW12: =IF('1_共通入力シート【記載必須】'!Y$7="","",'1_共通入力シート【記載必須】'!Y$7) ->  | CX12: =IF('1_共通入力シート【記載必須】'!Z$7="","",'1_共通入力シート【記載必須】'!Z$7) ->  | CY12: =IF('1_共通入力シート【記載必須】'!AA$7="","",'1_共通入力シート【記載必須】'!AA$7) ->  | CZ12: =IF('1_共通入力シート【記載必須】'!AB$7="","",'1_共通入力シート【記載必須】'!AB$7) -> 合計特殊出生率 | DA12: =IF('1_共通入力シート【記載必須】'!AC$7="","",'1_共通入力シート【記載必須】'!AC$7) ->  | DB12: =IF('1_共通入力シート【記載必須】'!AD$7="","",'1_共通入力シート【記載必須】'!AD$7) -> 2.44 （R6年） | DC12: =IF('1_共通入力シート【記載必須】'!AE$7="","",'1_共通入力シート【記載必須】'!AE$7) -> 婚姻件数 | DD12: =IF('1_共通入力シート【記載必須】'!AF$7="","",'1_共通入力シート【記載必須】'!AF$7) -> 件 | DE12: =IF('1_共通入力シート【記載必須】'!AG$7="","",'1_共通入力シート【記載必須】'!AG$7) -> 22 （R6年） | DF12: =IF('1_共通入力シート【記載必須】'!AH$7="","",'1_共通入力シート【記載必須】'!AH$7) -> 婚姻率 | DG12: =IF('1_共通入力シート【記載必須】'!AI$7="","",'1_共通入力シート【記載必須】'!AI$7) ->  | DH12: =IF('1_共通入力シート【記載必須】'!AJ$7="","",'1_共通入力シート【記載必須】'!AJ$7) -> 4.27 （R6年） | EC12: 交付金事業に対する事業対象者（住民等）の満足度 ※該当事業のみ必須 | ED12: ％ | EG12: 希望どおりの結婚に向けて後押ししてくれたと感じた人の割合 ※該当事業のみ必須 | EH12: ％ | EK12: 結婚、妊娠・出産、子育てに前向きになったと感じた人の割合 ※該当事業のみ必須 | EL12: ％ | FL12: NG | FN12: NG | FP12: NG | FR12: NG | FT12: NG | FV12: NG | FX12: NG | FY12: OK | FZ12: =IFERROR(VLOOKUP($L12,リンク先!$E$147:$M$157,2,FALSE)&"","") ->  | GB12: OK | GC12: =IFERROR(VLOOKUP($L12,リンク先!$E$147:$M$157,3,FALSE)&"","") ->  | GE12: OK | GF12: =IFERROR(VLOOKUP($L12,リンク先!$E$147:$M$157,4,FALSE)&"","") ->  | GH12: OK | GL12: =IF(I12=リンク先!$C$12,4,VLOOKUP('1_共通入力シート【記載必須】'!$B$7,補助率判定!$B:$I,8,0)) -> 2
B13: ⑦ | C13: ='1_共通入力シート【記載必須】'!$B$7 -> 433641 | D13: ='1_共通入力シート【記載必須】'!$C$7 -> 市町村 | E13: ='1_共通入力シート【記載必須】'!$D$7 -> 熊本県 | F13: ='1_共通入力シート【記載必須】'!$E$7 -> 玉東町 | G13: ='1_共通入力シート【記載必須】'!$F$7 -> 熊本県玉東町 | N13: =IFERROR(VLOOKUP(GK13,リンク先!$F$3:$J$9,1+GL13,0),"") ->  | O13: 0 | Q13: 0 | R13: 0 | T13: 0 | W13: 0 | Z13: 0 | AC13: 0 | AF13: 0 | AI13: 0 | AL13: 0 | AO13: 0 | AR13: 0 | AU13: 0 | AZ13: 0 | BA13: 0 | BB13: 0 | BH13: 2026 | BI13: ='1_共通入力シート【記載必須】'!$G$7 -> 結婚・妊娠・共育ての相談機会提供・支援プログラムを実施し、結婚に伴う新生活を経済的に支援するため新生活費用に対して補助を行う。 また、荒尾・玉名地域結婚サポートセンター（有明広域行政事務組合）と連携して婚活事業を実施し、出会いの場の創出を重点的に行う。事業実施後には、対象者にアンケート調査等を行い、次年度以降により効果的な取組を行えるように留意する。 | CF13: =IF('1_共通入力シート【記載必須】'!H$7="","",'1_共通入力シート【記載必須】'!H$7) -> 荒尾・玉名地域結婚サポートセンター新規会員数 | CG13: =IF('1_共通入力シート【記載必須】'!I$7="","",'1_共通入力シート【記載必須】'!I$7) -> 人 | CH13: =IF('1_共通入力シート【記載必須】'!J$7="","",'1_共通入力シート【記載必須】'!J$7) -> 1 （R7年度～R11年度） | CI13: =IF('1_共通入力シート【記載必須】'!K$7="","",'1_共通入力シート【記載必須】'!K$7) -> 0 （R6年度 1月時点） | CJ13: =IF('1_共通入力シート【記載必須】'!L$7="","",'1_共通入力シート【記載必須】'!L$7) -> 不妊治療補助件数 | CK13: =IF('1_共通入力シート【記載必須】'!M$7="","",'1_共通入力シート【記載必須】'!M$7) -> 件 | CL13: =IF('1_共通入力シート【記載必須】'!N$7="","",'1_共通入力シート【記載必須】'!N$7) -> 5 （R7年度～R11年度） | CM13: =IF('1_共通入力シート【記載必須】'!O$7="","",'1_共通入力シート【記載必須】'!O$7) -> 3 （R6.4～R7.2） | CN13: =IF('1_共通入力シート【記載必須】'!P$7="","",'1_共通入力シート【記載必須】'!P$7) -> 子育て関連講座参加者数 | CO13: =IF('1_共通入力シート【記載必須】'!Q$7="","",'1_共通入力シート【記載必須】'!Q$7) -> 人 | CP13: =IF('1_共通入力シート【記載必須】'!R$7="","",'1_共通入力シート【記載必須】'!R$7) -> 488 （R7年度～R11年度） | CQ13: =IF('1_共通入力シート【記載必須】'!S$7="","",'1_共通入力シート【記載必須】'!S$7) -> 487 （R6.4～R7.1） | CR13: =IF('1_共通入力シート【記載必須】'!T$7="","",'1_共通入力シート【記載必須】'!T$7) -> こども家庭センターにおける相談支援件数 | CS13: =IF('1_共通入力シート【記載必須】'!U$7="","",'1_共通入力シート【記載必須】'!U$7) -> 件 | CT13: =IF('1_共通入力シート【記載必須】'!V$7="","",'1_共通入力シート【記載必須】'!V$7) -> 60/年 （R7年度～R11年度） | CU13: =IF('1_共通入力シート【記載必須】'!W$7="","",'1_共通入力シート【記載必須】'!W$7) -> 47/年 （R6.4～R7.1） | CV13: =IF('1_共通入力シート【記載必須】'!X$7="","",'1_共通入力シート【記載必須】'!X$7) ->  | CW13: =IF('1_共通入力シート【記載必須】'!Y$7="","",'1_共通入力シート【記載必須】'!Y$7) ->  | CX13: =IF('1_共通入力シート【記載必須】'!Z$7="","",'1_共通入力シート【記載必須】'!Z$7) ->  | CY13: =IF('1_共通入力シート【記載必須】'!AA$7="","",'1_共通入力シート【記載必須】'!AA$7) ->  | CZ13: =IF('1_共通入力シート【記載必須】'!AB$7="","",'1_共通入力シート【記載必須】'!AB$7) -> 合計特殊出生率 | DA13: =IF('1_共通入力シート【記載必須】'!AC$7="","",'1_共通入力シート【記載必須】'!AC$7) ->  | DB13: =IF('1_共通入力シート【記載必須】'!AD$7="","",'1_共通入力シート【記載必須】'!AD$7) -> 2.44 （R6年） | DC13: =IF('1_共通入力シート【記載必須】'!AE$7="","",'1_共通入力シート【記載必須】'!AE$7) -> 婚姻件数 | DD13: =IF('1_共通入力シート【記載必須】'!AF$7="","",'1_共通入力シート【記載必須】'!AF$7) -> 件 | DE13: =IF('1_共通入力シート【記載必須】'!AG$7="","",'1_共通入力シート【記載必須】'!AG$7) -> 22 （R6年） | DF13: =IF('1_共通入力シート【記載必須】'!AH$7="","",'1_共通入力シート【記載必須】'!AH$7) -> 婚姻率 | DG13: =IF('1_共通入力シート【記載必須】'!AI$7="","",'1_共通入力シート【記載必須】'!AI$7) ->  | DH13: =IF('1_共通入力シート【記載必須】'!AJ$7="","",'1_共通入力シート【記載必須】'!AJ$7) -> 4.27 （R6年） | EC13: 交付金事業に対する事業対象者（住民等）の満足度 ※該当事業のみ必須 | ED13: ％ | EG13: 希望どおりの結婚に向けて後押ししてくれたと感じた人の割合 ※該当事業のみ必須 | EH13: ％ | EK13: 結婚、妊娠・出産、子育てに前向きになったと感じた人の割合 ※該当事業のみ必須 | EL13: ％ | FL13: NG | FN13: NG | FP13: NG | FR13: NG | FT13: NG | FV13: NG | FX13: NG | FY13: OK | FZ13: =IFERROR(VLOOKUP($L13,リンク先!$E$147:$M$157,2,FALSE)&"","") ->  | GB13: OK | GC13: =IFERROR(VLOOKUP($L13,リンク先!$E$147:$M$157,3,FALSE)&"","") ->  | GE13: OK | GF13: =IFERROR(VLOOKUP($L13,リンク先!$E$147:$M$157,4,FALSE)&"","") ->  | GH13: OK | GL13: =IF(I13=リンク先!$C$12,4,VLOOKUP('1_共通入力シート【記載必須】'!$B$7,補助率判定!$B:$I,8,0)) -> 2
B14: ⑧ | C14: ='1_共通入力シート【記載必須】'!$B$7 -> 433641 | D14: ='1_共通入力シート【記載必須】'!$C$7 -> 市町村 | E14: ='1_共通入力シート【記載必須】'!$D$7 -> 熊本県 | F14: ='1_共通入力シート【記載必須】'!$E$7 -> 玉東町 | G14: ='1_共通入力シート【記載必須】'!$F$7 -> 熊本県玉東町 | N14: =IFERROR(VLOOKUP(GK14,リンク先!$F$3:$J$9,1+GL14,0),"") ->  | O14: =AZ14 -> 0 | Q14: =BA14 -> 0 | R14: =O14-P14 -> 0 | T14: 0 | W14: 0 | Z14: 0 | AC14: 0 | AF14: 0 | AI14: 0 | AL14: 0 | AO14: 0 | AR14: 0 | AU14: 0 | AZ14: 0 | BA14: 0 | BB14: 0 | BG14: =DATEVALUE(BF14&"年12月31日") ->  | BH14: 2026 | BI14: ='1_共通入力シート【記載必須】'!$G$7 -> 結婚・妊娠・共育ての相談機会提供・支援プログラムを実施し、結婚に伴う新生活を経済的に支援するため新生活費用に対して補助を行う。 また、荒尾・玉名地域結婚サポートセンター（有明広域行政事務組合）と連携して婚活事業を実施し、出会いの場の創出を重点的に行う。事業実施後には、対象者にアンケート調査等を行い、次年度以降により効果的な取組を行えるように留意する。 | CF14: =IF('1_共通入力シート【記載必須】'!H$7="","",'1_共通入力シート【記載必須】'!H$7) -> 荒尾・玉名地域結婚サポートセンター新規会員数 | CG14: =IF('1_共通入力シート【記載必須】'!I$7="","",'1_共通入力シート【記載必須】'!I$7) -> 人 | CH14: =IF('1_共通入力シート【記載必須】'!J$7="","",'1_共通入力シート【記載必須】'!J$7) -> 1 （R7年度～R11年度） | CI14: =IF('1_共通入力シート【記載必須】'!K$7="","",'1_共通入力シート【記載必須】'!K$7) -> 0 （R6年度 1月時点） | CJ14: =IF('1_共通入力シート【記載必須】'!L$7="","",'1_共通入力シート【記載必須】'!L$7) -> 不妊治療補助件数 | CK14: =IF('1_共通入力シート【記載必須】'!M$7="","",'1_共通入力シート【記載必須】'!M$7) -> 件 | CL14: =IF('1_共通入力シート【記載必須】'!N$7="","",'1_共通入力シート【記載必須】'!N$7) -> 5 （R7年度～R11年度） | CM14: =IF('1_共通入力シート【記載必須】'!O$7="","",'1_共通入力シート【記載必須】'!O$7) -> 3 （R6.4～R7.2） | CN14: =IF('1_共通入力シート【記載必須】'!P$7="","",'1_共通入力シート【記載必須】'!P$7) -> 子育て関連講座参加者数 | CO14: =IF('1_共通入力シート【記載必須】'!Q$7="","",'1_共通入力シート【記載必須】'!Q$7) -> 人 | CP14: =IF('1_共通入力シート【記載必須】'!R$7="","",'1_共通入力シート【記載必須】'!R$7) -> 488 （R7年度～R11年度） | CQ14: =IF('1_共通入力シート【記載必須】'!S$7="","",'1_共通入力シート【記載必須】'!S$7) -> 487 （R6.4～R7.1） | CR14: =IF('1_共通入力シート【記載必須】'!T$7="","",'1_共通入力シート【記載必須】'!T$7) -> こども家庭センターにおける相談支援件数 | CS14: =IF('1_共通入力シート【記載必須】'!U$7="","",'1_共通入力シート【記載必須】'!U$7) -> 件 | CT14: =IF('1_共通入力シート【記載必須】'!V$7="","",'1_共通入力シート【記載必須】'!V$7) -> 60/年 （R7年度～R11年度） | CU14: =IF('1_共通入力シート【記載必須】'!W$7="","",'1_共通入力シート【記載必須】'!W$7) -> 47/年 （R6.4～R7.1） | CV14: =IF('1_共通入力シート【記載必須】'!X$7="","",'1_共通入力シート【記載必須】'!X$7) ->  | CW14: =IF('1_共通入力シート【記載必須】'!Y$7="","",'1_共通入力シート【記載必須】'!Y$7) ->  | CX14: =IF('1_共通入力シート【記載必須】'!Z$7="","",'1_共通入力シート【記載必須】'!Z$7) ->  | CY14: =IF('1_共通入力シート【記載必須】'!AA$7="","",'1_共通入力シート【記載必須】'!AA$7) ->  | CZ14: =IF('1_共通入力シート【記載必須】'!AB$7="","",'1_共通入力シート【記載必須】'!AB$7) -> 合計特殊出生率 | DA14: =IF('1_共通入力シート【記載必須】'!AC$7="","",'1_共通入力シート【記載必須】'!AC$7) ->  | DB14: =IF('1_共通入力シート【記載必須】'!AD$7="","",'1_共通入力シート【記載必須】'!AD$7) -> 2.44 （R6年） | DC14: =IF('1_共通入力シート【記載必須】'!AE$7="","",'1_共通入力シート【記載必須】'!AE$7) -> 婚姻件数 | DD14: =IF('1_共通入力シート【記載必須】'!AF$7="","",'1_共通入力シート【記載必須】'!AF$7) -> 件 | DE14: =IF('1_共通入力シート【記載必須】'!AG$7="","",'1_共通入力シート【記載必須】'!AG$7) -> 22 （R6年） | DF14: =IF('1_共通入力シート【記載必須】'!AH$7="","",'1_共通入力シート【記載必須】'!AH$7) -> 婚姻率 | DG14: =IF('1_共通入力シート【記載必須】'!AI$7="","",'1_共通入力シート【記載必須】'!AI$7) ->  | DH14: =IF('1_共通入力シート【記載必須】'!AJ$7="","",'1_共通入力シート【記載必須】'!AJ$7) -> 4.27 （R6年） | EC14: 交付金事業に対する事業対象者（住民等）の満足度 ※該当事業のみ必須 | ED14: ％ | EG14: 希望どおりの結婚に向けて後押ししてくれたと感じた人の割合 ※該当事業のみ必須 | EH14: ％ | EK14: 結婚、妊娠・出産、子育てに前向きになったと感じた人の割合 ※該当事業のみ必須 | EL14: ％ | FL14: NG | FN14: =IF(FM14="含まれていない","OK","NG") -> NG | FP14: NG | FR14: =IF(FQ14="含まれていない","OK","NG") -> NG | FT14: =IF(FS14="含まれていない","OK","NG") -> NG | FV14: NG | FX14: =IF(FW14="含まれていない","OK","NG") -> NG | FY14: OK | FZ14: =IFERROR(VLOOKUP($L14,リンク先!$E$147:$M$157,2,FALSE)&"","") ->  | GB14: =IF(OR(GA14="○",FZ14=""),"OK","NG") -> OK | GC14: =IFERROR(VLOOKUP($L14,リンク先!$E$147:$M$157,3,FALSE)&"","") ->  | GE14: =IF(OR(GD14="○",GC14=""),"OK","NG") -> OK | GF14: =IFERROR(VLOOKUP($L14,リンク先!$E$147:$M$157,4,FALSE)&"","") ->  | GH14: =IF(OR(GG14="○",GF14=""),"OK","NG") -> OK | GL14: =IF(I14=リンク先!$C$12,4,VLOOKUP('1_共通入力シート【記載必須】'!$B$7,補助率判定!$B:$I,8,0)) -> 2
B15: ⑨ | C15: ='1_共通入力シート【記載必須】'!$B$7 -> 433641 | D15: ='1_共通入力シート【記載必須】'!$C$7 -> 市町村 | E15: ='1_共通入力シート【記載必須】'!$D$7 -> 熊本県 | F15: ='1_共通入力シート【記載必須】'!$E$7 -> 玉東町 | G15: ='1_共通入力シート【記載必須】'!$F$7 -> 熊本県玉東町 | N15: =IFERROR(VLOOKUP(GK15,リンク先!$F$3:$J$9,1+GL15,0),"") ->  | O15: 0 | Q15: 0 | R15: 0 | T15: 0 | W15: 0 | Z15: 0 | AC15: 0 | AF15: 0 | AI15: 0 | AL15: 0 | AO15: 0 | AR15: 0 | AU15: 0 | AZ15: 0 | BA15: 0 | BB15: 0 | BH15: 2026 | BI15: ='1_共通入力シート【記載必須】'!$G$7 -> 結婚・妊娠・共育ての相談機会提供・支援プログラムを実施し、結婚に伴う新生活を経済的に支援するため新生活費用に対して補助を行う。 また、荒尾・玉名地域結婚サポートセンター（有明広域行政事務組合）と連携して婚活事業を実施し、出会いの場の創出を重点的に行う。事業実施後には、対象者にアンケート調査等を行い、次年度以降により効果的な取組を行えるように留意する。 | CF15: =IF('1_共通入力シート【記載必須】'!H$7="","",'1_共通入力シート【記載必須】'!H$7) -> 荒尾・玉名地域結婚サポートセンター新規会員数 | CG15: =IF('1_共通入力シート【記載必須】'!I$7="","",'1_共通入力シート【記載必須】'!I$7) -> 人 | CH15: =IF('1_共通入力シート【記載必須】'!J$7="","",'1_共通入力シート【記載必須】'!J$7) -> 1 （R7年度～R11年度） | CI15: =IF('1_共通入力シート【記載必須】'!K$7="","",'1_共通入力シート【記載必須】'!K$7) -> 0 （R6年度 1月時点） | CJ15: =IF('1_共通入力シート【記載必須】'!L$7="","",'1_共通入力シート【記載必須】'!L$7) -> 不妊治療補助件数 | CK15: =IF('1_共通入力シート【記載必須】'!M$7="","",'1_共通入力シート【記載必須】'!M$7) -> 件 | CL15: =IF('1_共通入力シート【記載必須】'!N$7="","",'1_共通入力シート【記載必須】'!N$7) -> 5 （R7年度～R11年度） | CM15: =IF('1_共通入力シート【記載必須】'!O$7="","",'1_共通入力シート【記載必須】'!O$7) -> 3 （R6.4～R7.2） | CN15: =IF('1_共通入力シート【記載必須】'!P$7="","",'1_共通入力シート【記載必須】'!P$7) -> 子育て関連講座参加者数 | CO15: =IF('1_共通入力シート【記載必須】'!Q$7="","",'1_共通入力シート【記載必須】'!Q$7) -> 人 | CP15: =IF('1_共通入力シート【記載必須】'!R$7="","",'1_共通入力シート【記載必須】'!R$7) -> 488 （R7年度～R11年度） | CQ15: =IF('1_共通入力シート【記載必須】'!S$7="","",'1_共通入力シート【記載必須】'!S$7) -> 487 （R6.4～R7.1） | CR15: =IF('1_共通入力シート【記載必須】'!T$7="","",'1_共通入力シート【記載必須】'!T$7) -> こども家庭センターにおける相談支援件数 | CS15: =IF('1_共通入力シート【記載必須】'!U$7="","",'1_共通入力シート【記載必須】'!U$7) -> 件 | CT15: =IF('1_共通入力シート【記載必須】'!V$7="","",'1_共通入力シート【記載必須】'!V$7) -> 60/年 （R7年度～R11年度） | CU15: =IF('1_共通入力シート【記載必須】'!W$7="","",'1_共通入力シート【記載必須】'!W$7) -> 47/年 （R6.4～R7.1） | CV15: =IF('1_共通入力シート【記載必須】'!X$7="","",'1_共通入力シート【記載必須】'!X$7) ->  | CW15: =IF('1_共通入力シート【記載必須】'!Y$7="","",'1_共通入力シート【記載必須】'!Y$7) ->  | CX15: =IF('1_共通入力シート【記載必須】'!Z$7="","",'1_共通入力シート【記載必須】'!Z$7) ->  | CY15: =IF('1_共通入力シート【記載必須】'!AA$7="","",'1_共通入力シート【記載必須】'!AA$7) ->  | CZ15: =IF('1_共通入力シート【記載必須】'!AB$7="","",'1_共通入力シート【記載必須】'!AB$7) -> 合計特殊出生率 | DA15: =IF('1_共通入力シート【記載必須】'!AC$7="","",'1_共通入力シート【記載必須】'!AC$7) ->  | DB15: =IF('1_共通入力シート【記載必須】'!AD$7="","",'1_共通入力シート【記載必須】'!AD$7) -> 2.44 （R6年） | DC15: =IF('1_共通入力シート【記載必須】'!AE$7="","",'1_共通入力シート【記載必須】'!AE$7) -> 婚姻件数 | DD15: =IF('1_共通入力シート【記載必須】'!AF$7="","",'1_共通入力シート【記載必須】'!AF$7) -> 件 | DE15: =IF('1_共通入力シート【記載必須】'!AG$7="","",'1_共通入力シート【記載必須】'!AG$7) -> 22 （R6年） | DF15: =IF('1_共通入力シート【記載必須】'!AH$7="","",'1_共通入力シート【記載必須】'!AH$7) -> 婚姻率 | DG15: =IF('1_共通入力シート【記載必須】'!AI$7="","",'1_共通入力シート【記載必須】'!AI$7) ->  | DH15: =IF('1_共通入力シート【記載必須】'!AJ$7="","",'1_共通入力シート【記載必須】'!AJ$7) -> 4.27 （R6年） | EC15: 交付金事業に対する事業対象者（住民等）の満足度 ※該当事業のみ必須 | ED15: ％ | EG15: 希望どおりの結婚に向けて後押ししてくれたと感じた人の割合 ※該当事業のみ必須 | EH15: ％ | EK15: 結婚、妊娠・出産、子育てに前向きになったと感じた人の割合 ※該当事業のみ必須 | EL15: ％ | FL15: NG | FN15: NG | FP15: NG | FR15: NG | FT15: NG | FV15: NG | FX15: NG | FY15: OK | FZ15: =IFERROR(VLOOKUP($L15,リンク先!$E$147:$M$157,2,FALSE)&"","") ->  | GB15: OK | GC15: =IFERROR(VLOOKUP($L15,リンク先!$E$147:$M$157,3,FALSE)&"","") ->  | GE15: OK | GF15: =IFERROR(VLOOKUP($L15,リンク先!$E$147:$M$157,4,FALSE)&"","") ->  | GH15: OK | GL15: =IF(I15=リンク先!$C$12,4,VLOOKUP('1_共通入力シート【記載必須】'!$B$7,補助率判定!$B:$I,8,0)) -> 2
B16: ⑩ | C16: ='1_共通入力シート【記載必須】'!$B$7 -> 433641 | D16: ='1_共通入力シート【記載必須】'!$C$7 -> 市町村 | E16: ='1_共通入力シート【記載必須】'!$D$7 -> 熊本県 | F16: ='1_共通入力シート【記載必須】'!$E$7 -> 玉東町 | G16: ='1_共通入力シート【記載必須】'!$F$7 -> 熊本県玉東町 | N16: =IFERROR(VLOOKUP(GK16,リンク先!$F$3:$J$9,1+GL16,0),"") ->  | O16: 0 | Q16: 0 | R16: 0 | T16: 0 | W16: 0 | Z16: 0 | AC16: 0 | AF16: 0 | AI16: 0 | AL16: 0 | AO16: 0 | AR16: 0 | AU16: 0 | AZ16: 0 | BA16: 0 | BB16: 0 | BH16: 2026 | BI16: ='1_共通入力シート【記載必須】'!$G$7 -> 結婚・妊娠・共育ての相談機会提供・支援プログラムを実施し、結婚に伴う新生活を経済的に支援するため新生活費用に対して補助を行う。 また、荒尾・玉名地域結婚サポートセンター（有明広域行政事務組合）と連携して婚活事業を実施し、出会いの場の創出を重点的に行う。事業実施後には、対象者にアンケート調査等を行い、次年度以降により効果的な取組を行えるように留意する。 | CF16: =IF('1_共通入力シート【記載必須】'!H$7="","",'1_共通入力シート【記載必須】'!H$7) -> 荒尾・玉名地域結婚サポートセンター新規会員数 | CG16: =IF('1_共通入力シート【記載必須】'!I$7="","",'1_共通入力シート【記載必須】'!I$7) -> 人 | CH16: =IF('1_共通入力シート【記載必須】'!J$7="","",'1_共通入力シート【記載必須】'!J$7) -> 1 （R7年度～R11年度） | CI16: =IF('1_共通入力シート【記載必須】'!K$7="","",'1_共通入力シート【記載必須】'!K$7) -> 0 （R6年度 1月時点） | CJ16: =IF('1_共通入力シート【記載必須】'!L$7="","",'1_共通入力シート【記載必須】'!L$7) -> 不妊治療補助件数 | CK16: =IF('1_共通入力シート【記載必須】'!M$7="","",'1_共通入力シート【記載必須】'!M$7) -> 件 | CL16: =IF('1_共通入力シート【記載必須】'!N$7="","",'1_共通入力シート【記載必須】'!N$7) -> 5 （R7年度～R11年度） | CM16: =IF('1_共通入力シート【記載必須】'!O$7="","",'1_共通入力シート【記載必須】'!O$7) -> 3 （R6.4～R7.2） | CN16: =IF('1_共通入力シート【記載必須】'!P$7="","",'1_共通入力シート【記載必須】'!P$7) -> 子育て関連講座参加者数 | CO16: =IF('1_共通入力シート【記載必須】'!Q$7="","",'1_共通入力シート【記載必須】'!Q$7) -> 人 | CP16: =IF('1_共通入力シート【記載必須】'!R$7="","",'1_共通入力シート【記載必須】'!R$7) -> 488 （R7年度～R11年度） | CQ16: =IF('1_共通入力シート【記載必須】'!S$7="","",'1_共通入力シート【記載必須】'!S$7) -> 487 （R6.4～R7.1） | CR16: =IF('1_共通入力シート【記載必須】'!T$7="","",'1_共通入力シート【記載必須】'!T$7) -> こども家庭センターにおける相談支援件数 | CS16: =IF('1_共通入力シート【記載必須】'!U$7="","",'1_共通入力シート【記載必須】'!U$7) -> 件 | CT16: =IF('1_共通入力シート【記載必須】'!V$7="","",'1_共通入力シート【記載必須】'!V$7) -> 60/年 （R7年度～R11年度） | CU16: =IF('1_共通入力シート【記載必須】'!W$7="","",'1_共通入力シート【記載必須】'!W$7) -> 47/年 （R6.4～R7.1） | CV16: =IF('1_共通入力シート【記載必須】'!X$7="","",'1_共通入力シート【記載必須】'!X$7) ->  | CW16: =IF('1_共通入力シート【記載必須】'!Y$7="","",'1_共通入力シート【記載必須】'!Y$7) ->  | CX16: =IF('1_共通入力シート【記載必須】'!Z$7="","",'1_共通入力シート【記載必須】'!Z$7) ->  | CY16: =IF('1_共通入力シート【記載必須】'!AA$7="","",'1_共通入力シート【記載必須】'!AA$7) ->  | CZ16: =IF('1_共通入力シート【記載必須】'!AB$7="","",'1_共通入力シート【記載必須】'!AB$7) -> 合計特殊出生率 | DA16: =IF('1_共通入力シート【記載必須】'!AC$7="","",'1_共通入力シート【記載必須】'!AC$7) ->  | DB16: =IF('1_共通入力シート【記載必須】'!AD$7="","",'1_共通入力シート【記載必須】'!AD$7) -> 2.44 （R6年） | DC16: =IF('1_共通入力シート【記載必須】'!AE$7="","",'1_共通入力シート【記載必須】'!AE$7) -> 婚姻件数 | DD16: =IF('1_共通入力シート【記載必須】'!AF$7="","",'1_共通入力シート【記載必須】'!AF$7) -> 件 | DE16: =IF('1_共通入力シート【記載必須】'!AG$7="","",'1_共通入力シート【記載必須】'!AG$7) -> 22 （R6年） | DF16: =IF('1_共通入力シート【記載必須】'!AH$7="","",'1_共通入力シート【記載必須】'!AH$7) -> 婚姻率 | DG16: =IF('1_共通入力シート【記載必須】'!AI$7="","",'1_共通入力シート【記載必須】'!AI$7) ->  | DH16: =IF('1_共通入力シート【記載必須】'!AJ$7="","",'1_共通入力シート【記載必須】'!AJ$7) -> 4.27 （R6年） | EC16: 交付金事業に対する事業対象者（住民等）の満足度 ※該当事業のみ必須 | ED16: ％ | EG16: 希望どおりの結婚に向けて後押ししてくれたと感じた人の割合 ※該当事業のみ必須 | EH16: ％ | EK16: 結婚、妊娠・出産、子育てに前向きになったと感じた人の割合 ※該当事業のみ必須 | EL16: ％ | FL16: NG | FN16: NG | FP16: NG | FR16: NG | FT16: NG | FV16: NG | FX16: NG | FY16: OK | FZ16: =IFERROR(VLOOKUP($L16,リンク先!$E$147:$M$157,2,FALSE)&"","") ->  | GB16: OK | GC16: =IFERROR(VLOOKUP($L16,リンク先!$E$147:$M$157,3,FALSE)&"","") ->  | GE16: OK | GF16: =IFERROR(VLOOKUP($L16,リンク先!$E$147:$M$157,4,FALSE)&"","") ->  | GH16: OK | GL16: =IF(I16=リンク先!$C$12,4,VLOOKUP('1_共通入力シート【記載必須】'!$B$7,補助率判定!$B:$I,8,0)) -> 2
B17: ⑪ | C17: ='1_共通入力シート【記載必須】'!$B$7 -> 433641 | D17: ='1_共通入力シート【記載必須】'!$C$7 -> 市町村 | E17: ='1_共通入力シート【記載必須】'!$D$7 -> 熊本県 | F17: ='1_共通入力シート【記載必須】'!$E$7 -> 玉東町 | G17: ='1_共通入力シート【記載必須】'!$F$7 -> 熊本県玉東町 | N17: =IFERROR(VLOOKUP(GK17,リンク先!$F$3:$J$9,1+GL17,0),"") ->  | O17: 0 | Q17: 0 | R17: 0 | T17: 0 | W17: 0 | Z17: 0 | AC17: 0 | AF17: 0 | AI17: 0 | AL17: 0 | AO17: 0 | AR17: 0 | AU17: 0 | AZ17: 0 | BA17: 0 | BB17: 0 | BH17: 2026 | BI17: ='1_共通入力シート【記載必須】'!$G$7 -> 結婚・妊娠・共育ての相談機会提供・支援プログラムを実施し、結婚に伴う新生活を経済的に支援するため新生活費用に対して補助を行う。 また、荒尾・玉名地域結婚サポートセンター（有明広域行政事務組合）と連携して婚活事業を実施し、出会いの場の創出を重点的に行う。事業実施後には、対象者にアンケート調査等を行い、次年度以降により効果的な取組を行えるように留意する。 | CF17: =IF('1_共通入力シート【記載必須】'!H$7="","",'1_共通入力シート【記載必須】'!H$7) -> 荒尾・玉名地域結婚サポートセンター新規会員数 | CG17: =IF('1_共通入力シート【記載必須】'!I$7="","",'1_共通入力シート【記載必須】'!I$7) -> 人 | CH17: =IF('1_共通入力シート【記載必須】'!J$7="","",'1_共通入力シート【記載必須】'!J$7) -> 1 （R7年度～R11年度） | CI17: =IF('1_共通入力シート【記載必須】'!K$7="","",'1_共通入力シート【記載必須】'!K$7) -> 0 （R6年度 1月時点） | CJ17: =IF('1_共通入力シート【記載必須】'!L$7="","",'1_共通入力シート【記載必須】'!L$7) -> 不妊治療補助件数 | CK17: =IF('1_共通入力シート【記載必須】'!M$7="","",'1_共通入力シート【記載必須】'!M$7) -> 件 | CL17: =IF('1_共通入力シート【記載必須】'!N$7="","",'1_共通入力シート【記載必須】'!N$7) -> 5 （R7年度～R11年度） | CM17: =IF('1_共通入力シート【記載必須】'!O$7="","",'1_共通入力シート【記載必須】'!O$7) -> 3 （R6.4～R7.2） | CN17: =IF('1_共通入力シート【記載必須】'!P$7="","",'1_共通入力シート【記載必須】'!P$7) -> 子育て関連講座参加者数 | CO17: =IF('1_共通入力シート【記載必須】'!Q$7="","",'1_共通入力シート【記載必須】'!Q$7) -> 人 | CP17: =IF('1_共通入力シート【記載必須】'!R$7="","",'1_共通入力シート【記載必須】'!R$7) -> 488 （R7年度～R11年度） | CQ17: =IF('1_共通入力シート【記載必須】'!S$7="","",'1_共通入力シート【記載必須】'!S$7) -> 487 （R6.4～R7.1） | CR17: =IF('1_共通入力シート【記載必須】'!T$7="","",'1_共通入力シート【記載必須】'!T$7) -> こども家庭センターにおける相談支援件数 | CS17: =IF('1_共通入力シート【記載必須】'!U$7="","",'1_共通入力シート【記載必須】'!U$7) -> 件 | CT17: =IF('1_共通入力シート【記載必須】'!V$7="","",'1_共通入力シート【記載必須】'!V$7) -> 60/年 （R7年度～R11年度） | CU17: =IF('1_共通入力シート【記載必須】'!W$7="","",'1_共通入力シート【記載必須】'!W$7) -> 47/年 （R6.4～R7.1） | CV17: =IF('1_共通入力シート【記載必須】'!X$7="","",'1_共通入力シート【記載必須】'!X$7) ->  | CW17: =IF('1_共通入力シート【記載必須】'!Y$7="","",'1_共通入力シート【記載必須】'!Y$7) ->  | CX17: =IF('1_共通入力シート【記載必須】'!Z$7="","",'1_共通入力シート【記載必須】'!Z$7) ->  | CY17: =IF('1_共通入力シート【記載必須】'!AA$7="","",'1_共通入力シート【記載必須】'!AA$7) ->  | CZ17: =IF('1_共通入力シート【記載必須】'!AB$7="","",'1_共通入力シート【記載必須】'!AB$7) -> 合計特殊出生率 | DA17: =IF('1_共通入力シート【記載必須】'!AC$7="","",'1_共通入力シート【記載必須】'!AC$7) ->  | DB17: =IF('1_共通入力シート【記載必須】'!AD$7="","",'1_共通入力シート【記載必須】'!AD$7) -> 2.44 （R6年） | DC17: =IF('1_共通入力シート【記載必須】'!AE$7="","",'1_共通入力シート【記載必須】'!AE$7) -> 婚姻件数 | DD17: =IF('1_共通入力シート【記載必須】'!AF$7="","",'1_共通入力シート【記載必須】'!AF$7) -> 件 | DE17: =IF('1_共通入力シート【記載必須】'!AG$7="","",'1_共通入力シート【記載必須】'!AG$7) -> 22 （R6年） | DF17: =IF('1_共通入力シート【記載必須】'!AH$7="","",'1_共通入力シート【記載必須】'!AH$7) -> 婚姻率 | DG17: =IF('1_共通入力シート【記載必須】'!AI$7="","",'1_共通入力シート【記載必須】'!AI$7) ->  | DH17: =IF('1_共通入力シート【記載必須】'!AJ$7="","",'1_共通入力シート【記載必須】'!AJ$7) -> 4.27 （R6年） | EC17: 交付金事業に対する事業対象者（住民等）の満足度 ※該当事業のみ必須 | ED17: ％ | EG17: 希望どおりの結婚に向けて後押ししてくれたと感じた人の割合 ※該当事業のみ必須 | EH17: ％ | EK17: 結婚、妊娠・出産、子育てに前向きになったと感じた人の割合 ※該当事業のみ必須 | EL17: ％ | FL17: NG | FN17: NG | FP17: NG | FR17: NG | FT17: NG | FV17: NG | FX17: NG | FY17: OK | FZ17: =IFERROR(VLOOKUP($L17,リンク先!$E$147:$M$157,2,FALSE)&"","") ->  | GB17: OK | GC17: =IFERROR(VLOOKUP($L17,リンク先!$E$147:$M$157,3,FALSE)&"","") ->  | GE17: OK | GF17: =IFERROR(VLOOKUP($L17,リンク先!$E$147:$M$157,4,FALSE)&"","") ->  | GH17: OK | GL17: =IF(I17=リンク先!$C$12,4,VLOOKUP('1_共通入力シート【記載必須】'!$B$7,補助率判定!$B:$I,8,0)) -> 2
B18: ⑫ | C18: ='1_共通入力シート【記載必須】'!$B$7 -> 433641 | D18: ='1_共通入力シート【記載必須】'!$C$7 -> 市町村 | E18: ='1_共通入力シート【記載必須】'!$D$7 -> 熊本県 | F18: ='1_共通入力シート【記載必須】'!$E$7 -> 玉東町 | G18: ='1_共通入力シート【記載必須】'!$F$7 -> 熊本県玉東町 | N18: =IFERROR(VLOOKUP(GK18,リンク先!$F$3:$J$9,1+GL18,0),"") ->  | O18: 0 | Q18: 0 | R18: 0 | T18: 0 | W18: 0 | Z18: 0 | AC18: 0 | AF18: 0 | AI18: 0 | AL18: 0 | AO18: 0 | AR18: 0 | AU18: 0 | AZ18: 0 | BA18: 0 | BB18: 0 | BH18: 2026 | BI18: ='1_共通入力シート【記載必須】'!$G$7 -> 結婚・妊娠・共育ての相談機会提供・支援プログラムを実施し、結婚に伴う新生活を経済的に支援するため新生活費用に対して補助を行う。 また、荒尾・玉名地域結婚サポートセンター（有明広域行政事務組合）と連携して婚活事業を実施し、出会いの場の創出を重点的に行う。事業実施後には、対象者にアンケート調査等を行い、次年度以降により効果的な取組を行えるように留意する。 | CF18: =IF('1_共通入力シート【記載必須】'!H$7="","",'1_共通入力シート【記載必須】'!H$7) -> 荒尾・玉名地域結婚サポートセンター新規会員数 | CG18: =IF('1_共通入力シート【記載必須】'!I$7="","",'1_共通入力シート【記載必須】'!I$7) -> 人 | CH18: =IF('1_共通入力シート【記載必須】'!J$7="","",'1_共通入力シート【記載必須】'!J$7) -> 1 （R7年度～R11年度） | CI18: =IF('1_共通入力シート【記載必須】'!K$7="","",'1_共通入力シート【記載必須】'!K$7) -> 0 （R6年度 1月時点） | CJ18: =IF('1_共通入力シート【記載必須】'!L$7="","",'1_共通入力シート【記載必須】'!L$7) -> 不妊治療補助件数 | CK18: =IF('1_共通入力シート【記載必須】'!M$7="","",'1_共通入力シート【記載必須】'!M$7) -> 件 | CL18: =IF('1_共通入力シート【記載必須】'!N$7="","",'1_共通入力シート【記載必須】'!N$7) -> 5 （R7年度～R11年度） | CM18: =IF('1_共通入力シート【記載必須】'!O$7="","",'1_共通入力シート【記載必須】'!O$7) -> 3 （R6.4～R7.2） | CN18: =IF('1_共通入力シート【記載必須】'!P$7="","",'1_共通入力シート【記載必須】'!P$7) -> 子育て関連講座参加者数 | CO18: =IF('1_共通入力シート【記載必須】'!Q$7="","",'1_共通入力シート【記載必須】'!Q$7) -> 人 | CP18: =IF('1_共通入力シート【記載必須】'!R$7="","",'1_共通入力シート【記載必須】'!R$7) -> 488 （R7年度～R11年度） | CQ18: =IF('1_共通入力シート【記載必須】'!S$7="","",'1_共通入力シート【記載必須】'!S$7) -> 487 （R6.4～R7.1） | CR18: =IF('1_共通入力シート【記載必須】'!T$7="","",'1_共通入力シート【記載必須】'!T$7) -> こども家庭センターにおける相談支援件数 | CS18: =IF('1_共通入力シート【記載必須】'!U$7="","",'1_共通入力シート【記載必須】'!U$7) -> 件 | CT18: =IF('1_共通入力シート【記載必須】'!V$7="","",'1_共通入力シート【記載必須】'!V$7) -> 60/年 （R7年度～R11年度） | CU18: =IF('1_共通入力シート【記載必須】'!W$7="","",'1_共通入力シート【記載必須】'!W$7) -> 47/年 （R6.4～R7.1） | CV18: =IF('1_共通入力シート【記載必須】'!X$7="","",'1_共通入力シート【記載必須】'!X$7) ->  | CW18: =IF('1_共通入力シート【記載必須】'!Y$7="","",'1_共通入力シート【記載必須】'!Y$7) ->  | CX18: =IF('1_共通入力シート【記載必須】'!Z$7="","",'1_共通入力シート【記載必須】'!Z$7) ->  | CY18: =IF('1_共通入力シート【記載必須】'!AA$7="","",'1_共通入力シート【記載必須】'!AA$7) ->  | CZ18: =IF('1_共通入力シート【記載必須】'!AB$7="","",'1_共通入力シート【記載必須】'!AB$7) -> 合計特殊出生率 | DA18: =IF('1_共通入力シート【記載必須】'!AC$7="","",'1_共通入力シート【記載必須】'!AC$7) ->  | DB18: =IF('1_共通入力シート【記載必須】'!AD$7="","",'1_共通入力シート【記載必須】'!AD$7) -> 2.44 （R6年） | DC18: =IF('1_共通入力シート【記載必須】'!AE$7="","",'1_共通入力シート【記載必須】'!AE$7) -> 婚姻件数 | DD18: =IF('1_共通入力シート【記載必須】'!AF$7="","",'1_共通入力シート【記載必須】'!AF$7) -> 件 | DE18: =IF('1_共通入力シート【記載必須】'!AG$7="","",'1_共通入力シート【記載必須】'!AG$7) -> 22 （R6年） | DF18: =IF('1_共通入力シート【記載必須】'!AH$7="","",'1_共通入力シート【記載必須】'!AH$7) -> 婚姻率 | DG18: =IF('1_共通入力シート【記載必須】'!AI$7="","",'1_共通入力シート【記載必須】'!AI$7) ->  | DH18: =IF('1_共通入力シート【記載必須】'!AJ$7="","",'1_共通入力シート【記載必須】'!AJ$7) -> 4.27 （R6年） | EC18: 交付金事業に対する事業対象者（住民等）の満足度 ※該当事業のみ必須 | ED18: ％ | EG18: 希望どおりの結婚に向けて後押ししてくれたと感じた人の割合 ※該当事業のみ必須 | EH18: ％ | EK18: 結婚、妊娠・出産、子育てに前向きになったと感じた人の割合 ※該当事業のみ必須 | EL18: ％ | FL18: NG | FN18: NG | FP18: NG | FR18: NG | FT18: NG | FV18: NG | FX18: NG | FY18: OK | FZ18: =IFERROR(VLOOKUP($L18,リンク先!$E$147:$M$157,2,FALSE)&"","") ->  | GB18: OK | GC18: =IFERROR(VLOOKUP($L18,リンク先!$E$147:$M$157,3,FALSE)&"","") ->  | GE18: OK | GF18: =IFERROR(VLOOKUP($L18,リンク先!$E$147:$M$157,4,FALSE)&"","") ->  | GH18: OK | GL18: =IF(I18=リンク先!$C$12,4,VLOOKUP('1_共通入力シート【記載必須】'!$B$7,補助率判定!$B:$I,8,0)) -> 2
B19: ⑬ | C19: ='1_共通入力シート【記載必須】'!$B$7 -> 433641 | D19: ='1_共通入力シート【記載必須】'!$C$7 -> 市町村 | E19: ='1_共通入力シート【記載必須】'!$D$7 -> 熊本県 | F19: ='1_共通入力シート【記載必須】'!$E$7 -> 玉東町 | G19: ='1_共通入力シート【記載必須】'!$F$7 -> 熊本県玉東町 | N19: =IFERROR(VLOOKUP(GK19,リンク先!$F$3:$J$9,1+GL19,0),"") ->  | O19: 0 | Q19: 0 | R19: 0 | T19: 0 | W19: 0 | Z19: 0 | AC19: 0 | AF19: 0 | AI19: 0 | AL19: 0 | AO19: 0 | AR19: 0 | AU19: 0 | AZ19: 0 | BA19: 0 | BB19: 0 | BH19: 2026 | BI19: ='1_共通入力シート【記載必須】'!$G$7 -> 結婚・妊娠・共育ての相談機会提供・支援プログラムを実施し、結婚に伴う新生活を経済的に支援するため新生活費用に対して補助を行う。 また、荒尾・玉名地域結婚サポートセンター（有明広域行政事務組合）と連携して婚活事業を実施し、出会いの場の創出を重点的に行う。事業実施後には、対象者にアンケート調査等を行い、次年度以降により効果的な取組を行えるように留意する。 | CF19: =IF('1_共通入力シート【記載必須】'!H$7="","",'1_共通入力シート【記載必須】'!H$7) -> 荒尾・玉名地域結婚サポートセンター新規会員数 | CG19: =IF('1_共通入力シート【記載必須】'!I$7="","",'1_共通入力シート【記載必須】'!I$7) -> 人 | CH19: =IF('1_共通入力シート【記載必須】'!J$7="","",'1_共通入力シート【記載必須】'!J$7) -> 1 （R7年度～R11年度） | CI19: =IF('1_共通入力シート【記載必須】'!K$7="","",'1_共通入力シート【記載必須】'!K$7) -> 0 （R6年度 1月時点） | CJ19: =IF('1_共通入力シート【記載必須】'!L$7="","",'1_共通入力シート【記載必須】'!L$7) -> 不妊治療補助件数 | CK19: =IF('1_共通入力シート【記載必須】'!M$7="","",'1_共通入力シート【記載必須】'!M$7) -> 件 | CL19: =IF('1_共通入力シート【記載必須】'!N$7="","",'1_共通入力シート【記載必須】'!N$7) -> 5 （R7年度～R11年度） | CM19: =IF('1_共通入力シート【記載必須】'!O$7="","",'1_共通入力シート【記載必須】'!O$7) -> 3 （R6.4～R7.2） | CN19: =IF('1_共通入力シート【記載必須】'!P$7="","",'1_共通入力シート【記載必須】'!P$7) -> 子育て関連講座参加者数 | CO19: =IF('1_共通入力シート【記載必須】'!Q$7="","",'1_共通入力シート【記載必須】'!Q$7) -> 人 | CP19: =IF('1_共通入力シート【記載必須】'!R$7="","",'1_共通入力シート【記載必須】'!R$7) -> 488 （R7年度～R11年度） | CQ19: =IF('1_共通入力シート【記載必須】'!S$7="","",'1_共通入力シート【記載必須】'!S$7) -> 487 （R6.4～R7.1） | CR19: =IF('1_共通入力シート【記載必須】'!T$7="","",'1_共通入力シート【記載必須】'!T$7) -> こども家庭センターにおける相談支援件数 | CS19: =IF('1_共通入力シート【記載必須】'!U$7="","",'1_共通入力シート【記載必須】'!U$7) -> 件 | CT19: =IF('1_共通入力シート【記載必須】'!V$7="","",'1_共通入力シート【記載必須】'!V$7) -> 60/年 （R7年度～R11年度） | CU19: =IF('1_共通入力シート【記載必須】'!W$7="","",'1_共通入力シート【記載必須】'!W$7) -> 47/年 （R6.4～R7.1） | CV19: =IF('1_共通入力シート【記載必須】'!X$7="","",'1_共通入力シート【記載必須】'!X$7) ->  | CW19: =IF('1_共通入力シート【記載必須】'!Y$7="","",'1_共通入力シート【記載必須】'!Y$7) ->  | CX19: =IF('1_共通入力シート【記載必須】'!Z$7="","",'1_共通入力シート【記載必須】'!Z$7) ->  | CY19: =IF('1_共通入力シート【記載必須】'!AA$7="","",'1_共通入力シート【記載必須】'!AA$7) ->  | CZ19: =IF('1_共通入力シート【記載必須】'!AB$7="","",'1_共通入力シート【記載必須】'!AB$7) -> 合計特殊出生率 | DA19: =IF('1_共通入力シート【記載必須】'!AC$7="","",'1_共通入力シート【記載必須】'!AC$7) ->  | DB19: =IF('1_共通入力シート【記載必須】'!AD$7="","",'1_共通入力シート【記載必須】'!AD$7) -> 2.44 （R6年） | DC19: =IF('1_共通入力シート【記載必須】'!AE$7="","",'1_共通入力シート【記載必須】'!AE$7) -> 婚姻件数 | DD19: =IF('1_共通入力シート【記載必須】'!AF$7="","",'1_共通入力シート【記載必須】'!AF$7) -> 件 | DE19: =IF('1_共通入力シート【記載必須】'!AG$7="","",'1_共通入力シート【記載必須】'!AG$7) -> 22 （R6年） | DF19: =IF('1_共通入力シート【記載必須】'!AH$7="","",'1_共通入力シート【記載必須】'!AH$7) -> 婚姻率 | DG19: =IF('1_共通入力シート【記載必須】'!AI$7="","",'1_共通入力シート【記載必須】'!AI$7) ->  | DH19: =IF('1_共通入力シート【記載必須】'!AJ$7="","",'1_共通入力シート【記載必須】'!AJ$7) -> 4.27 （R6年） | EC19: 交付金事業に対する事業対象者（住民等）の満足度 ※該当事業のみ必須 | ED19: ％ | EG19: 希望どおりの結婚に向けて後押ししてくれたと感じた人の割合 ※該当事業のみ必須 | EH19: ％ | EK19: 結婚、妊娠・出産、子育てに前向きになったと感じた人の割合 ※該当事業のみ必須 | EL19: ％ | FL19: NG | FN19: NG | FP19: NG | FR19: NG | FT19: NG | FV19: NG | FX19: NG | FY19: OK | FZ19: =IFERROR(VLOOKUP($L19,リンク先!$E$147:$M$157,2,FALSE)&"","") ->  | GB19: OK | GC19: =IFERROR(VLOOKUP($L19,リンク先!$E$147:$M$157,3,FALSE)&"","") ->  | GE19: OK | GF19: =IFERROR(VLOOKUP($L19,リンク先!$E$147:$M$157,4,FALSE)&"","") ->  | GH19: OK | GL19: =IF(I19=リンク先!$C$12,4,VLOOKUP('1_共通入力シート【記載必須】'!$B$7,補助率判定!$B:$I,8,0)) -> 2
B20: ⑭ | C20: ='1_共通入力シート【記載必須】'!$B$7 -> 433641 | D20: ='1_共通入力シート【記載必須】'!$C$7 -> 市町村 | E20: ='1_共通入力シート【記載必須】'!$D$7 -> 熊本県 | F20: ='1_共通入力シート【記載必須】'!$E$7 -> 玉東町 | G20: ='1_共通入力シート【記載必須】'!$F$7 -> 熊本県玉東町 | N20: =IFERROR(VLOOKUP(GK20,リンク先!$F$3:$J$9,1+GL20,0),"") ->  | O20: 0 | Q20: 0 | R20: 0 | T20: 0 | W20: 0 | Z20: 0 | AC20: 0 | AF20: 0 | AI20: 0 | AL20: 0 | AO20: 0 | AR20: 0 | AU20: 0 | AZ20: 0 | BA20: 0 | BB20: 0 | BH20: 2026 | BI20: ='1_共通入力シート【記載必須】'!$G$7 -> 結婚・妊娠・共育ての相談機会提供・支援プログラムを実施し、結婚に伴う新生活を経済的に支援するため新生活費用に対して補助を行う。 また、荒尾・玉名地域結婚サポートセンター（有明広域行政事務組合）と連携して婚活事業を実施し、出会いの場の創出を重点的に行う。事業実施後には、対象者にアンケート調査等を行い、次年度以降により効果的な取組を行えるように留意する。 | CF20: =IF('1_共通入力シート【記載必須】'!H$7="","",'1_共通入力シート【記載必須】'!H$7) -> 荒尾・玉名地域結婚サポートセンター新規会員数 | CG20: =IF('1_共通入力シート【記載必須】'!I$7="","",'1_共通入力シート【記載必須】'!I$7) -> 人 | CH20: =IF('1_共通入力シート【記載必須】'!J$7="","",'1_共通入力シート【記載必須】'!J$7) -> 1 （R7年度～R11年度） | CI20: =IF('1_共通入力シート【記載必須】'!K$7="","",'1_共通入力シート【記載必須】'!K$7) -> 0 （R6年度 1月時点） | CJ20: =IF('1_共通入力シート【記載必須】'!L$7="","",'1_共通入力シート【記載必須】'!L$7) -> 不妊治療補助件数 | CK20: =IF('1_共通入力シート【記載必須】'!M$7="","",'1_共通入力シート【記載必須】'!M$7) -> 件 | CL20: =IF('1_共通入力シート【記載必須】'!N$7="","",'1_共通入力シート【記載必須】'!N$7) -> 5 （R7年度～R11年度） | CM20: =IF('1_共通入力シート【記載必須】'!O$7="","",'1_共通入力シート【記載必須】'!O$7) -> 3 （R6.4～R7.2） | CN20: =IF('1_共通入力シート【記載必須】'!P$7="","",'1_共通入力シート【記載必須】'!P$7) -> 子育て関連講座参加者数 | CO20: =IF('1_共通入力シート【記載必須】'!Q$7="","",'1_共通入力シート【記載必須】'!Q$7) -> 人 | CP20: =IF('1_共通入力シート【記載必須】'!R$7="","",'1_共通入力シート【記載必須】'!R$7) -> 488 （R7年度～R11年度） | CQ20: =IF('1_共通入力シート【記載必須】'!S$7="","",'1_共通入力シート【記載必須】'!S$7) -> 487 （R6.4～R7.1） | CR20: =IF('1_共通入力シート【記載必須】'!T$7="","",'1_共通入力シート【記載必須】'!T$7) -> こども家庭センターにおける相談支援件数 | CS20: =IF('1_共通入力シート【記載必須】'!U$7="","",'1_共通入力シート【記載必須】'!U$7) -> 件 | CT20: =IF('1_共通入力シート【記載必須】'!V$7="","",'1_共通入力シート【記載必須】'!V$7) -> 60/年 （R7年度～R11年度） | CU20: =IF('1_共通入力シート【記載必須】'!W$7="","",'1_共通入力シート【記載必須】'!W$7) -> 47/年 （R6.4～R7.1） | CV20: =IF('1_共通入力シート【記載必須】'!X$7="","",'1_共通入力シート【記載必須】'!X$7) ->  | CW20: =IF('1_共通入力シート【記載必須】'!Y$7="","",'1_共通入力シート【記載必須】'!Y$7) ->  | CX20: =IF('1_共通入力シート【記載必須】'!Z$7="","",'1_共通入力シート【記載必須】'!Z$7) ->  | CY20: =IF('1_共通入力シート【記載必須】'!AA$7="","",'1_共通入力シート【記載必須】'!AA$7) ->  | CZ20: =IF('1_共通入力シート【記載必須】'!AB$7="","",'1_共通入力シート【記載必須】'!AB$7) -> 合計特殊出生率 | DA20: =IF('1_共通入力シート【記載必須】'!AC$7="","",'1_共通入力シート【記載必須】'!AC$7) ->  | DB20: =IF('1_共通入力シート【記載必須】'!AD$7="","",'1_共通入力シート【記載必須】'!AD$7) -> 2.44 （R6年） | DC20: =IF('1_共通入力シート【記載必須】'!AE$7="","",'1_共通入力シート【記載必須】'!AE$7) -> 婚姻件数 | DD20: =IF('1_共通入力シート【記載必須】'!AF$7="","",'1_共通入力シート【記載必須】'!AF$7) -> 件 | DE20: =IF('1_共通入力シート【記載必須】'!AG$7="","",'1_共通入力シート【記載必須】'!AG$7) -> 22 （R6年） | DF20: =IF('1_共通入力シート【記載必須】'!AH$7="","",'1_共通入力シート【記載必須】'!AH$7) -> 婚姻率 | DG20: =IF('1_共通入力シート【記載必須】'!AI$7="","",'1_共通入力シート【記載必須】'!AI$7) ->  | DH20: =IF('1_共通入力シート【記載必須】'!AJ$7="","",'1_共通入力シート【記載必須】'!AJ$7) -> 4.27 （R6年） | EC20: 交付金事業に対する事業対象者（住民等）の満足度 ※該当事業のみ必須 | ED20: ％ | EG20: 希望どおりの結婚に向けて後押ししてくれたと感じた人の割合 ※該当事業のみ必須 | EH20: ％ | EK20: 結婚、妊娠・出産、子育てに前向きになったと感じた人の割合 ※該当事業のみ必須 | EL20: ％ | FL20: NG | FN20: NG | FP20: NG | FR20: NG | FT20: NG | FV20: NG | FX20: NG | FY20: OK | FZ20: =IFERROR(VLOOKUP($L20,リンク先!$E$147:$M$157,2,FALSE)&"","") ->  | GB20: OK | GC20: =IFERROR(VLOOKUP($L20,リンク先!$E$147:$M$157,3,FALSE)&"","") ->  | GE20: OK | GF20: =IFERROR(VLOOKUP($L20,リンク先!$E$147:$M$157,4,FALSE)&"","") ->  | GH20: OK | GL20: =IF(I20=リンク先!$C$12,4,VLOOKUP('1_共通入力シート【記載必須】'!$B$7,補助率判定!$B:$I,8,0)) -> 2
B21: ⑮ | C21: ='1_共通入力シート【記載必須】'!$B$7 -> 433641 | D21: ='1_共通入力シート【記載必須】'!$C$7 -> 市町村 | E21: ='1_共通入力シート【記載必須】'!$D$7 -> 熊本県 | F21: ='1_共通入力シート【記載必須】'!$E$7 -> 玉東町 | G21: ='1_共通入力シート【記載必須】'!$F$7 -> 熊本県玉東町 | N21: =IFERROR(VLOOKUP(GK21,リンク先!$F$3:$J$9,1+GL21,0),"") ->  | O21: 0 | Q21: 0 | R21: 0 | T21: 0 | W21: 0 | Z21: 0 | AC21: 0 | AF21: 0 | AI21: 0 | AL21: 0 | AO21: 0 | AR21: 0 | AU21: 0 | AZ21: 0 | BA21: 0 | BB21: 0 | BH21: 2026 | BI21: ='1_共通入力シート【記載必須】'!$G$7 -> 結婚・妊娠・共育ての相談機会提供・支援プログラムを実施し、結婚に伴う新生活を経済的に支援するため新生活費用に対して補助を行う。 また、荒尾・玉名地域結婚サポートセンター（有明広域行政事務組合）と連携して婚活事業を実施し、出会いの場の創出を重点的に行う。事業実施後には、対象者にアンケート調査等を行い、次年度以降により効果的な取組を行えるように留意する。 | CF21: =IF('1_共通入力シート【記載必須】'!H$7="","",'1_共通入力シート【記載必須】'!H$7) -> 荒尾・玉名地域結婚サポートセンター新規会員数 | CG21: =IF('1_共通入力シート【記載必須】'!I$7="","",'1_共通入力シート【記載必須】'!I$7) -> 人 | CH21: =IF('1_共通入力シート【記載必須】'!J$7="","",'1_共通入力シート【記載必須】'!J$7) -> 1 （R7年度～R11年度） | CI21: =IF('1_共通入力シート【記載必須】'!K$7="","",'1_共通入力シート【記載必須】'!K$7) -> 0 （R6年度 1月時点） | CJ21: =IF('1_共通入力シート【記載必須】'!L$7="","",'1_共通入力シート【記載必須】'!L$7) -> 不妊治療補助件数 | CK21: =IF('1_共通入力シート【記載必須】'!M$7="","",'1_共通入力シート【記載必須】'!M$7) -> 件 | CL21: =IF('1_共通入力シート【記載必須】'!N$7="","",'1_共通入力シート【記載必須】'!N$7) -> 5 （R7年度～R11年度） | CM21: =IF('1_共通入力シート【記載必須】'!O$7="","",'1_共通入力シート【記載必須】'!O$7) -> 3 （R6.4～R7.2） | CN21: =IF('1_共通入力シート【記載必須】'!P$7="","",'1_共通入力シート【記載必須】'!P$7) -> 子育て関連講座参加者数 | CO21: =IF('1_共通入力シート【記載必須】'!Q$7="","",'1_共通入力シート【記載必須】'!Q$7) -> 人 | CP21: =IF('1_共通入力シート【記載必須】'!R$7="","",'1_共通入力シート【記載必須】'!R$7) -> 488 （R7年度～R11年度） | CQ21: =IF('1_共通入力シート【記載必須】'!S$7="","",'1_共通入力シート【記載必須】'!S$7) -> 487 （R6.4～R7.1） | CR21: =IF('1_共通入力シート【記載必須】'!T$7="","",'1_共通入力シート【記載必須】'!T$7) -> こども家庭センターにおける相談支援件数 | CS21: =IF('1_共通入力シート【記載必須】'!U$7="","",'1_共通入力シート【記載必須】'!U$7) -> 件 | CT21: =IF('1_共通入力シート【記載必須】'!V$7="","",'1_共通入力シート【記載必須】'!V$7) -> 60/年 （R7年度～R11年度） | CU21: =IF('1_共通入力シート【記載必須】'!W$7="","",'1_共通入力シート【記載必須】'!W$7) -> 47/年 （R6.4～R7.1） | CV21: =IF('1_共通入力シート【記載必須】'!X$7="","",'1_共通入力シート【記載必須】'!X$7) ->  | CW21: =IF('1_共通入力シート【記載必須】'!Y$7="","",'1_共通入力シート【記載必須】'!Y$7) ->  | CX21: =IF('1_共通入力シート【記載必須】'!Z$7="","",'1_共通入力シート【記載必須】'!Z$7) ->  | CY21: =IF('1_共通入力シート【記載必須】'!AA$7="","",'1_共通入力シート【記載必須】'!AA$7) ->  | CZ21: =IF('1_共通入力シート【記載必須】'!AB$7="","",'1_共通入力シート【記載必須】'!AB$7) -> 合計特殊出生率 | DA21: =IF('1_共通入力シート【記載必須】'!AC$7="","",'1_共通入力シート【記載必須】'!AC$7) ->  | DB21: =IF('1_共通入力シート【記載必須】'!AD$7="","",'1_共通入力シート【記載必須】'!AD$7) -> 2.44 （R6年） | DC21: =IF('1_共通入力シート【記載必須】'!AE$7="","",'1_共通入力シート【記載必須】'!AE$7) -> 婚姻件数 | DD21: =IF('1_共通入力シート【記載必須】'!AF$7="","",'1_共通入力シート【記載必須】'!AF$7) -> 件 | DE21: =IF('1_共通入力シート【記載必須】'!AG$7="","",'1_共通入力シート【記載必須】'!AG$7) -> 22 （R6年） | DF21: =IF('1_共通入力シート【記載必須】'!AH$7="","",'1_共通入力シート【記載必須】'!AH$7) -> 婚姻率 | DG21: =IF('1_共通入力シート【記載必須】'!AI$7="","",'1_共通入力シート【記載必須】'!AI$7) ->  | DH21: =IF('1_共通入力シート【記載必須】'!AJ$7="","",'1_共通入力シート【記載必須】'!AJ$7) -> 4.27 （R6年） | EC21: 交付金事業に対する事業対象者（住民等）の満足度 ※該当事業のみ必須 | ED21: ％ | EG21: 希望どおりの結婚に向けて後押ししてくれたと感じた人の割合 ※該当事業のみ必須 | EH21: ％ | EK21: 結婚、妊娠・出産、子育てに前向きになったと感じた人の割合 ※該当事業のみ必須 | EL21: ％ | FL21: NG | FN21: NG | FP21: NG | FR21: NG | FT21: NG | FV21: NG | FX21: NG | FY21: OK | FZ21: =IFERROR(VLOOKUP($L21,リンク先!$E$147:$M$157,2,FALSE)&"","") ->  | GB21: OK | GC21: =IFERROR(VLOOKUP($L21,リンク先!$E$147:$M$157,3,FALSE)&"","") ->  | GE21: OK | GF21: =IFERROR(VLOOKUP($L21,リンク先!$E$147:$M$157,4,FALSE)&"","") ->  | GH21: OK | GL21: =IF(I21=リンク先!$C$12,4,VLOOKUP('1_共通入力シート【記載必須】'!$B$7,補助率判定!$B:$I,8,0)) -> 2
B22: ⑯ | C22: ='1_共通入力シート【記載必須】'!$B$7 -> 433641 | D22: ='1_共通入力シート【記載必須】'!$C$7 -> 市町村 | E22: ='1_共通入力シート【記載必須】'!$D$7 -> 熊本県 | F22: ='1_共通入力シート【記載必須】'!$E$7 -> 玉東町 | G22: ='1_共通入力シート【記載必須】'!$F$7 -> 熊本県玉東町 | N22: =IFERROR(VLOOKUP(GK22,リンク先!$F$3:$J$9,1+GL22,0),"") ->  | O22: =AZ22 -> 0 | Q22: =BA22 -> 0 | R22: =O22-P22 -> 0 | T22: 0 | W22: 0 | Z22: 0 | AC22: 0 | AF22: 0 | AI22: 0 | AL22: 0 | AO22: 0 | AR22: 0 | AU22: 0 | AZ22: 0 | BA22: 0 | BB22: 0 | BG22: =DATEVALUE(BF22&"年12月31日") ->  | BH22: 2026 | BI22: ='1_共通入力シート【記載必須】'!$G$7 -> 結婚・妊娠・共育ての相談機会提供・支援プログラムを実施し、結婚に伴う新生活を経済的に支援するため新生活費用に対して補助を行う。 また、荒尾・玉名地域結婚サポートセンター（有明広域行政事務組合）と連携して婚活事業を実施し、出会いの場の創出を重点的に行う。事業実施後には、対象者にアンケート調査等を行い、次年度以降により効果的な取組を行えるように留意する。 | CF22: =IF('1_共通入力シート【記載必須】'!H$7="","",'1_共通入力シート【記載必須】'!H$7) -> 荒尾・玉名地域結婚サポートセンター新規会員数 | CG22: =IF('1_共通入力シート【記載必須】'!I$7="","",'1_共通入力シート【記載必須】'!I$7) -> 人 | CH22: =IF('1_共通入力シート【記載必須】'!J$7="","",'1_共通入力シート【記載必須】'!J$7) -> 1 （R7年度～R11年度） | CI22: =IF('1_共通入力シート【記載必須】'!K$7="","",'1_共通入力シート【記載必須】'!K$7) -> 0 （R6年度 1月時点） | CJ22: =IF('1_共通入力シート【記載必須】'!L$7="","",'1_共通入力シート【記載必須】'!L$7) -> 不妊治療補助件数 | CK22: =IF('1_共通入力シート【記載必須】'!M$7="","",'1_共通入力シート【記載必須】'!M$7) -> 件 | CL22: =IF('1_共通入力シート【記載必須】'!N$7="","",'1_共通入力シート【記載必須】'!N$7) -> 5 （R7年度～R11年度） | CM22: =IF('1_共通入力シート【記載必須】'!O$7="","",'1_共通入力シート【記載必須】'!O$7) -> 3 （R6.4～R7.2） | CN22: =IF('1_共通入力シート【記載必須】'!P$7="","",'1_共通入力シート【記載必須】'!P$7) -> 子育て関連講座参加者数 | CO22: =IF('1_共通入力シート【記載必須】'!Q$7="","",'1_共通入力シート【記載必須】'!Q$7) -> 人 | CP22: =IF('1_共通入力シート【記載必須】'!R$7="","",'1_共通入力シート【記載必須】'!R$7) -> 488 （R7年度～R11年度） | CQ22: =IF('1_共通入力シート【記載必須】'!S$7="","",'1_共通入力シート【記載必須】'!S$7) -> 487 （R6.4～R7.1） | CR22: =IF('1_共通入力シート【記載必須】'!T$7="","",'1_共通入力シート【記載必須】'!T$7) -> こども家庭センターにおける相談支援件数 | CS22: =IF('1_共通入力シート【記載必須】'!U$7="","",'1_共通入力シート【記載必須】'!U$7) -> 件 | CT22: =IF('1_共通入力シート【記載必須】'!V$7="","",'1_共通入力シート【記載必須】'!V$7) -> 60/年 （R7年度～R11年度） | CU22: =IF('1_共通入力シート【記載必須】'!W$7="","",'1_共通入力シート【記載必須】'!W$7) -> 47/年 （R6.4～R7.1） | CV22: =IF('1_共通入力シート【記載必須】'!X$7="","",'1_共通入力シート【記載必須】'!X$7) ->  | CW22: =IF('1_共通入力シート【記載必須】'!Y$7="","",'1_共通入力シート【記載必須】'!Y$7) ->  | CX22: =IF('1_共通入力シート【記載必須】'!Z$7="","",'1_共通入力シート【記載必須】'!Z$7) ->  | CY22: =IF('1_共通入力シート【記載必須】'!AA$7="","",'1_共通入力シート【記載必須】'!AA$7) ->  | CZ22: =IF('1_共通入力シート【記載必須】'!AB$7="","",'1_共通入力シート【記載必須】'!AB$7) -> 合計特殊出生率 | DA22: =IF('1_共通入力シート【記載必須】'!AC$7="","",'1_共通入力シート【記載必須】'!AC$7) ->  | DB22: =IF('1_共通入力シート【記載必須】'!AD$7="","",'1_共通入力シート【記載必須】'!AD$7) -> 2.44 （R6年） | DC22: =IF('1_共通入力シート【記載必須】'!AE$7="","",'1_共通入力シート【記載必須】'!AE$7) -> 婚姻件数 | DD22: =IF('1_共通入力シート【記載必須】'!AF$7="","",'1_共通入力シート【記載必須】'!AF$7) -> 件 | DE22: =IF('1_共通入力シート【記載必須】'!AG$7="","",'1_共通入力シート【記載必須】'!AG$7) -> 22 （R6年） | DF22: =IF('1_共通入力シート【記載必須】'!AH$7="","",'1_共通入力シート【記載必須】'!AH$7) -> 婚姻率 | DG22: =IF('1_共通入力シート【記載必須】'!AI$7="","",'1_共通入力シート【記載必須】'!AI$7) ->  | DH22: =IF('1_共通入力シート【記載必須】'!AJ$7="","",'1_共通入力シート【記載必須】'!AJ$7) -> 4.27 （R6年） | EC22: 交付金事業に対する事業対象者（住民等）の満足度 ※該当事業のみ必須 | ED22: ％ | EG22: 希望どおりの結婚に向けて後押ししてくれたと感じた人の割合 ※該当事業のみ必須 | EH22: ％ | EK22: 結婚、妊娠・出産、子育てに前向きになったと感じた人の割合 ※該当事業のみ必須 | EL22: ％ | FL22: NG | FN22: =IF(FM22="含まれていない","OK","NG") -> NG | FP22: NG | FR22: =IF(FQ22="含まれていない","OK","NG") -> NG | FT22: =IF(FS22="含まれていない","OK","NG") -> NG | FV22: NG | FX22: =IF(FW22="含まれていない","OK","NG") -> NG | FY22: OK | FZ22: =IFERROR(VLOOKUP($L22,リンク先!$E$147:$M$157,2,FALSE)&"","") ->  | GB22: =IF(OR(GA22="○",FZ22=""),"OK","NG") -> OK | GC22: =IFERROR(VLOOKUP($L22,リンク先!$E$147:$M$157,3,FALSE)&"","") ->  | GE22: =IF(OR(GD22="○",GC22=""),"OK","NG") -> OK | GF22: =IFERROR(VLOOKUP($L22,リンク先!$E$147:$M$157,4,FALSE)&"","") ->  | GH22: =IF(OR(GG22="○",GF22=""),"OK","NG") -> OK | GL22: =IF(I22=リンク先!$C$12,4,VLOOKUP('1_共通入力シート【記載必須】'!$B$7,補助率判定!$B:$I,8,0)) -> 2
B23: ⑰ | C23: ='1_共通入力シート【記載必須】'!$B$7 -> 433641 | D23: ='1_共通入力シート【記載必須】'!$C$7 -> 市町村 | E23: ='1_共通入力シート【記載必須】'!$D$7 -> 熊本県 | F23: ='1_共通入力シート【記載必須】'!$E$7 -> 玉東町 | G23: ='1_共通入力シート【記載必須】'!$F$7 -> 熊本県玉東町 | N23: =IFERROR(VLOOKUP(GK23,リンク先!$F$3:$J$9,1+GL23,0),"") ->  | O23: 0 | Q23: 0 | R23: 0 | T23: 0 | W23: 0 | Z23: 0 | AC23: 0 | AF23: 0 | AI23: 0 | AL23: 0 | AO23: 0 | AR23: 0 | AU23: 0 | AZ23: 0 | BA23: 0 | BB23: 0 | BH23: 2026 | BI23: ='1_共通入力シート【記載必須】'!$G$7 -> 結婚・妊娠・共育ての相談機会提供・支援プログラムを実施し、結婚に伴う新生活を経済的に支援するため新生活費用に対して補助を行う。 また、荒尾・玉名地域結婚サポートセンター（有明広域行政事務組合）と連携して婚活事業を実施し、出会いの場の創出を重点的に行う。事業実施後には、対象者にアンケート調査等を行い、次年度以降により効果的な取組を行えるように留意する。 | CF23: =IF('1_共通入力シート【記載必須】'!H$7="","",'1_共通入力シート【記載必須】'!H$7) -> 荒尾・玉名地域結婚サポートセンター新規会員数 | CG23: =IF('1_共通入力シート【記載必須】'!I$7="","",'1_共通入力シート【記載必須】'!I$7) -> 人 | CH23: =IF('1_共通入力シート【記載必須】'!J$7="","",'1_共通入力シート【記載必須】'!J$7) -> 1 （R7年度～R11年度） | CI23: =IF('1_共通入力シート【記載必須】'!K$7="","",'1_共通入力シート【記載必須】'!K$7) -> 0 （R6年度 1月時点） | CJ23: =IF('1_共通入力シート【記載必須】'!L$7="","",'1_共通入力シート【記載必須】'!L$7) -> 不妊治療補助件数 | CK23: =IF('1_共通入力シート【記載必須】'!M$7="","",'1_共通入力シート【記載必須】'!M$7) -> 件 | CL23: =IF('1_共通入力シート【記載必須】'!N$7="","",'1_共通入力シート【記載必須】'!N$7) -> 5 （R7年度～R11年度） | CM23: =IF('1_共通入力シート【記載必須】'!O$7="","",'1_共通入力シート【記載必須】'!O$7) -> 3 （R6.4～R7.2） | CN23: =IF('1_共通入力シート【記載必須】'!P$7="","",'1_共通入力シート【記載必須】'!P$7) -> 子育て関連講座参加者数 | CO23: =IF('1_共通入力シート【記載必須】'!Q$7="","",'1_共通入力シート【記載必須】'!Q$7) -> 人 | CP23: =IF('1_共通入力シート【記載必須】'!R$7="","",'1_共通入力シート【記載必須】'!R$7) -> 488 （R7年度～R11年度） | CQ23: =IF('1_共通入力シート【記載必須】'!S$7="","",'1_共通入力シート【記載必須】'!S$7) -> 487 （R6.4～R7.1） | CR23: =IF('1_共通入力シート【記載必須】'!T$7="","",'1_共通入力シート【記載必須】'!T$7) -> こども家庭センターにおける相談支援件数 | CS23: =IF('1_共通入力シート【記載必須】'!U$7="","",'1_共通入力シート【記載必須】'!U$7) -> 件 | CT23: =IF('1_共通入力シート【記載必須】'!V$7="","",'1_共通入力シート【記載必須】'!V$7) -> 60/年 （R7年度～R11年度） | CU23: =IF('1_共通入力シート【記載必須】'!W$7="","",'1_共通入力シート【記載必須】'!W$7) -> 47/年 （R6.4～R7.1） | CV23: =IF('1_共通入力シート【記載必須】'!X$7="","",'1_共通入力シート【記載必須】'!X$7) ->  | CW23: =IF('1_共通入力シート【記載必須】'!Y$7="","",'1_共通入力シート【記載必須】'!Y$7) ->  | CX23: =IF('1_共通入力シート【記載必須】'!Z$7="","",'1_共通入力シート【記載必須】'!Z$7) ->  | CY23: =IF('1_共通入力シート【記載必須】'!AA$7="","",'1_共通入力シート【記載必須】'!AA$7) ->  | CZ23: =IF('1_共通入力シート【記載必須】'!AB$7="","",'1_共通入力シート【記載必須】'!AB$7) -> 合計特殊出生率 | DA23: =IF('1_共通入力シート【記載必須】'!AC$7="","",'1_共通入力シート【記載必須】'!AC$7) ->  | DB23: =IF('1_共通入力シート【記載必須】'!AD$7="","",'1_共通入力シート【記載必須】'!AD$7) -> 2.44 （R6年） | DC23: =IF('1_共通入力シート【記載必須】'!AE$7="","",'1_共通入力シート【記載必須】'!AE$7) -> 婚姻件数 | DD23: =IF('1_共通入力シート【記載必須】'!AF$7="","",'1_共通入力シート【記載必須】'!AF$7) -> 件 | DE23: =IF('1_共通入力シート【記載必須】'!AG$7="","",'1_共通入力シート【記載必須】'!AG$7) -> 22 （R6年） | DF23: =IF('1_共通入力シート【記載必須】'!AH$7="","",'1_共通入力シート【記載必須】'!AH$7) -> 婚姻率 | DG23: =IF('1_共通入力シート【記載必須】'!AI$7="","",'1_共通入力シート【記載必須】'!AI$7) ->  | DH23: =IF('1_共通入力シート【記載必須】'!AJ$7="","",'1_共通入力シート【記載必須】'!AJ$7) -> 4.27 （R6年） | EC23: 交付金事業に対する事業対象者（住民等）の満足度 ※該当事業のみ必須 | ED23: ％ | EG23: 希望どおりの結婚に向けて後押ししてくれたと感じた人の割合 ※該当事業のみ必須 | EH23: ％ | EK23: 結婚、妊娠・出産、子育てに前向きになったと感じた人の割合 ※該当事業のみ必須 | EL23: ％ | FL23: NG | FN23: NG | FP23: NG | FR23: NG | FT23: NG | FV23: NG | FX23: NG | FY23: OK | FZ23: =IFERROR(VLOOKUP($L23,リンク先!$E$147:$M$157,2,FALSE)&"","") ->  | GB23: OK | GC23: =IFERROR(VLOOKUP($L23,リンク先!$E$147:$M$157,3,FALSE)&"","") ->  | GE23: OK | GF23: =IFERROR(VLOOKUP($L23,リンク先!$E$147:$M$157,4,FALSE)&"","") ->  | GH23: OK | GL23: =IF(I23=リンク先!$C$12,4,VLOOKUP('1_共通入力シート【記載必須】'!$B$7,補助率判定!$B:$I,8,0)) -> 2
B24: ⑱ | C24: ='1_共通入力シート【記載必須】'!$B$7 -> 433641 | D24: ='1_共通入力シート【記載必須】'!$C$7 -> 市町村 | E24: ='1_共通入力シート【記載必須】'!$D$7 -> 熊本県 | F24: ='1_共通入力シート【記載必須】'!$E$7 -> 玉東町 | G24: ='1_共通入力シート【記載必須】'!$F$7 -> 熊本県玉東町 | N24: =IFERROR(VLOOKUP(GK24,リンク先!$F$3:$J$9,1+GL24,0),"") ->  | O24: 0 | Q24: 0 | R24: 0 | T24: 0 | W24: 0 | Z24: 0 | AC24: 0 | AF24: 0 | AI24: 0 | AL24: 0 | AO24: 0 | AR24: 0 | AU24: 0 | AZ24: 0 | BA24: 0 | BB24: 0 | BH24: 2026 | BI24: ='1_共通入力シート【記載必須】'!$G$7 -> 結婚・妊娠・共育ての相談機会提供・支援プログラムを実施し、結婚に伴う新生活を経済的に支援するため新生活費用に対して補助を行う。 また、荒尾・玉名地域結婚サポートセンター（有明広域行政事務組合）と連携して婚活事業を実施し、出会いの場の創出を重点的に行う。事業実施後には、対象者にアンケート調査等を行い、次年度以降により効果的な取組を行えるように留意する。 | CF24: =IF('1_共通入力シート【記載必須】'!H$7="","",'1_共通入力シート【記載必須】'!H$7) -> 荒尾・玉名地域結婚サポートセンター新規会員数 | CG24: =IF('1_共通入力シート【記載必須】'!I$7="","",'1_共通入力シート【記載必須】'!I$7) -> 人 | CH24: =IF('1_共通入力シート【記載必須】'!J$7="","",'1_共通入力シート【記載必須】'!J$7) -> 1 （R7年度～R11年度） | CI24: =IF('1_共通入力シート【記載必須】'!K$7="","",'1_共通入力シート【記載必須】'!K$7) -> 0 （R6年度 1月時点） | CJ24: =IF('1_共通入力シート【記載必須】'!L$7="","",'1_共通入力シート【記載必須】'!L$7) -> 不妊治療補助件数 | CK24: =IF('1_共通入力シート【記載必須】'!M$7="","",'1_共通入力シート【記載必須】'!M$7) -> 件 | CL24: =IF('1_共通入力シート【記載必須】'!N$7="","",'1_共通入力シート【記載必須】'!N$7) -> 5 （R7年度～R11年度） | CM24: =IF('1_共通入力シート【記載必須】'!O$7="","",'1_共通入力シート【記載必須】'!O$7) -> 3 （R6.4～R7.2） | CN24: =IF('1_共通入力シート【記載必須】'!P$7="","",'1_共通入力シート【記載必須】'!P$7) -> 子育て関連講座参加者数 | CO24: =IF('1_共通入力シート【記載必須】'!Q$7="","",'1_共通入力シート【記載必須】'!Q$7) -> 人 | CP24: =IF('1_共通入力シート【記載必須】'!R$7="","",'1_共通入力シート【記載必須】'!R$7) -> 488 （R7年度～R11年度） | CQ24: =IF('1_共通入力シート【記載必須】'!S$7="","",'1_共通入力シート【記載必須】'!S$7) -> 487 （R6.4～R7.1） | CR24: =IF('1_共通入力シート【記載必須】'!T$7="","",'1_共通入力シート【記載必須】'!T$7) -> こども家庭センターにおける相談支援件数 | CS24: =IF('1_共通入力シート【記載必須】'!U$7="","",'1_共通入力シート【記載必須】'!U$7) -> 件 | CT24: =IF('1_共通入力シート【記載必須】'!V$7="","",'1_共通入力シート【記載必須】'!V$7) -> 60/年 （R7年度～R11年度） | CU24: =IF('1_共通入力シート【記載必須】'!W$7="","",'1_共通入力シート【記載必須】'!W$7) -> 47/年 （R6.4～R7.1） | CV24: =IF('1_共通入力シート【記載必須】'!X$7="","",'1_共通入力シート【記載必須】'!X$7) ->  | CW24: =IF('1_共通入力シート【記載必須】'!Y$7="","",'1_共通入力シート【記載必須】'!Y$7) ->  | CX24: =IF('1_共通入力シート【記載必須】'!Z$7="","",'1_共通入力シート【記載必須】'!Z$7) ->  | CY24: =IF('1_共通入力シート【記載必須】'!AA$7="","",'1_共通入力シート【記載必須】'!AA$7) ->  | CZ24: =IF('1_共通入力シート【記載必須】'!AB$7="","",'1_共通入力シート【記載必須】'!AB$7) -> 合計特殊出生率 | DA24: =IF('1_共通入力シート【記載必須】'!AC$7="","",'1_共通入力シート【記載必須】'!AC$7) ->  | DB24: =IF('1_共通入力シート【記載必須】'!AD$7="","",'1_共通入力シート【記載必須】'!AD$7) -> 2.44 （R6年） | DC24: =IF('1_共通入力シート【記載必須】'!AE$7="","",'1_共通入力シート【記載必須】'!AE$7) -> 婚姻件数 | DD24: =IF('1_共通入力シート【記載必須】'!AF$7="","",'1_共通入力シート【記載必須】'!AF$7) -> 件 | DE24: =IF('1_共通入力シート【記載必須】'!AG$7="","",'1_共通入力シート【記載必須】'!AG$7) -> 22 （R6年） | DF24: =IF('1_共通入力シート【記載必須】'!AH$7="","",'1_共通入力シート【記載必須】'!AH$7) -> 婚姻率 | DG24: =IF('1_共通入力シート【記載必須】'!AI$7="","",'1_共通入力シート【記載必須】'!AI$7) ->  | DH24: =IF('1_共通入力シート【記載必須】'!AJ$7="","",'1_共通入力シート【記載必須】'!AJ$7) -> 4.27 （R6年） | EC24: 交付金事業に対する事業対象者（住民等）の満足度 ※該当事業のみ必須 | ED24: ％ | EG24: 希望どおりの結婚に向けて後押ししてくれたと感じた人の割合 ※該当事業のみ必須 | EH24: ％ | EK24: 結婚、妊娠・出産、子育てに前向きになったと感じた人の割合 ※該当事業のみ必須 | EL24: ％ | FL24: NG | FN24: NG | FP24: NG | FR24: NG | FT24: NG | FV24: NG | FX24: NG | FY24: OK | FZ24: =IFERROR(VLOOKUP($L24,リンク先!$E$147:$M$157,2,FALSE)&"","") ->  | GB24: OK | GC24: =IFERROR(VLOOKUP($L24,リンク先!$E$147:$M$157,3,FALSE)&"","") ->  | GE24: OK | GF24: =IFERROR(VLOOKUP($L24,リンク先!$E$147:$M$157,4,FALSE)&"","") ->  | GH24: OK | GL24: =IF(I24=リンク先!$C$12,4,VLOOKUP('1_共通入力シート【記載必須】'!$B$7,補助率判定!$B:$I,8,0)) -> 2
B25: ⑲ | C25: ='1_共通入力シート【記載必須】'!$B$7 -> 433641 | D25: ='1_共通入力シート【記載必須】'!$C$7 -> 市町村 | E25: ='1_共通入力シート【記載必須】'!$D$7 -> 熊本県 | F25: ='1_共通入力シート【記載必須】'!$E$7 -> 玉東町 | G25: ='1_共通入力シート【記載必須】'!$F$7 -> 熊本県玉東町 | N25: =IFERROR(VLOOKUP(GK25,リンク先!$F$3:$J$9,1+GL25,0),"") ->  | O25: =AZ25 -> 0 | Q25: =BA25 -> 0 | R25: =O25-P25 -> 0 | T25: 0 | W25: 0 | Z25: 0 | AC25: 0 | AF25: 0 | AI25: 0 | AL25: 0 | AO25: 0 | AR25: 0 | AU25: 0 | AZ25: 0 | BA25: 0 | BB25: 0 | BG25: =DATEVALUE(BF25&"年12月31日") ->  | BH25: 2026 | BI25: ='1_共通入力シート【記載必須】'!$G$7 -> 結婚・妊娠・共育ての相談機会提供・支援プログラムを実施し、結婚に伴う新生活を経済的に支援するため新生活費用に対して補助を行う。 また、荒尾・玉名地域結婚サポートセンター（有明広域行政事務組合）と連携して婚活事業を実施し、出会いの場の創出を重点的に行う。事業実施後には、対象者にアンケート調査等を行い、次年度以降により効果的な取組を行えるように留意する。 | CF25: =IF('1_共通入力シート【記載必須】'!H$7="","",'1_共通入力シート【記載必須】'!H$7) -> 荒尾・玉名地域結婚サポートセンター新規会員数 | CG25: =IF('1_共通入力シート【記載必須】'!I$7="","",'1_共通入力シート【記載必須】'!I$7) -> 人 | CH25: =IF('1_共通入力シート【記載必須】'!J$7="","",'1_共通入力シート【記載必須】'!J$7) -> 1 （R7年度～R11年度） | CI25: =IF('1_共通入力シート【記載必須】'!K$7="","",'1_共通入力シート【記載必須】'!K$7) -> 0 （R6年度 1月時点） | CJ25: =IF('1_共通入力シート【記載必須】'!L$7="","",'1_共通入力シート【記載必須】'!L$7) -> 不妊治療補助件数 | CK25: =IF('1_共通入力シート【記載必須】'!M$7="","",'1_共通入力シート【記載必須】'!M$7) -> 件 | CL25: =IF('1_共通入力シート【記載必須】'!N$7="","",'1_共通入力シート【記載必須】'!N$7) -> 5 （R7年度～R11年度） | CM25: =IF('1_共通入力シート【記載必須】'!O$7="","",'1_共通入力シート【記載必須】'!O$7) -> 3 （R6.4～R7.2） | CN25: =IF('1_共通入力シート【記載必須】'!P$7="","",'1_共通入力シート【記載必須】'!P$7) -> 子育て関連講座参加者数 | CO25: =IF('1_共通入力シート【記載必須】'!Q$7="","",'1_共通入力シート【記載必須】'!Q$7) -> 人 | CP25: =IF('1_共通入力シート【記載必須】'!R$7="","",'1_共通入力シート【記載必須】'!R$7) -> 488 （R7年度～R11年度） | CQ25: =IF('1_共通入力シート【記載必須】'!S$7="","",'1_共通入力シート【記載必須】'!S$7) -> 487 （R6.4～R7.1） | CR25: =IF('1_共通入力シート【記載必須】'!T$7="","",'1_共通入力シート【記載必須】'!T$7) -> こども家庭センターにおける相談支援件数 | CS25: =IF('1_共通入力シート【記載必須】'!U$7="","",'1_共通入力シート【記載必須】'!U$7) -> 件 | CT25: =IF('1_共通入力シート【記載必須】'!V$7="","",'1_共通入力シート【記載必須】'!V$7) -> 60/年 （R7年度～R11年度） | CU25: =IF('1_共通入力シート【記載必須】'!W$7="","",'1_共通入力シート【記載必須】'!W$7) -> 47/年 （R6.4～R7.1） | CV25: =IF('1_共通入力シート【記載必須】'!X$7="","",'1_共通入力シート【記載必須】'!X$7) ->  | CW25: =IF('1_共通入力シート【記載必須】'!Y$7="","",'1_共通入力シート【記載必須】'!Y$7) ->  | CX25: =IF('1_共通入力シート【記載必須】'!Z$7="","",'1_共通入力シート【記載必須】'!Z$7) ->  | CY25: =IF('1_共通入力シート【記載必須】'!AA$7="","",'1_共通入力シート【記載必須】'!AA$7) ->  | CZ25: =IF('1_共通入力シート【記載必須】'!AB$7="","",'1_共通入力シート【記載必須】'!AB$7) -> 合計特殊出生率 | DA25: =IF('1_共通入力シート【記載必須】'!AC$7="","",'1_共通入力シート【記載必須】'!AC$7) ->  | DB25: =IF('1_共通入力シート【記載必須】'!AD$7="","",'1_共通入力シート【記載必須】'!AD$7) -> 2.44 （R6年） | DC25: =IF('1_共通入力シート【記載必須】'!AE$7="","",'1_共通入力シート【記載必須】'!AE$7) -> 婚姻件数 | DD25: =IF('1_共通入力シート【記載必須】'!AF$7="","",'1_共通入力シート【記載必須】'!AF$7) -> 件 | DE25: =IF('1_共通入力シート【記載必須】'!AG$7="","",'1_共通入力シート【記載必須】'!AG$7) -> 22 （R6年） | DF25: =IF('1_共通入力シート【記載必須】'!AH$7="","",'1_共通入力シート【記載必須】'!AH$7) -> 婚姻率 | DG25: =IF('1_共通入力シート【記載必須】'!AI$7="","",'1_共通入力シート【記載必須】'!AI$7) ->  | DH25: =IF('1_共通入力シート【記載必須】'!AJ$7="","",'1_共通入力シート【記載必須】'!AJ$7) -> 4.27 （R6年） | EC25: 交付金事業に対する事業対象者（住民等）の満足度 ※該当事業のみ必須 | ED25: ％ | EG25: 希望どおりの結婚に向けて後押ししてくれたと感じた人の割合 ※該当事業のみ必須 | EH25: ％ | EK25: 結婚、妊娠・出産、子育てに前向きになったと感じた人の割合 ※該当事業のみ必須 | EL25: ％ | FL25: NG | FN25: =IF(FM25="含まれていない","OK","NG") -> NG | FP25: NG | FR25: =IF(FQ25="含まれていない","OK","NG") -> NG | FT25: =IF(FS25="含まれていない","OK","NG") -> NG | FV25: NG | FX25: =IF(FW25="含まれていない","OK","NG") -> NG | FY25: OK | FZ25: =IFERROR(VLOOKUP($L25,リンク先!$E$147:$M$157,2,FALSE)&"","") ->  | GB25: =IF(OR(GA25="○",FZ25=""),"OK","NG") -> OK | GC25: =IFERROR(VLOOKUP($L25,リンク先!$E$147:$M$157,3,FALSE)&"","") ->  | GE25: =IF(OR(GD25="○",GC25=""),"OK","NG") -> OK | GF25: =IFERROR(VLOOKUP($L25,リンク先!$E$147:$M$157,4,FALSE)&"","") ->  | GH25: =IF(OR(GG25="○",GF25=""),"OK","NG") -> OK | GL25: =IF(I25=リンク先!$C$12,4,VLOOKUP('1_共通入力シート【記載必須】'!$B$7,補助率判定!$B:$I,8,0)) -> 2
B26: 記載例・留意点等 | H26: （記載例） ●●部●●課 | I26: （留意点） ・原則として令和７年度予算を選択 | M26: （記載例） ●●市●●事業 | Q26: （留意点） ・本交付金の対象外となる経費を除いた対象経費支出予定額（国補助率を乗じる前の額）を円単位で記載 | BC26: （記載例） 令和8年4月1日 | BI26: ='1_共通入力シート【記載必須】'!$G$8 -> （記載例） 過年度に引き続き、婚姻件数や婚姻率の低下に歯止めをかけるべく、出会いの場の創出を重点的に行うほか、主に若い世代に対してライフプランセミナーを重点的に行う。その際、EBPMを意識した事業を推進するため、実施後に事業対象者に丁寧にアンケート調査等を行い、次年度以降により効果的な取組を行えるように留意する。 また、結婚・妊娠・共育ての相談機会提供・支援プログラムを実施し、経済的不安から結婚に踏み切れない層に対して補助を行う。 （留意点） ・地域の実情及び課題を踏まえ、自治体が展開する少子化対策の全体像を記載 | BJ26: （記載例１）結婚支援センターの運営する場合 出会いの場の創出に大きな役割を果たす●県結婚支援センターの運営を行うもの。 （記載例２）婚活イベントを開催する場合 出会いの場を創出するため、（●●市と連携して）●●イベントを実施する。 | BK26: （記載例） 婚活イベント・スキルアップセミナーの開催 | BL26: （記載例） 結婚の希望を叶えられるよう、出会いの機会の場を提供するため、委託により次のとおり婚活イベントとスキルアップセミナーを開催する。 イベント・セミナーの開催にあたって、結婚支援センターの登録者への周知、参加を促すとともに、イベント・セミナー参加者に対して結婚支援センター、マッチングシステムへの登録案内、イベン・セミナー開催後に結婚相談員による個別相談の機会を設ける。 ○体験型イベント（年3回） ・参加予定者数（定員）：●人（男女各●人×3回） ・内容：●●体験など ・対象：おおむね●～●歳の独身者 ※参加費を次のとおり徴収し、徴収した参加費は、「寄付金その他の収入額」として計上。 男性＠2,000円×●名、女性＠1,000円×●名 （小計●円×３回） ○女性向けセミナー ・体験型セミナー３回 ・参加予定者数（定員）：●人（●人×3回） ・内容：●●など ○男性向けセミナー ・イベントの前に講演型セミナー3回 ・参加予定者数（定員）：●人（●人×3回） ・内容：●●など ○周知・広報について ・チラシ配布（●枚）、市ホームページ、専用特設サイト、SNS（インスタグラム、エックス（旧_ツイッター）、フェイスブック、ラインなど） | BM26: （記載例） セミナー・ワークショップの実施 | BN26: （記載例） 県内の高校・大学と連携し、ライフデザインセミナー及びワークショップを実施する。妊娠・出産の正しい知識と結婚・子育てに関するマネーライフプランニング等について、子育て世帯をファシリテーターとし、複数のロールモデルを提供する一助とする。（ファシリテーターは公募の上、決定する） ※対象：県内大学●校、県内高校●校を予定 ※回数：●回を想定 | BO26: （記載例） ライフデザイン啓発サイトの開発 | BP26: （記載例） ・ライフデザインを描くために必要なデータを充実させ、正しい知識に基づいて人生設計ができるよう支援する。 ・サイト上でライフデザインをシミュレーションできるツールを提供する。 ・若い世代へ普及するための効果的な手段としてSNSを活用した広報・周知を行う。 | CE26: （記載例） ・本事業の開催方法について、前年度において幅広い年齢層を対象としたことによりマッチング率が下がったことを踏まえ、対象年齢を引き下げ、若い世代を中心に集客を図る。 ・本事業の周知方法について、更なる集客を図るため、従来の広報誌に加え、ＳＮＳ広告を行う。 （留意点） ・一般財源での実施も含めた継続事業については、過年度の事業で浮かび上がった課題の分析やそれに対する取組（ステップアップ）を記載 ・新規事業については記載不要。 | CF26: ='1_共通入力シート【記載必須】'!$H$8 -> （記載例） 公的結婚支援による成婚者数 | CG26: ='1_共通入力シート【記載必須】'!$I$8 -> 件 | CH26: ='1_共通入力シート【記載必須】'!$J$8 -> 300（R10年度） | CI26: ='1_共通入力シート【記載必須】'!$K$8 -> 100（R6年度） or 数値がない場合は「---」 | DB26: ='1_共通入力シート【記載必須】'!$AD$8 -> 1.5（R6年） or 数値がない場合は「---」 | DK26: 100（R8年度） | DL26: 50（R7年度見込） or 50（R6年度） or 数値がない場合は「---」 | EE26: 100（R8年度） | EF26: 50（R7年度見込） or 50（R6年度） or 数値がない場合は「---」 | FI26: （記載例） 2026/3/31 | FJ26: （記載例） 2026/7/10 | FU26: （留意点） ・別途配布する「留意点等」を参照すること。

Sheet 3_個別入力シート（支援プログラム）
B1: 個別入力シート 【結婚・妊娠・共育ての相談機会提供・支援プログラム】
I2: ※メニューに係るリスト（プルダウン）については、選択内容によって分岐して表示されるように設定されているため、左から順番に選択すること。 ※これらの欄は、「4_総括表への転記シート」に自動転記 | AA2: 【対象費目】 ※対象とする費用に「〇」を選択すること。 | AE2: 【補助対象要件_自治体独自基準】 ※所得要件・年齢要件・補助上限額は150字以内・その他独自要件は250字以内で要約してください。 ※国基準のとおりであれば空欄のままとしてください。 | AJ2: 【（参考）令和７年度_申請状況】 令和７年12月時点における申請実績世帯数及び令和８年１月～３月の申請見込世帯数を記載 | AN2: 【令和８年度_申請見込】 ①新規世帯見込については、継続補助分（D）を除いた本年度の見込世帯数（A・B・C）を記載 ②継続補助世帯見込については、継続補助規定の有無、前年度補助上限額未満の支給見込世帯数（D）及び対象経費支出予定額（G）を記載 ③A・B・D・Gの値については、「4_総括表への転記シート」に自動転記 | AZ2: 【自治体における全体ＫＰＩ】 ※全ての個別事業共通（地域少子化対策重点推進事業・結婚・妊娠・共育ての相談機会提供・支援プログラムいずれも共通） ※少子化対策に関連した各自治体における計画（総合計画、総合戦略、次世代育成計画等）で設定しているKPIの主な項目を最大５つまで記載 | BT2: 【自治体における参考指標】 ※全ての個別事業共通（地域少子化対策重点推進事業・ 結婚・妊娠・共育ての相談機会提供・支援プログラムいずれも共通） ※項目名は変更しないこと。 | CC2: 【個別事業における個別ＫＰＩ（アウトプット）】 ※項目名は変更しないこと。 | CG2: 【個別事業における個別ＫＰＩ（アウトカム）】 ※項目名は変更しないこと。 | CO2: 【予算時期調査】 ※市町村事業を実施する場合、実施主体の市町村において予算が措置されていることに加え、都道府県においても対応する予算が措置されていることが必要です。
B3: 個票番号 | C3: 自治体コード ６桁 | D3: 自治体の区分 【リスト選択】 | E3: 都道府県名 【リスト選択】 | F3: 市町村名 | G3: 都道府県名 ＋ 市町村名 【自動表記】 | H3: 本事業の担当部局名 | I3: 国予算区分 【リスト選択】 | J3: 事業メニュー | K3: 区分 【リスト選択】 | L3: 関連事業メニュー 【リスト選択】 | M3: 個別事業名 | N3: 国補助率 【自動表記】 | O3: Ａ 総事業費（円） ※自治体単費分を 含むこと。 ※必ずA≧Cとすること。 | P3: Ｂ 寄付金その他の収入予定額（円） | Q3: Ｃ 対象経費支出予定額（円） ※国補助率を乗じる前の額 ※必ずA≧Cとすること。 | R3: A-Ｂ 差引額（円） 【自動表記】 | S3: 実施期間（和暦） ※始期については原則として 4/1とすること。 なお、年度途中の変更決定を受けてから開始する場合は「交付決定日」とすること。 ※終期については原則として 3/31とすること。 | U3: 新規／継続 (一般財源での 実施も含む) 【リスト選択】 | V3: 事業開始 年度（西暦） ※新規の場合は「2026」と入力 | W3: 事業開始 年度（和暦） 【自動表記】 | X3: 経過年度 【自動表記】 | Y3: 自治体における少子化対策の全体像 ※全ての個別事業共通（地域少子化対策重点推進事業・結婚・妊娠・共育ての相談機会提供・支援プログラムいずれも共通） ※250字以内（2～3段落程度）で要約してください。 | Z3: 自治体における少子化対策の全体像の中での本個別事業の位置付け ※250字以内（2～3段落程度）で要約してください。 | AA3: 住宅取得費用 | AB3: 住宅リフォーム費用 | AC3: 住宅賃借費用 | AD3: 引越費用 | AE3: 所得要件_独自基準 ※国基準のとおりであれば空欄 | AF3: 年齢要件_独自基準 ※国基準のとおりであれば空欄 | AG3: 補助上限額_独自基準 29歳以下 ※国基準のとおりであれば空欄 | AH3: 補助上限額_独自基準 39歳以下 ※国基準のとおりであれば空欄 | AI3: その他独自要件 | AJ3: 事業実施の有無 【リスト選択】 | AK3: ～12月 実績 世帯数 | AL3: 1月～3月 見込 世帯数 | AM3: 申請世帯 見込数 （実績+見込） 【自動表記】 | AN3: Ａ 29歳以下 世帯数 | AO3: Ｂ その他 世帯数 | AP3: Ｃ 新規世帯 見込数 （Ａ+Ｂ） 【自動表記】 | AQ3: Ｄ 継続補助世帯 見込数 | AR3: 継続補助 規定の有無 【リスト選択】 | AS3: 世帯数積算根拠 ※簡潔に記載してください。 | AT3: Ｅ 29歳以下 上限額 (Ａ×60万円) 【自動表記】 | AU3: Ｆ その他 上限額 (Ｂ×30万円) 【自動表記】 | AV3: Ｇ 継続補助 対象経費 支出予定額 （円） | AW3: Ｈ 上限額 合計 （E+F+Ｇ） 【自動表記】 | AX3: ※左記のＨ(上限額の合計)を（「対象経費支出予定額」として）使用しない場合の金額積算根拠 ※Ｈ＞「対象経費支出予定額（国補助率を乗じる前の額）」となる場合のみ簡潔に記載 ※Ｈ＝「対象経費支出予定額（国補助率を乗じる前の額）」となる場合は空欄のままとしてください。 | AY3: 広報の実施予定 ※250字以内で要約してください。 | AZ3: 少子化対策全体の重要業績評価指標(KPI)及び定量的成果目標 | BT3: 参考指標 | CC3: 個別事業の重要業績評価指標(KPI)及び定量的成果目標【アウトプット】 | CG3: 個別事業の重要業績評価指標(KPI)及び定量的成果目標【アウトカム】
AZ4: ① | BD4: ② | BH4: ③ | BL4: ④ | BP4: ⑤ | BT4: ① | BW4: ② | BZ4: ③ | CC4: ① | CG4: ① | CK4: ② | CO4: 実施自治体の 予算議決(予定)日 | CP4: 年度途中の交付決定を 希望する場合のみ記載
AZ5: 項目名 | BA5: 単位 【リスト選択】 | BB5: 目標値（時点） | BC5: 現状値（時点） | BD5: 項目名 | BE5: 単位 【リスト選択】 | BF5: 目標値（時点） | BG5: 現状値（時点） | BH5: 項目名 | BI5: 単位 【リスト選択】 | BJ5: 目標値（時点） | BK5: 現状値（時点） | BL5: 項目名 | BM5: 単位 【リスト選択】 | BN5: 目標値（時点） | BO5: 現状値（時点） | BP5: 項目名 | BQ5: 単位 【リスト選択】 | BR5: 目標値（時点） | BS5: 現状値（時点） | BT5: 項目名 | BU5: 単位 | BV5: 直近の 実績値(時点) | BW5: 項目名 | BX5: 単位 | BY5: 直近の 実績値(時点) | BZ5: 項目名 | CA5: 単位 | CB5: 直近の 実績値（時点） | CC5: 項目名 | CD5: 単位 | CE5: 目標値（時点） | CF5: 現状値（時点） | CG5: 項目名 | CH5: 単位 | CI5: 目標値（時点） | CJ5: 現状値（時点） | CK5: 項目名 | CL5: 単位 | CM5: 目標値（時点） | CN5: 現状値（時点） | CP5: 国からの交付決定希望日 ※7月～3月中旬(10日～20日)を目安とすること。 | CQ5: 備考
B6: vlookup用列番号 | C6: =COLUMN(C5)-COLUMN($B5)+1 -> 2 | D6: =COLUMN(D5)-COLUMN($B5)+1 -> 3 | E6: =COLUMN(E5)-COLUMN($B5)+1 -> 4 | F6: =COLUMN(F5)-COLUMN($B5)+1 -> 5 | G6: =COLUMN(G5)-COLUMN($B5)+1 -> 6 | H6: 7 | I6: 8 | J6: 9 | K6: 10 | L6: 11 | M6: 12 | N6: 13 | O6: 14 | P6: 15 | Q6: 16 | R6: 17 | S6: =COLUMN(S5)-COLUMN($B5)+1 -> 18 | T6: =COLUMN(T5)-COLUMN($B5)+1 -> 19 | U6: 20 | V6: =COLUMN(V5)-COLUMN($B5)+1 -> 21 | W6: 22 | X6: =COLUMN(X5)-COLUMN($B5)+1 -> 23 | Y6: =COLUMN(Y5)-COLUMN($B5)+1 -> 24 | Z6: 25 | AA6: =COLUMN(AA5)-COLUMN($B5)+1 -> 26 | AB6: =COLUMN(AB5)-COLUMN($B5)+1 -> 27 | AC6: 28 | AD6: =COLUMN(AD5)-COLUMN($B5)+1 -> 29 | AE6: =COLUMN(AE5)-COLUMN($B5)+1 -> 30 | AF6: 31 | AG6: 32 | AH6: 33 | AI6: 34 | AJ6: 35 | AK6: =COLUMN(AK5)-COLUMN($B5)+1 -> 36 | AL6: 37 | AM6: 38 | AN6: 39 | AO6: 40 | AP6: =COLUMN(AP5)-COLUMN($B5)+1 -> 41 | AQ6: =COLUMN(AQ5)-COLUMN($B5)+1 -> 42 | AR6: =COLUMN(AR5)-COLUMN($B5)+1 -> 43 | AS6: 44 | AT6: 45 | AU6: 46 | AV6: =COLUMN(AV5)-COLUMN($B5)+1 -> 47 | AW6: =COLUMN(AW5)-COLUMN($B5)+1 -> 48 | AX6: 49 | AY6: 50 | AZ6: =COLUMN(AZ5)-COLUMN($B5)+1 -> 51 | BA6: =COLUMN(BA5)-COLUMN($B5)+1 -> 52 | BB6: =COLUMN(BB5)-COLUMN($B5)+1 -> 53 | BC6: =COLUMN(BC5)-COLUMN($B5)+1 -> 54 | BD6: =COLUMN(BD5)-COLUMN($B5)+1 -> 55 | BE6: =COLUMN(BE5)-COLUMN($B5)+1 -> 56 | BF6: =COLUMN(BF5)-COLUMN($B5)+1 -> 57 | BG6: =COLUMN(BG5)-COLUMN($B5)+1 -> 58 | BH6: =COLUMN(BH5)-COLUMN($B5)+1 -> 59 | BI6: =COLUMN(BI5)-COLUMN($B5)+1 -> 60 | BJ6: =COLUMN(BJ5)-COLUMN($B5)+1 -> 61 | BK6: =COLUMN(BK5)-COLUMN($B5)+1 -> 62 | BL6: =COLUMN(BL5)-COLUMN($B5)+1 -> 63 | BM6: =COLUMN(BM5)-COLUMN($B5)+1 -> 64 | BN6: =COLUMN(BN5)-COLUMN($B5)+1 -> 65 | BO6: =COLUMN(BO5)-COLUMN($B5)+1 -> 66 | BP6: =COLUMN(BP5)-COLUMN($B5)+1 -> 67 | BQ6: =COLUMN(BQ5)-COLUMN($B5)+1 -> 68 | BR6: =COLUMN(BR5)-COLUMN($B5)+1 -> 69 | BS6: =COLUMN(BS5)-COLUMN($B5)+1 -> 70 | BT6: =COLUMN(BT5)-COLUMN($B5)+1 -> 71 | BU6: =COLUMN(BU5)-COLUMN($B5)+1 -> 72 | BV6: =COLUMN(BV5)-COLUMN($B5)+1 -> 73 | BW6: =COLUMN(BW5)-COLUMN($B5)+1 -> 74 | BX6: =COLUMN(BX5)-COLUMN($B5)+1 -> 75 | BY6: =COLUMN(BY5)-COLUMN($B5)+1 -> 76 | BZ6: =COLUMN(BZ5)-COLUMN($B5)+1 -> 77 | CA6: =COLUMN(CA5)-COLUMN($B5)+1 -> 78 | CB6: =COLUMN(CB5)-COLUMN($B5)+1 -> 79 | CC6: =COLUMN(CC5)-COLUMN($B5)+1 -> 80 | CD6: =COLUMN(CD5)-COLUMN($B5)+1 -> 81 | CE6: =COLUMN(CE5)-COLUMN($B5)+1 -> 82 | CF6: =COLUMN(CF5)-COLUMN($B5)+1 -> 83 | CG6: =COLUMN(CG5)-COLUMN($B5)+1 -> 84 | CH6: =COLUMN(CH5)-COLUMN($B5)+1 -> 85 | CI6: =COLUMN(CI5)-COLUMN($B5)+1 -> 86 | CJ6: =COLUMN(CJ5)-COLUMN($B5)+1 -> 87 | CK6: =COLUMN(CK5)-COLUMN($B5)+1 -> 88 | CL6: =COLUMN(CL5)-COLUMN($B5)+1 -> 89 | CM6: =COLUMN(CM5)-COLUMN($B5)+1 -> 90 | CN6: =COLUMN(CN5)-COLUMN($B5)+1 -> 91 | CO6: 92 | CP6: 93 | CQ6: 94 | CT6: 補助率検索用キー | CU6: 補助率判定
B7: 支援プ① | C7: ='1_共通入力シート【記載必須】'!$B$7 -> 433641 | D7: ='1_共通入力シート【記載必須】'!$C$7 -> 市町村 | E7: ='1_共通入力シート【記載必須】'!$D$7 -> 熊本県 | F7: ='1_共通入力シート【記載必須】'!$E$7 -> 玉東町 | G7: ='1_共通入力シート【記載必須】'!$F$7 -> 熊本県玉東町 | H7: 企画財政課 | I7: R7 | J7: 結婚・妊娠・共育ての相談機会提供・支援プログラム | K7: 一般コース | L7: 4_1 結婚・妊娠・共育ての相談機会提供・支援プログラム（一般コース） | M7: 玉東町結婚新生活支援事業 | N7: =IFERROR(VLOOKUP(CT7,リンク先!$F$3:$J$9,1+CU7,0),"") -> 0.5 | O7: 2400000 | P7: 0 | Q7: 2400000 | R7: =O7-P7 -> 2400000 | S7: 令和8年4月1日 | T7: 令和9年3月31日 | U7: 継続 | V7: 2016 | W7: =DATEVALUE(V7&"年12月31日") -> 42735 | X7: =2026-V7 -> 10 | Y7: ='1_共通入力シート【記載必須】'!$G$7 -> 結婚・妊娠・共育ての相談機会提供・支援プログラムを実施し、結婚に伴う新生活を経済的に支援するため新生活費用に対して補助を行う。 また、荒尾・玉名地域結婚サポートセンター（有明広域行政事務組合）と連携して婚活事業を実施し、出会いの場の創出を重点的に行う。事業実施後には、対象者にアンケート調査等を行い、次年度以降により効果的な取組を行えるように留意する。 | Z7: 結婚・出産・子育ての希望をかなえ、安心して暮らすことが出来る魅力的な地域をつくる。 | AA7: ○ | AB7: ○ | AC7: ○ | AD7: ○ | AJ7: 実施中 | AK7: 1 | AL7: 1 | AM7: =SUM(AK7:AL7) -> 2 | AN7: 2 | AO7: 2 | AP7: =SUM(AN7:AO7) -> 4 | AQ7: 2 | AR7: 有 | AS7: ・申請見込については、令和5年度及び令和6年度の当事業における支給実績から4世帯とした。（R5年度：4件、R6年度5件） | AT7: =600000*AN7 -> 1200000 | AU7: =300000*AO7 -> 600000 | AV7: 600000 | AW7: =SUM(AT7:AV7) -> 2400000 | AY7: ・町ホームページおよび広報紙、公式ＬＩＮＥを活用し積極的に周知するほか、窓口において婚姻者に周知を図る。 | AZ7: =IF('1_共通入力シート【記載必須】'!H$7="","",'1_共通入力シート【記載必須】'!H$7) -> 荒尾・玉名地域結婚サポートセンター新規会員数 | BA7: =IF('1_共通入力シート【記載必須】'!I$7="","",'1_共通入力シート【記載必須】'!I$7) -> 人 | BB7: =IF('1_共通入力シート【記載必須】'!J$7="","",'1_共通入力シート【記載必須】'!J$7) -> 1 （R7年度～R11年度） | BC7: =IF('1_共通入力シート【記載必須】'!K$7="","",'1_共通入力シート【記載必須】'!K$7) -> 0 （R6年度 1月時点） | BD7: =IF('1_共通入力シート【記載必須】'!L$7="","",'1_共通入力シート【記載必須】'!L$7) -> 不妊治療補助件数 | BE7: =IF('1_共通入力シート【記載必須】'!M$7="","",'1_共通入力シート【記載必須】'!M$7) -> 件 | BF7: =IF('1_共通入力シート【記載必須】'!N$7="","",'1_共通入力シート【記載必須】'!N$7) -> 5 （R7年度～R11年度） | BG7: =IF('1_共通入力シート【記載必須】'!O$7="","",'1_共通入力シート【記載必須】'!O$7) -> 3 （R6.4～R7.2） | BH7: =IF('1_共通入力シート【記載必須】'!P$7="","",'1_共通入力シート【記載必須】'!P$7) -> 子育て関連講座参加者数 | BI7: =IF('1_共通入力シート【記載必須】'!Q$7="","",'1_共通入力シート【記載必須】'!Q$7) -> 人 | BJ7: =IF('1_共通入力シート【記載必須】'!R$7="","",'1_共通入力シート【記載必須】'!R$7) -> 488 （R7年度～R11年度） | BK7: =IF('1_共通入力シート【記載必須】'!S$7="","",'1_共通入力シート【記載必須】'!S$7) -> 487 （R6.4～R7.1） | BL7: =IF('1_共通入力シート【記載必須】'!T$7="","",'1_共通入力シート【記載必須】'!T$7) -> こども家庭センターにおける相談支援件数 | BM7: =IF('1_共通入力シート【記載必須】'!U$7="","",'1_共通入力シート【記載必須】'!U$7) -> 件 | BN7: =IF('1_共通入力シート【記載必須】'!V$7="","",'1_共通入力シート【記載必須】'!V$7) -> 60/年 （R7年度～R11年度） | BO7: =IF('1_共通入力シート【記載必須】'!W$7="","",'1_共通入力シート【記載必須】'!W$7) -> 47/年 （R6.4～R7.1） | BP7: =IF('1_共通入力シート【記載必須】'!X$7="","",'1_共通入力シート【記載必須】'!X$7) ->  | BQ7: =IF('1_共通入力シート【記載必須】'!Y$7="","",'1_共通入力シート【記載必須】'!Y$7) ->  | BR7: =IF('1_共通入力シート【記載必須】'!Z$7="","",'1_共通入力シート【記載必須】'!Z$7) ->  | BS7: =IF('1_共通入力シート【記載必須】'!AA$7="","",'1_共通入力シート【記載必須】'!AA$7) ->  | BT7: =IF('1_共通入力シート【記載必須】'!AB$7="","",'1_共通入力シート【記載必須】'!AB$7) -> 合計特殊出生率 | BU7: =IF('1_共通入力シート【記載必須】'!AC$7="","",'1_共通入力シート【記載必須】'!AC$7) ->  | BV7: =IF('1_共通入力シート【記載必須】'!AD$7="","",'1_共通入力シート【記載必須】'!AD$7) -> 2.44 （R6年） | BW7: =IF('1_共通入力シート【記載必須】'!AE$7="","",'1_共通入力シート【記載必須】'!AE$7) -> 婚姻件数 | BX7: =IF('1_共通入力シート【記載必須】'!AF$7="","",'1_共通入力シート【記載必須】'!AF$7) -> 件 | BY7: =IF('1_共通入力シート【記載必須】'!AG$7="","",'1_共通入力シート【記載必須】'!AG$7) -> 22 （R6年） | BZ7: =IF('1_共通入力シート【記載必須】'!AH$7="","",'1_共通入力シート【記載必須】'!AH$7) -> 婚姻率 | CA7: =IF('1_共通入力シート【記載必須】'!AI$7="","",'1_共通入力シート【記載必須】'!AI$7) ->  | CB7: =IF('1_共通入力シート【記載必須】'!AJ$7="","",'1_共通入力シート【記載必須】'!AJ$7) -> 4.27 （R6年） | CC7: 支給世帯実績／支給見込世帯数の割合 | CD7: ％ | CE7: 100（R8年度） | CF7: 33.3（R7年度見込） | CG7: 結婚・妊娠・共育ての相談機会提供・支援プログラムに関するアンケートにおける「本事業の認知度」 | CH7: ％ | CI7: 80（R8年度） | CJ7: 80（R6年度実績） | CK7: 結婚・妊娠・共育ての相談機会提供・支援プログラムに関するアンケートにおける「地域に応援されていると感じた世帯の割合」 | CL7: ％ | CM7: 80（R8年度） | CN7: 80（R6年度実績） | CO7: 2026-03-31 | CT7: =J7&K7 -> 結婚・妊娠・共育ての相談機会提供・支援プログラム一般コース | CU7: =IF(I7=リンク先!$C$12,4,VLOOKUP('1_共通入力シート【記載必須】'!$B$7,補助率判定!$B:$I,8,0)) -> 4
B8: 記載例・留意点等 | H8: （記載例） ●●部●●課 | I8: （留意点） ・原則として令和７年度予算を選択 | M8: （記載例） ●●市支援プログラム | Q8: （留意点） ・本交付金の対象外となる経費を除いた対象経費支出予定額（国補助率を乗じる前の額）を円単位で記載 | S8: （記載例） 令和8年4月1日 | Y8: ='1_共通入力シート【記載必須】'!$G$8 -> （記載例） 過年度に引き続き、婚姻件数や婚姻率の低下に歯止めをかけるべく、出会いの場の創出を重点的に行うほか、主に若い世代に対してライフプランセミナーを重点的に行う。その際、EBPMを意識した事業を推進するため、実施後に事業対象者に丁寧にアンケート調査等を行い、次年度以降により効果的な取組を行えるように留意する。 また、結婚・妊娠・共育ての相談機会提供・支援プログラムを実施し、経済的不安から結婚に踏み切れない層に対して補助を行う。 （留意点） ・地域の実情及び課題を踏まえ、自治体が展開する少子化対策の全体像を記載 | Z8: （記載例） 結婚・妊娠・共育ての相談機会提供・支援プログラムを実施し、経済的不安から結婚に踏み切れない層に対して補助を行うもの。 | AE8: （記載例） 夫婦の合計所得が600万円未満 ※要件緩和分は自治体単費にて実施 【国基準】 夫婦の合計所得が500万円未満 | AF8: （記載例） 夫婦ともに婚姻日における年齢が40歳以下の世帯 ※要件緩和分は自治体単費にて実施 【国基準】 夫婦ともに婚姻日における年齢が39歳以下の世帯 | AG8: （記載例） 各費用に係る合計が30万円 【国基準】 各費用に係る合計が60万円 | AH8: （記載例） 各費用に係る合計が15万円 【国基準】 各費用に係る合計が30万円 | AI8: （留意点） 特段の記載が必要であると実施自治体が判断した要件（例 左記のほか国基準を超えて自治体単費で対応する必要がある要件など）のみとし、必ずしも全て列挙する必要はないものとする。 | AR8: （留意点） 要綱等に規定がある場合（実施年度に継続補助見込みがない場合も含む）は「有」を選択すること。 | AS8: （記載例１）直近の支給実績に基づいた積算 ・申請見込については、令和●年度の当事業における支給実績を引用。 （記載例２）住民、税務担当へ照会し、直近の婚姻件数のうち、年齢、所得要件を満たす世帯を算出し積算 ・29歳以下〇世帯については、令和●年度の夫婦ともに婚姻日における年齢が29歳以下の婚姻件数△件のうち、所得500万円未満の世帯数を税務課において確認し、算出。 ・その他〇世帯については、令和●年度の夫婦ともに婚姻日における年齢が39歳以下（ともに29歳以下を除く）の婚姻件数▲件のうち、所得500万円未満の世帯数を税務課において確認し、算出。 （記載例３）人口動態統計における婚姻件数及び国民生活基礎調査における世帯年収から対象世帯を算出する積算 ・29歳以下申請見込：〇世帯＝①100件×②45％×④85％ ・上記以外申請見込：〇世帯＝①100件×③45％×⑤65% ①「令和●年度人口動態統計」直近年度のＡ市年間婚姻件数100件 ②「令和●年度人口動態統計」直近年度の結婚生活に入った夫婦ともに29歳以下の世帯割合45％ ③「令和●年度人口動態統計」直近年度の結婚生活に入った夫婦ともに39歳以下の世帯割合90％のうち、 ともに29歳以下を除いた世帯割合：90%－②45%＝45% ④「令和●年度国民生活基礎調査」直近年度の世帯主の年齢別、世帯所得の割合 29歳以下の世帯総数のうち、世帯収入が700万円以下（所得換算約500万円）の世帯の割合85％ ⑤「令和●年度国民生活基礎調査」直近年度の世帯主の年齢別、世帯所得の割合 30歳以上39歳以下世帯総数のうち、世帯収入が700万円以下（所得換算約500万円）の世帯の割合65％ | AV8: 冒頭で入力済みの対象経費支出予定額→ | AW8: =Q7 -> 2400000 | AX8: （自治体独自基準にて単価を引き下げて積算する場合の記載例） ・（29歳以下） 3世帯×300,000円＝900,000円 ・（その他） 2世帯×150,000円＝300,000円 ・（継続補助） 150,000円 計1,350,000円 | AY8: （記載例） ・チラシの印刷・配布（1,000枚）を行い、引越業者に配架を依頼する。 | AZ8: ='1_共通入力シート【記載必須】'!$H$8 -> （記載例） 公的結婚支援による成婚者数 | BA8: ='1_共通入力シート【記載必須】'!$I$8 -> 件 | BB8: ='1_共通入力シート【記載必須】'!$J$8 -> 300（R10年度） | BC8: ='1_共通入力シート【記載必須】'!$K$8 -> 100（R6年度） or 数値がない場合は「---」 | BV8: ='1_共通入力シート【記載必須】'!$AD$8 -> 1.5（R6年） or 数値がない場合は「---」 | CE8: 100（R8年度） | CF8: 50（R7年度見込） or 50（R6年度実績） or 数値がない場合は「---」 | CI8: 80（R8年度） | CJ8: 50（R7年度見込） or 50（R6年度実績） or 数値がない場合は「---」 | CO8: （記載例） 2026/3/31 | CP8: （記載例） 2026/7/10
AV9: 「Ｈ 上限額」と「対象経費支出予定額」との 大小チェック結果⇒ | AW9: =IF(AW7>Q7,"H＞「対象経費支出予定額」",IF(AW7=Q7,"H＝「対象経費支出予定額」",IF(AW7<Q7,"H＜「対象経費支出予定額」(×のため「対象経費支出予定額」を要修正)"))) -> H＝「対象経費支出予定額」

Sheet 4_総括表への転記シート
F1: 地域少子化対策重点推進交付金（令和８年度実施事業）実施計画総括表 （転記元） | O1: ※支援プログラムを選択した場合に記入 （様式1-1の備考欄に自動転記）
B3: 実施自治体 | F3: 事業一覧 | K3: 所要見込額（円） | O3: 新規世帯見込 | R3: 継続補助世帯見込 | U3: 実施自治体 | X3: 実施自治体の 予算議決(予定)日 | Y3: 年度途中の交付決定を 希望する場合のみ記載
B4: 自治体名 | C4: 区分 | D4: 個票番号 | E4: 予算区分 | F4: 事業メニュー | G4: 区分 | H4: 関連事業メニュー | I4: 個別事業名 | J4: 補助率 | K4: 総事業費 | L4: 寄付金その他の収入予定額 | M4: 対象経費支出予定額 | O4: 世帯数(世帯数(29歳以下+その他)) | P4: 29歳以下 | Q4: その他 | R4: 世帯数 | S4: 対象経費支出予定額(円) | U4: 自治体コード | V4: 自治体名 | W4: 区分 | Y4: 国からの交付決定希望日 | Z4: 備考
B5: ='1_共通入力シート【記載必須】'!F7 -> 熊本県玉東町 | C5: =W5 -> 市町村 | D5: ① | E5: =IF('2_個別入力シート（支援プログラム以外）'!I7<>"",'2_個別入力シート（支援プログラム以外）'!I7,"") ->  | F5: =IF('2_個別入力シート（支援プログラム以外）'!J7<>"",'2_個別入力シート（支援プログラム以外）'!J7,"") ->  | G5: =IF('2_個別入力シート（支援プログラム以外）'!K7<>"",'2_個別入力シート（支援プログラム以外）'!K7,"") ->  | H5: =IF('2_個別入力シート（支援プログラム以外）'!L7<>"",'2_個別入力シート（支援プログラム以外）'!L7,"") ->  | I5: =IF('2_個別入力シート（支援プログラム以外）'!M7<>"",'2_個別入力シート（支援プログラム以外）'!M7,"") ->  | J5: =IF('2_個別入力シート（支援プログラム以外）'!N7<>"",'2_個別入力シート（支援プログラム以外）'!N7,"") ->  | K5: ='2_個別入力シート（支援プログラム以外）'!O7 -> 0 | L5: ='2_個別入力シート（支援プログラム以外）'!P7 -> 0 | M5: ='2_個別入力シート（支援プログラム以外）'!Q7 -> 0 | U5: ='1_共通入力シート【記載必須】'!$B$7 -> 433641 | V5: =IF('1_共通入力シート【記載必須】'!$E$7="",'1_共通入力シート【記載必須】'!$D$7,'1_共通入力シート【記載必須】'!$E$7) -> 玉東町 | W5: ='1_共通入力シート【記載必須】'!$C$7 -> 市町村 | X5: ='2_個別入力シート（支援プログラム以外）'!FI7 -> 00:00:00 | Y5: ='2_個別入力シート（支援プログラム以外）'!FJ7 -> 00:00:00 | Z5: ='2_個別入力シート（支援プログラム以外）'!FK7 -> 0
D6: ② | E6: =IF('2_個別入力シート（支援プログラム以外）'!I8<>"",'2_個別入力シート（支援プログラム以外）'!I8,"") ->  | F6: =IF('2_個別入力シート（支援プログラム以外）'!J8<>"",'2_個別入力シート（支援プログラム以外）'!J8,"") ->  | G6: =IF('2_個別入力シート（支援プログラム以外）'!K8<>"",'2_個別入力シート（支援プログラム以外）'!K8,"") ->  | H6: =IF('2_個別入力シート（支援プログラム以外）'!L8<>"",'2_個別入力シート（支援プログラム以外）'!L8,"") ->  | I6: =IF('2_個別入力シート（支援プログラム以外）'!M8<>"",'2_個別入力シート（支援プログラム以外）'!M8,"") ->  | J6: =IF('2_個別入力シート（支援プログラム以外）'!N8<>"",'2_個別入力シート（支援プログラム以外）'!N8,"") ->  | K6: ='2_個別入力シート（支援プログラム以外）'!O8 -> 0 | L6: ='2_個別入力シート（支援プログラム以外）'!P8 -> 0 | M6: ='2_個別入力シート（支援プログラム以外）'!Q8 -> 0 | U6: ='1_共通入力シート【記載必須】'!$B$7 -> 433641 | V6: =IF('1_共通入力シート【記載必須】'!$E$7="",'1_共通入力シート【記載必須】'!$D$7,'1_共通入力シート【記載必須】'!$E$7) -> 玉東町 | W6: ='1_共通入力シート【記載必須】'!$C$7 -> 市町村 | X6: ='2_個別入力シート（支援プログラム以外）'!FI8 -> 00:00:00 | Y6: ='2_個別入力シート（支援プログラム以外）'!FJ8 -> 00:00:00 | Z6: ='2_個別入力シート（支援プログラム以外）'!FK8 -> 0
D7: ③ | E7: =IF('2_個別入力シート（支援プログラム以外）'!I9<>"",'2_個別入力シート（支援プログラム以外）'!I9,"") ->  | F7: =IF('2_個別入力シート（支援プログラム以外）'!J9<>"",'2_個別入力シート（支援プログラム以外）'!J9,"") ->  | G7: =IF('2_個別入力シート（支援プログラム以外）'!K9<>"",'2_個別入力シート（支援プログラム以外）'!K9,"") ->  | H7: =IF('2_個別入力シート（支援プログラム以外）'!L9<>"",'2_個別入力シート（支援プログラム以外）'!L9,"") ->  | I7: =IF('2_個別入力シート（支援プログラム以外）'!M9<>"",'2_個別入力シート（支援プログラム以外）'!M9,"") ->  | J7: =IF('2_個別入力シート（支援プログラム以外）'!N9<>"",'2_個別入力シート（支援プログラム以外）'!N9,"") ->  | K7: ='2_個別入力シート（支援プログラム以外）'!O9 -> 0 | L7: ='2_個別入力シート（支援プログラム以外）'!P9 -> 0 | M7: ='2_個別入力シート（支援プログラム以外）'!Q9 -> 0 | U7: ='1_共通入力シート【記載必須】'!$B$7 -> 433641 | V7: =IF('1_共通入力シート【記載必須】'!$E$7="",'1_共通入力シート【記載必須】'!$D$7,'1_共通入力シート【記載必須】'!$E$7) -> 玉東町 | W7: ='1_共通入力シート【記載必須】'!$C$7 -> 市町村 | X7: ='2_個別入力シート（支援プログラム以外）'!FI9 -> 00:00:00 | Y7: ='2_個別入力シート（支援プログラム以外）'!FJ9 -> 00:00:00 | Z7: ='2_個別入力シート（支援プログラム以外）'!FK9 -> 0
D8: ④ | E8: =IF('2_個別入力シート（支援プログラム以外）'!I10<>"",'2_個別入力シート（支援プログラム以外）'!I10,"") ->  | F8: =IF('2_個別入力シート（支援プログラム以外）'!J10<>"",'2_個別入力シート（支援プログラム以外）'!J10,"") ->  | G8: =IF('2_個別入力シート（支援プログラム以外）'!K10<>"",'2_個別入力シート（支援プログラム以外）'!K10,"") ->  | H8: =IF('2_個別入力シート（支援プログラム以外）'!L10<>"",'2_個別入力シート（支援プログラム以外）'!L10,"") ->  | I8: =IF('2_個別入力シート（支援プログラム以外）'!M10<>"",'2_個別入力シート（支援プログラム以外）'!M10,"") ->  | J8: =IF('2_個別入力シート（支援プログラム以外）'!N10<>"",'2_個別入力シート（支援プログラム以外）'!N10,"") ->  | K8: ='2_個別入力シート（支援プログラム以外）'!O10 -> 0 | L8: ='2_個別入力シート（支援プログラム以外）'!P10 -> 0 | M8: ='2_個別入力シート（支援プログラム以外）'!Q10 -> 0 | U8: ='1_共通入力シート【記載必須】'!$B$7 -> 433641 | V8: =IF('1_共通入力シート【記載必須】'!$E$7="",'1_共通入力シート【記載必須】'!$D$7,'1_共通入力シート【記載必須】'!$E$7) -> 玉東町 | W8: ='1_共通入力シート【記載必須】'!$C$7 -> 市町村 | X8: ='2_個別入力シート（支援プログラム以外）'!FI10 -> 00:00:00 | Y8: ='2_個別入力シート（支援プログラム以外）'!FJ10 -> 00:00:00 | Z8: ='2_個別入力シート（支援プログラム以外）'!FK10 -> 0
D9: ⑤ | E9: =IF('2_個別入力シート（支援プログラム以外）'!I11<>"",'2_個別入力シート（支援プログラム以外）'!I11,"") ->  | F9: =IF('2_個別入力シート（支援プログラム以外）'!J11<>"",'2_個別入力シート（支援プログラム以外）'!J11,"") ->  | G9: =IF('2_個別入力シート（支援プログラム以外）'!K11<>"",'2_個別入力シート（支援プログラム以外）'!K11,"") ->  | H9: =IF('2_個別入力シート（支援プログラム以外）'!L11<>"",'2_個別入力シート（支援プログラム以外）'!L11,"") ->  | I9: =IF('2_個別入力シート（支援プログラム以外）'!M11<>"",'2_個別入力シート（支援プログラム以外）'!M11,"") ->  | J9: =IF('2_個別入力シート（支援プログラム以外）'!N11<>"",'2_個別入力シート（支援プログラム以外）'!N11,"") ->  | K9: ='2_個別入力シート（支援プログラム以外）'!O11 -> 0 | L9: ='2_個別入力シート（支援プログラム以外）'!P11 -> 0 | M9: ='2_個別入力シート（支援プログラム以外）'!Q11 -> 0 | U9: ='1_共通入力シート【記載必須】'!$B$7 -> 433641 | V9: =IF('1_共通入力シート【記載必須】'!$E$7="",'1_共通入力シート【記載必須】'!$D$7,'1_共通入力シート【記載必須】'!$E$7) -> 玉東町 | W9: ='1_共通入力シート【記載必須】'!$C$7 -> 市町村 | X9: ='2_個別入力シート（支援プログラム以外）'!FI11 -> 00:00:00 | Y9: ='2_個別入力シート（支援プログラム以外）'!FJ11 -> 00:00:00 | Z9: ='2_個別入力シート（支援プログラム以外）'!FK11 -> 0
D10: ⑥ | E10: =IF('2_個別入力シート（支援プログラム以外）'!I12<>"",'2_個別入力シート（支援プログラム以外）'!I12,"") ->  | F10: =IF('2_個別入力シート（支援プログラム以外）'!J12<>"",'2_個別入力シート（支援プログラム以外）'!J12,"") ->  | G10: =IF('2_個別入力シート（支援プログラム以外）'!K12<>"",'2_個別入力シート（支援プログラム以外）'!K12,"") ->  | H10: =IF('2_個別入力シート（支援プログラム以外）'!L12<>"",'2_個別入力シート（支援プログラム以外）'!L12,"") ->  | I10: =IF('2_個別入力シート（支援プログラム以外）'!M12<>"",'2_個別入力シート（支援プログラム以外）'!M12,"") ->  | J10: =IF('2_個別入力シート（支援プログラム以外）'!N12<>"",'2_個別入力シート（支援プログラム以外）'!N12,"") ->  | K10: ='2_個別入力シート（支援プログラム以外）'!O12 -> 0 | L10: ='2_個別入力シート（支援プログラム以外）'!P12 -> 0 | M10: ='2_個別入力シート（支援プログラム以外）'!Q12 -> 0 | U10: ='1_共通入力シート【記載必須】'!$B$7 -> 433641 | V10: =IF('1_共通入力シート【記載必須】'!$E$7="",'1_共通入力シート【記載必須】'!$D$7,'1_共通入力シート【記載必須】'!$E$7) -> 玉東町 | W10: ='1_共通入力シート【記載必須】'!$C$7 -> 市町村 | X10: ='2_個別入力シート（支援プログラム以外）'!FI12 -> 00:00:00 | Y10: ='2_個別入力シート（支援プログラム以外）'!FJ12 -> 00:00:00 | Z10: ='2_個別入力シート（支援プログラム以外）'!FK12 -> 0
D11: ⑦ | E11: =IF('2_個別入力シート（支援プログラム以外）'!I13<>"",'2_個別入力シート（支援プログラム以外）'!I13,"") ->  | F11: =IF('2_個別入力シート（支援プログラム以外）'!J13<>"",'2_個別入力シート（支援プログラム以外）'!J13,"") ->  | G11: =IF('2_個別入力シート（支援プログラム以外）'!K13<>"",'2_個別入力シート（支援プログラム以外）'!K13,"") ->  | H11: =IF('2_個別入力シート（支援プログラム以外）'!L13<>"",'2_個別入力シート（支援プログラム以外）'!L13,"") ->  | I11: =IF('2_個別入力シート（支援プログラム以外）'!M13<>"",'2_個別入力シート（支援プログラム以外）'!M13,"") ->  | J11: =IF('2_個別入力シート（支援プログラム以外）'!N13<>"",'2_個別入力シート（支援プログラム以外）'!N13,"") ->  | K11: ='2_個別入力シート（支援プログラム以外）'!O13 -> 0 | L11: ='2_個別入力シート（支援プログラム以外）'!P13 -> 0 | M11: ='2_個別入力シート（支援プログラム以外）'!Q13 -> 0 | U11: ='1_共通入力シート【記載必須】'!$B$7 -> 433641 | V11: =IF('1_共通入力シート【記載必須】'!$E$7="",'1_共通入力シート【記載必須】'!$D$7,'1_共通入力シート【記載必須】'!$E$7) -> 玉東町 | W11: ='1_共通入力シート【記載必須】'!$C$7 -> 市町村 | X11: ='2_個別入力シート（支援プログラム以外）'!FI13 -> 00:00:00 | Y11: ='2_個別入力シート（支援プログラム以外）'!FJ13 -> 00:00:00 | Z11: ='2_個別入力シート（支援プログラム以外）'!FK13 -> 0
D12: ⑧ | E12: =IF('2_個別入力シート（支援プログラム以外）'!I14<>"",'2_個別入力シート（支援プログラム以外）'!I14,"") ->  | F12: =IF('2_個別入力シート（支援プログラム以外）'!J14<>"",'2_個別入力シート（支援プログラム以外）'!J14,"") ->  | G12: =IF('2_個別入力シート（支援プログラム以外）'!K14<>"",'2_個別入力シート（支援プログラム以外）'!K14,"") ->  | H12: =IF('2_個別入力シート（支援プログラム以外）'!L14<>"",'2_個別入力シート（支援プログラム以外）'!L14,"") ->  | I12: =IF('2_個別入力シート（支援プログラム以外）'!M14<>"",'2_個別入力シート（支援プログラム以外）'!M14,"") ->  | J12: =IF('2_個別入力シート（支援プログラム以外）'!N14<>"",'2_個別入力シート（支援プログラム以外）'!N14,"") ->  | K12: ='2_個別入力シート（支援プログラム以外）'!O14 -> 0 | L12: ='2_個別入力シート（支援プログラム以外）'!P14 -> 0 | M12: ='2_個別入力シート（支援プログラム以外）'!Q14 -> 0 | U12: ='1_共通入力シート【記載必須】'!$B$7 -> 433641 | V12: =IF('1_共通入力シート【記載必須】'!$E$7="",'1_共通入力シート【記載必須】'!$D$7,'1_共通入力シート【記載必須】'!$E$7) -> 玉東町 | W12: ='1_共通入力シート【記載必須】'!$C$7 -> 市町村 | X12: ='2_個別入力シート（支援プログラム以外）'!FI14 -> 00:00:00 | Y12: ='2_個別入力シート（支援プログラム以外）'!FJ14 -> 00:00:00 | Z12: ='2_個別入力シート（支援プログラム以外）'!FK14 -> 0
D13: ⑨ | E13: =IF('2_個別入力シート（支援プログラム以外）'!I15<>"",'2_個別入力シート（支援プログラム以外）'!I15,"") ->  | F13: =IF('2_個別入力シート（支援プログラム以外）'!J15<>"",'2_個別入力シート（支援プログラム以外）'!J15,"") ->  | G13: =IF('2_個別入力シート（支援プログラム以外）'!K15<>"",'2_個別入力シート（支援プログラム以外）'!K15,"") ->  | H13: =IF('2_個別入力シート（支援プログラム以外）'!L15<>"",'2_個別入力シート（支援プログラム以外）'!L15,"") ->  | I13: =IF('2_個別入力シート（支援プログラム以外）'!M15<>"",'2_個別入力シート（支援プログラム以外）'!M15,"") ->  | J13: =IF('2_個別入力シート（支援プログラム以外）'!N15<>"",'2_個別入力シート（支援プログラム以外）'!N15,"") ->  | K13: ='2_個別入力シート（支援プログラム以外）'!O15 -> 0 | L13: ='2_個別入力シート（支援プログラム以外）'!P15 -> 0 | M13: ='2_個別入力シート（支援プログラム以外）'!Q15 -> 0 | U13: ='1_共通入力シート【記載必須】'!$B$7 -> 433641 | V13: =IF('1_共通入力シート【記載必須】'!$E$7="",'1_共通入力シート【記載必須】'!$D$7,'1_共通入力シート【記載必須】'!$E$7) -> 玉東町 | W13: ='1_共通入力シート【記載必須】'!$C$7 -> 市町村 | X13: ='2_個別入力シート（支援プログラム以外）'!FI15 -> 00:00:00 | Y13: ='2_個別入力シート（支援プログラム以外）'!FJ15 -> 00:00:00 | Z13: ='2_個別入力シート（支援プログラム以外）'!FK15 -> 0
D14: ⑩ | E14: =IF('2_個別入力シート（支援プログラム以外）'!I16<>"",'2_個別入力シート（支援プログラム以外）'!I16,"") ->  | F14: =IF('2_個別入力シート（支援プログラム以外）'!J16<>"",'2_個別入力シート（支援プログラム以外）'!J16,"") ->  | G14: =IF('2_個別入力シート（支援プログラム以外）'!K16<>"",'2_個別入力シート（支援プログラム以外）'!K16,"") ->  | H14: =IF('2_個別入力シート（支援プログラム以外）'!L16<>"",'2_個別入力シート（支援プログラム以外）'!L16,"") ->  | I14: =IF('2_個別入力シート（支援プログラム以外）'!M16<>"",'2_個別入力シート（支援プログラム以外）'!M16,"") ->  | J14: =IF('2_個別入力シート（支援プログラム以外）'!N16<>"",'2_個別入力シート（支援プログラム以外）'!N16,"") ->  | K14: ='2_個別入力シート（支援プログラム以外）'!O16 -> 0 | L14: ='2_個別入力シート（支援プログラム以外）'!P16 -> 0 | M14: ='2_個別入力シート（支援プログラム以外）'!Q16 -> 0 | U14: ='1_共通入力シート【記載必須】'!$B$7 -> 433641 | V14: =IF('1_共通入力シート【記載必須】'!$E$7="",'1_共通入力シート【記載必須】'!$D$7,'1_共通入力シート【記載必須】'!$E$7) -> 玉東町 | W14: ='1_共通入力シート【記載必須】'!$C$7 -> 市町村 | X14: ='2_個別入力シート（支援プログラム以外）'!FI16 -> 00:00:00 | Y14: ='2_個別入力シート（支援プログラム以外）'!FJ16 -> 00:00:00 | Z14: ='2_個別入力シート（支援プログラム以外）'!FK16 -> 0
D15: ⑪ | E15: =IF('2_個別入力シート（支援プログラム以外）'!I17<>"",'2_個別入力シート（支援プログラム以外）'!I17,"") ->  | F15: =IF('2_個別入力シート（支援プログラム以外）'!J17<>"",'2_個別入力シート（支援プログラム以外）'!J17,"") ->  | G15: =IF('2_個別入力シート（支援プログラム以外）'!K17<>"",'2_個別入力シート（支援プログラム以外）'!K17,"") ->  | H15: =IF('2_個別入力シート（支援プログラム以外）'!L17<>"",'2_個別入力シート（支援プログラム以外）'!L17,"") ->  | I15: =IF('2_個別入力シート（支援プログラム以外）'!M17<>"",'2_個別入力シート（支援プログラム以外）'!M17,"") ->  | J15: =IF('2_個別入力シート（支援プログラム以外）'!N17<>"",'2_個別入力シート（支援プログラム以外）'!N17,"") ->  | K15: ='2_個別入力シート（支援プログラム以外）'!O17 -> 0 | L15: ='2_個別入力シート（支援プログラム以外）'!P17 -> 0 | M15: ='2_個別入力シート（支援プログラム以外）'!Q17 -> 0 | U15: ='1_共通入力シート【記載必須】'!$B$7 -> 433641 | V15: =IF('1_共通入力シート【記載必須】'!$E$7="",'1_共通入力シート【記載必須】'!$D$7,'1_共通入力シート【記載必須】'!$E$7) -> 玉東町 | W15: ='1_共通入力シート【記載必須】'!$C$7 -> 市町村 | X15: ='2_個別入力シート（支援プログラム以外）'!FI17 -> 00:00:00 | Y15: ='2_個別入力シート（支援プログラム以外）'!FJ17 -> 00:00:00 | Z15: ='2_個別入力シート（支援プログラム以外）'!FK17 -> 0
D16: ⑫ | E16: =IF('2_個別入力シート（支援プログラム以外）'!I18<>"",'2_個別入力シート（支援プログラム以外）'!I18,"") ->  | F16: =IF('2_個別入力シート（支援プログラム以外）'!J18<>"",'2_個別入力シート（支援プログラム以外）'!J18,"") ->  | G16: =IF('2_個別入力シート（支援プログラム以外）'!K18<>"",'2_個別入力シート（支援プログラム以外）'!K18,"") ->  | H16: =IF('2_個別入力シート（支援プログラム以外）'!L18<>"",'2_個別入力シート（支援プログラム以外）'!L18,"") ->  | I16: =IF('2_個別入力シート（支援プログラム以外）'!M18<>"",'2_個別入力シート（支援プログラム以外）'!M18,"") ->  | J16: =IF('2_個別入力シート（支援プログラム以外）'!N18<>"",'2_個別入力シート（支援プログラム以外）'!N18,"") ->  | K16: ='2_個別入力シート（支援プログラム以外）'!O18 -> 0 | L16: ='2_個別入力シート（支援プログラム以外）'!P18 -> 0 | M16: ='2_個別入力シート（支援プログラム以外）'!Q18 -> 0 | U16: ='1_共通入力シート【記載必須】'!$B$7 -> 433641 | V16: =IF('1_共通入力シート【記載必須】'!$E$7="",'1_共通入力シート【記載必須】'!$D$7,'1_共通入力シート【記載必須】'!$E$7) -> 玉東町 | W16: ='1_共通入力シート【記載必須】'!$C$7 -> 市町村 | X16: ='2_個別入力シート（支援プログラム以外）'!FI18 -> 00:00:00 | Y16: ='2_個別入力シート（支援プログラム以外）'!FJ18 -> 00:00:00 | Z16: ='2_個別入力シート（支援プログラム以外）'!FK18 -> 0
D17: ⑬ | E17: =IF('2_個別入力シート（支援プログラム以外）'!I19<>"",'2_個別入力シート（支援プログラム以外）'!I19,"") ->  | F17: =IF('2_個別入力シート（支援プログラム以外）'!J19<>"",'2_個別入力シート（支援プログラム以外）'!J19,"") ->  | G17: =IF('2_個別入力シート（支援プログラム以外）'!K19<>"",'2_個別入力シート（支援プログラム以外）'!K19,"") ->  | H17: =IF('2_個別入力シート（支援プログラム以外）'!L19<>"",'2_個別入力シート（支援プログラム以外）'!L19,"") ->  | I17: =IF('2_個別入力シート（支援プログラム以外）'!M19<>"",'2_個別入力シート（支援プログラム以外）'!M19,"") ->  | J17: =IF('2_個別入力シート（支援プログラム以外）'!N19<>"",'2_個別入力シート（支援プログラム以外）'!N19,"") ->  | K17: ='2_個別入力シート（支援プログラム以外）'!O19 -> 0 | L17: ='2_個別入力シート（支援プログラム以外）'!P19 -> 0 | M17: ='2_個別入力シート（支援プログラム以外）'!Q19 -> 0 | U17: ='1_共通入力シート【記載必須】'!$B$7 -> 433641 | V17: =IF('1_共通入力シート【記載必須】'!$E$7="",'1_共通入力シート【記載必須】'!$D$7,'1_共通入力シート【記載必須】'!$E$7) -> 玉東町 | W17: ='1_共通入力シート【記載必須】'!$C$7 -> 市町村 | X17: ='2_個別入力シート（支援プログラム以外）'!FI19 -> 00:00:00 | Y17: ='2_個別入力シート（支援プログラム以外）'!FJ19 -> 00:00:00 | Z17: ='2_個別入力シート（支援プログラム以外）'!FK19 -> 0
D18: ⑭ | E18: =IF('2_個別入力シート（支援プログラム以外）'!I20<>"",'2_個別入力シート（支援プログラム以外）'!I20,"") ->  | F18: =IF('2_個別入力シート（支援プログラム以外）'!J20<>"",'2_個別入力シート（支援プログラム以外）'!J20,"") ->  | G18: =IF('2_個別入力シート（支援プログラム以外）'!K20<>"",'2_個別入力シート（支援プログラム以外）'!K20,"") ->  | H18: =IF('2_個別入力シート（支援プログラム以外）'!L20<>"",'2_個別入力シート（支援プログラム以外）'!L20,"") ->  | I18: =IF('2_個別入力シート（支援プログラム以外）'!M20<>"",'2_個別入力シート（支援プログラム以外）'!M20,"") ->  | J18: =IF('2_個別入力シート（支援プログラム以外）'!N20<>"",'2_個別入力シート（支援プログラム以外）'!N20,"") ->  | K18: ='2_個別入力シート（支援プログラム以外）'!O20 -> 0 | L18: ='2_個別入力シート（支援プログラム以外）'!P20 -> 0 | M18: ='2_個別入力シート（支援プログラム以外）'!Q20 -> 0 | U18: ='1_共通入力シート【記載必須】'!$B$7 -> 433641 | V18: =IF('1_共通入力シート【記載必須】'!$E$7="",'1_共通入力シート【記載必須】'!$D$7,'1_共通入力シート【記載必須】'!$E$7) -> 玉東町 | W18: ='1_共通入力シート【記載必須】'!$C$7 -> 市町村 | X18: ='2_個別入力シート（支援プログラム以外）'!FI20 -> 00:00:00 | Y18: ='2_個別入力シート（支援プログラム以外）'!FJ20 -> 00:00:00 | Z18: ='2_個別入力シート（支援プログラム以外）'!FK20 -> 0
D19: ⑮ | E19: =IF('2_個別入力シート（支援プログラム以外）'!I21<>"",'2_個別入力シート（支援プログラム以外）'!I21,"") ->  | F19: =IF('2_個別入力シート（支援プログラム以外）'!J21<>"",'2_個別入力シート（支援プログラム以外）'!J21,"") ->  | G19: =IF('2_個別入力シート（支援プログラム以外）'!K21<>"",'2_個別入力シート（支援プログラム以外）'!K21,"") ->  | H19: =IF('2_個別入力シート（支援プログラム以外）'!L21<>"",'2_個別入力シート（支援プログラム以外）'!L21,"") ->  | I19: =IF('2_個別入力シート（支援プログラム以外）'!M21<>"",'2_個別入力シート（支援プログラム以外）'!M21,"") ->  | J19: =IF('2_個別入力シート（支援プログラム以外）'!N21<>"",'2_個別入力シート（支援プログラム以外）'!N21,"") ->  | K19: ='2_個別入力シート（支援プログラム以外）'!O21 -> 0 | L19: ='2_個別入力シート（支援プログラム以外）'!P21 -> 0 | M19: ='2_個別入力シート（支援プログラム以外）'!Q21 -> 0 | U19: ='1_共通入力シート【記載必須】'!$B$7 -> 433641 | V19: =IF('1_共通入力シート【記載必須】'!$E$7="",'1_共通入力シート【記載必須】'!$D$7,'1_共通入力シート【記載必須】'!$E$7) -> 玉東町 | W19: ='1_共通入力シート【記載必須】'!$C$7 -> 市町村 | X19: ='2_個別入力シート（支援プログラム以外）'!FI21 -> 00:00:00 | Y19: ='2_個別入力シート（支援プログラム以外）'!FJ21 -> 00:00:00 | Z19: ='2_個別入力シート（支援プログラム以外）'!FK21 -> 0
D20: ⑯ | E20: =IF('2_個別入力シート（支援プログラム以外）'!I22<>"",'2_個別入力シート（支援プログラム以外）'!I22,"") ->  | F20: =IF('2_個別入力シート（支援プログラム以外）'!J22<>"",'2_個別入力シート（支援プログラム以外）'!J22,"") ->  | G20: =IF('2_個別入力シート（支援プログラム以外）'!K22<>"",'2_個別入力シート（支援プログラム以外）'!K22,"") ->  | H20: =IF('2_個別入力シート（支援プログラム以外）'!L22<>"",'2_個別入力シート（支援プログラム以外）'!L22,"") ->  | I20: =IF('2_個別入力シート（支援プログラム以外）'!M22<>"",'2_個別入力シート（支援プログラム以外）'!M22,"") ->  | J20: =IF('2_個別入力シート（支援プログラム以外）'!N22<>"",'2_個別入力シート（支援プログラム以外）'!N22,"") ->  | K20: ='2_個別入力シート（支援プログラム以外）'!O22 -> 0 | L20: ='2_個別入力シート（支援プログラム以外）'!P22 -> 0 | M20: ='2_個別入力シート（支援プログラム以外）'!Q22 -> 0 | U20: ='1_共通入力シート【記載必須】'!$B$7 -> 433641 | V20: =IF('1_共通入力シート【記載必須】'!$E$7="",'1_共通入力シート【記載必須】'!$D$7,'1_共通入力シート【記載必須】'!$E$7) -> 玉東町 | W20: ='1_共通入力シート【記載必須】'!$C$7 -> 市町村 | X20: ='2_個別入力シート（支援プログラム以外）'!FI22 -> 00:00:00 | Y20: ='2_個別入力シート（支援プログラム以外）'!FJ22 -> 00:00:00 | Z20: ='2_個別入力シート（支援プログラム以外）'!FK22 -> 0
D21: ⑰ | E21: =IF('2_個別入力シート（支援プログラム以外）'!I23<>"",'2_個別入力シート（支援プログラム以外）'!I23,"") ->  | F21: =IF('2_個別入力シート（支援プログラム以外）'!J23<>"",'2_個別入力シート（支援プログラム以外）'!J23,"") ->  | G21: =IF('2_個別入力シート（支援プログラム以外）'!K23<>"",'2_個別入力シート（支援プログラム以外）'!K23,"") ->  | H21: =IF('2_個別入力シート（支援プログラム以外）'!L23<>"",'2_個別入力シート（支援プログラム以外）'!L23,"") ->  | I21: =IF('2_個別入力シート（支援プログラム以外）'!M23<>"",'2_個別入力シート（支援プログラム以外）'!M23,"") ->  | J21: =IF('2_個別入力シート（支援プログラム以外）'!N23<>"",'2_個別入力シート（支援プログラム以外）'!N23,"") ->  | K21: ='2_個別入力シート（支援プログラム以外）'!O23 -> 0 | L21: ='2_個別入力シート（支援プログラム以外）'!P23 -> 0 | M21: ='2_個別入力シート（支援プログラム以外）'!Q23 -> 0 | U21: ='1_共通入力シート【記載必須】'!$B$7 -> 433641 | V21: =IF('1_共通入力シート【記載必須】'!$E$7="",'1_共通入力シート【記載必須】'!$D$7,'1_共通入力シート【記載必須】'!$E$7) -> 玉東町 | W21: ='1_共通入力シート【記載必須】'!$C$7 -> 市町村 | X21: ='2_個別入力シート（支援プログラム以外）'!FI23 -> 00:00:00 | Y21: ='2_個別入力シート（支援プログラム以外）'!FJ23 -> 00:00:00 | Z21: ='2_個別入力シート（支援プログラム以外）'!FK23 -> 0
D22: ⑱ | E22: =IF('2_個別入力シート（支援プログラム以外）'!I24<>"",'2_個別入力シート（支援プログラム以外）'!I24,"") ->  | F22: =IF('2_個別入力シート（支援プログラム以外）'!J24<>"",'2_個別入力シート（支援プログラム以外）'!J24,"") ->  | G22: =IF('2_個別入力シート（支援プログラム以外）'!K24<>"",'2_個別入力シート（支援プログラム以外）'!K24,"") ->  | H22: =IF('2_個別入力シート（支援プログラム以外）'!L24<>"",'2_個別入力シート（支援プログラム以外）'!L24,"") ->  | I22: =IF('2_個別入力シート（支援プログラム以外）'!M24<>"",'2_個別入力シート（支援プログラム以外）'!M24,"") ->  | J22: =IF('2_個別入力シート（支援プログラム以外）'!N24<>"",'2_個別入力シート（支援プログラム以外）'!N24,"") ->  | K22: ='2_個別入力シート（支援プログラム以外）'!O24 -> 0 | L22: ='2_個別入力シート（支援プログラム以外）'!P24 -> 0 | M22: ='2_個別入力シート（支援プログラム以外）'!Q24 -> 0 | U22: ='1_共通入力シート【記載必須】'!$B$7 -> 433641 | V22: =IF('1_共通入力シート【記載必須】'!$E$7="",'1_共通入力シート【記載必須】'!$D$7,'1_共通入力シート【記載必須】'!$E$7) -> 玉東町 | W22: ='1_共通入力シート【記載必須】'!$C$7 -> 市町村 | X22: ='2_個別入力シート（支援プログラム以外）'!FI24 -> 00:00:00 | Y22: ='2_個別入力シート（支援プログラム以外）'!FJ24 -> 00:00:00 | Z22: ='2_個別入力シート（支援プログラム以外）'!FK24 -> 0
D23: ⑲ | E23: =IF('2_個別入力シート（支援プログラム以外）'!I25<>"",'2_個別入力シート（支援プログラム以外）'!I25,"") ->  | F23: =IF('2_個別入力シート（支援プログラム以外）'!J25<>"",'2_個別入力シート（支援プログラム以外）'!J25,"") ->  | G23: =IF('2_個別入力シート（支援プログラム以外）'!K25<>"",'2_個別入力シート（支援プログラム以外）'!K25,"") ->  | H23: =IF('2_個別入力シート（支援プログラム以外）'!L25<>"",'2_個別入力シート（支援プログラム以外）'!L25,"") ->  | I23: =IF('2_個別入力シート（支援プログラム以外）'!M25<>"",'2_個別入力シート（支援プログラム以外）'!M25,"") ->  | J23: =IF('2_個別入力シート（支援プログラム以外）'!N25<>"",'2_個別入力シート（支援プログラム以外）'!N25,"") ->  | K23: ='2_個別入力シート（支援プログラム以外）'!O25 -> 0 | L23: ='2_個別入力シート（支援プログラム以外）'!P25 -> 0 | M23: ='2_個別入力シート（支援プログラム以外）'!Q25 -> 0 | U23: ='1_共通入力シート【記載必須】'!$B$7 -> 433641 | V23: =IF('1_共通入力シート【記載必須】'!$E$7="",'1_共通入力シート【記載必須】'!$D$7,'1_共通入力シート【記載必須】'!$E$7) -> 玉東町 | W23: ='1_共通入力シート【記載必須】'!$C$7 -> 市町村 | X23: ='2_個別入力シート（支援プログラム以外）'!FI25 -> 00:00:00 | Y23: ='2_個別入力シート（支援プログラム以外）'!FJ25 -> 00:00:00 | Z23: ='2_個別入力シート（支援プログラム以外）'!FK25 -> 0
D24: ='3_個別入力シート（支援プログラム）'!B7 -> 支援プ① | E24: =IF('3_個別入力シート（支援プログラム）'!I7<>"",'3_個別入力シート（支援プログラム）'!I7,"") -> R7 | F24: =IF('3_個別入力シート（支援プログラム）'!J7<>"",'3_個別入力シート（支援プログラム）'!J7,"") -> 結婚・妊娠・共育ての相談機会提供・支援プログラム | G24: =IF('3_個別入力シート（支援プログラム）'!K7<>"",'3_個別入力シート（支援プログラム）'!K7,"") -> 一般コース | H24: =IF('3_個別入力シート（支援プログラム）'!L7<>"",'3_個別入力シート（支援プログラム）'!L7,"") -> 4_1 結婚・妊娠・共育ての相談機会提供・支援プログラム（一般コース） | I24: =IF('3_個別入力シート（支援プログラム）'!M7<>"",'3_個別入力シート（支援プログラム）'!M7,"") -> 玉東町結婚新生活支援事業 | J24: =IF('3_個別入力シート（支援プログラム）'!N7<>"",'3_個別入力シート（支援プログラム）'!N7,"") -> 0.5 | K24: ='3_個別入力シート（支援プログラム）'!O7 -> 2400000 | L24: ='3_個別入力シート（支援プログラム）'!P7 -> 0 | M24: ='3_個別入力シート（支援プログラム）'!Q7 -> 2400000 | O24: =P24+Q24 -> 4 | P24: ='3_個別入力シート（支援プログラム）'!AN7 -> 2 | Q24: ='3_個別入力シート（支援プログラム）'!AO7 -> 2 | R24: ='3_個別入力シート（支援プログラム）'!AQ7 -> 2 | S24: ='3_個別入力シート（支援プログラム）'!AV7 -> 600000 | U24: ='1_共通入力シート【記載必須】'!$B$7 -> 433641 | V24: =IF('1_共通入力シート【記載必須】'!$E$7="",'1_共通入力シート【記載必須】'!$D$7,'1_共通入力シート【記載必須】'!$E$7) -> 玉東町 | W24: ='1_共通入力シート【記載必須】'!$C$7 -> 市町村 | X24: ='3_個別入力シート（支援プログラム）'!CO7 -> 2026-03-31 | Y24: ='3_個別入力シート（支援プログラム）'!CP7 -> 00:00:00 | Z24: ='3_個別入力シート（支援プログラム）'!CQ7 -> 0

Sheet 個票①（支援プログラム以外）
A1: 別紙様式第１ 様式２ | AF1: 個票 | AG1: ① | AK1: データ整理用欄
E3: =IF(AK3="R8","（令和８年度予算分）",IF(AK3="R7","（令和７年度予算分）","")) ->  | M3: 地域少子化対策重点推進交付金 実施計画書 | AB3: =IF(AL3="都道府県","（都道府県分）",IF(AL3="政令指定都市","（市町村分）",IF(AL3="市町村","（市町村分）",""))) -> （市町村分） | AH3: 個票 | AK3: =VLOOKUP(AG1,'2_個別入力シート（支援プログラム以外）'!$B$7:$GI$25,'2_個別入力シート（支援プログラム以外）'!I6,0) -> 0 | AL3: =VLOOKUP(AG1,'2_個別入力シート（支援プログラム以外）'!$B$7:$GI$25,'2_個別入力シート（支援プログラム以外）'!D6,0) -> 市町村
N5: 自治体名 | T5: =VLOOKUP(AG1,'2_個別入力シート（支援プログラム以外）'!$B$7:$GI$25,'2_個別入力シート（支援プログラム以外）'!G6,0)& "" -> 熊本県玉東町
N6: 本事業の担当部局名 | T6: =VLOOKUP(AG1,'2_個別入力シート（支援プログラム以外）'!$B$7:$GI$25,'2_個別入力シート（支援プログラム以外）'!H6,0)& "" -> 
A8: 事業メニュー | H8: =VLOOKUP(AG1,'2_個別入力シート（支援プログラム以外）'!$B$7:$GI$25,'2_個別入力シート（支援プログラム以外）'!J6,0) -> 0
A10: 区分 | H10: =VLOOKUP(AG1,'2_個別入力シート（支援プログラム以外）'!$B$7:$GI$25,'2_個別入力シート（支援プログラム以外）'!K6,0) -> 0
A12: 関連事業メニュー | H12: =VLOOKUP(AG1,'2_個別入力シート（支援プログラム以外）'!$B$7:$GI$25,'2_個別入力シート（支援プログラム以外）'!L6,0) -> 0
A14: 個別事業名 | H14: =VLOOKUP(AG1,'2_個別入力シート（支援プログラム以外）'!$B$7:$GI$25,'2_個別入力シート（支援プログラム以外）'!M6,0) -> 0 | AB14: 新規／継続 (一般財源での 実施も含む) | AF14: =VLOOKUP(AG1,'2_個別入力シート（支援プログラム以外）'!$B$7:$GI$25,'2_個別入力シート（支援プログラム以外）'!BE6,0) -> 0
A17: 実施期間 | H17: =VLOOKUP(AG1,'2_個別入力シート（支援プログラム以外）'!$B$7:$GI$25,'2_個別入力シート（支援プログラム以外）'!BC6,0) &"" ->  | Q17: ～ | S17: =VLOOKUP(AG1,'2_個別入力シート（支援プログラム以外）'!$B$7:$GI$25,'2_個別入力シート（支援プログラム以外）'!BD6,0) &"" ->  | AB17: 事業開始年度 | AF17: =DATEVALUE(AK17&"年12月31日") ->  | AK17: =VLOOKUP(AG1,'2_個別入力シート（支援プログラム以外）'!$B$7:$GI$25,'2_個別入力シート（支援プログラム以外）'!BF6,0)& "" -> 
A19: 総事業費（Ａ）（円） | H19: =AK19*1 -> 0 | Q19: 寄付金その他の収入予定額（Ｂ）（円） | W19: =AL19*1 -> 0 | AB19: 差引額（Ａ-Ｂ）（円） | AF19: =AM19*1 -> 0 | AK19: =VLOOKUP(AG1,'2_個別入力シート（支援プログラム以外）'!$B$7:$GI$25,'2_個別入力シート（支援プログラム以外）'!O6,0) -> 0 | AL19: =VLOOKUP(AG1,'2_個別入力シート（支援プログラム以外）'!$B$7:$GI$25,'2_個別入力シート（支援プログラム以外）'!P6,0) -> 0 | AM19: =VLOOKUP(AG1,'2_個別入力シート（支援プログラム以外）'!$B$7:$GI$25,'2_個別入力シート（支援プログラム以外）'!R6,0) -> 0
A21: 対象経費支出予定額（円） ※補助率を乗じる前の額 | H21: =AK21*1 -> 0 | AK21: =VLOOKUP(AG1,'2_個別入力シート（支援プログラム以外）'!$B$7:$GI$25,'2_個別入力シート（支援プログラム以外）'!Q6,0) -> 0
A23: 費用内訳（円） | C23: 区分 | H23: 諸謝金 | L23: 賃金 | Q23: 報償費 | V23: 旅費 | AA23: 需用費 | AF23: 役務費
C24: 総事業費 | H24: =AK24*1 -> 0 | L24: =AL24*1 -> 0 | Q24: =AM24*1 -> 0 | V24: =AN24*1 -> 0 | AA24: =AO24*1 -> 0 | AF24: =AP24*1 -> 0 | AK24: =VLOOKUP(AG1,'2_個別入力シート（支援プログラム以外）'!$B$7:$GI$25,'2_個別入力シート（支援プログラム以外）'!S6,0) -> 0 | AL24: =VLOOKUP(AG1,'2_個別入力シート（支援プログラム以外）'!$B$7:$GI$25,'2_個別入力シート（支援プログラム以外）'!V6,0) -> 0 | AM24: =VLOOKUP(AG1,'2_個別入力シート（支援プログラム以外）'!$B$7:$GI$25,'2_個別入力シート（支援プログラム以外）'!Y6,0) -> 0 | AN24: =VLOOKUP(AG1,'2_個別入力シート（支援プログラム以外）'!$B$7:$GI$25,'2_個別入力シート（支援プログラム以外）'!AB6,0) -> 0 | AO24: =VLOOKUP(AG1,'2_個別入力シート（支援プログラム以外）'!$B$7:$GI$25,'2_個別入力シート（支援プログラム以外）'!AE6,0) -> 0 | AP24: =VLOOKUP(AG1,'2_個別入力シート（支援プログラム以外）'!$B$7:$GI$25,'2_個別入力シート（支援プログラム以外）'!AH6,0) -> 0
C25: 対象経費支出予定額 | H25: =AK25*1 -> 0 | L25: =AL25*1 -> 0 | Q25: =AM25*1 -> 0 | V25: =AN25*1 -> 0 | AA25: =AO25*1 -> 0 | AF25: =AP25*1 -> 0 | AK25: =VLOOKUP(AG1,'2_個別入力シート（支援プログラム以外）'!$B$7:$GI$25,'2_個別入力シート（支援プログラム以外）'!T6,0) -> 0 | AL25: =VLOOKUP(AG1,'2_個別入力シート（支援プログラム以外）'!$B$7:$GI$25,'2_個別入力シート（支援プログラム以外）'!W6,0) -> 0 | AM25: =VLOOKUP(AG1,'2_個別入力シート（支援プログラム以外）'!$B$7:$GI$25,'2_個別入力シート（支援プログラム以外）'!Z6,0) -> 0 | AN25: =VLOOKUP(AG1,'2_個別入力シート（支援プログラム以外）'!$B$7:$GI$25,'2_個別入力シート（支援プログラム以外）'!AC6,0) -> 0 | AO25: =VLOOKUP(AG1,'2_個別入力シート（支援プログラム以外）'!$B$7:$GI$25,'2_個別入力シート（支援プログラム以外）'!AF6,0) -> 0 | AP25: =VLOOKUP(AG1,'2_個別入力シート（支援プログラム以外）'!$B$7:$GI$25,'2_個別入力シート（支援プログラム以外）'!AI6,0) -> 0
C26: 対象外経費支出予定額 | H26: 0 | L26: 0 | Q26: 0 | V26: 0 | AA26: 0 | AF26: 0 | AK26: =VLOOKUP(AG1,'2_個別入力シート（支援プログラム以外）'!$B$7:$GI$25,'2_個別入力シート（支援プログラム以外）'!U6,0) -> 0 | AL26: =VLOOKUP(AG1,'2_個別入力シート（支援プログラム以外）'!$B$7:$GI$25,'2_個別入力シート（支援プログラム以外）'!X6,0) -> 0 | AM26: =VLOOKUP(AG1,'2_個別入力シート（支援プログラム以外）'!$B$7:$GI$25,'2_個別入力シート（支援プログラム以外）'!AA6,0) -> 0 | AN26: =VLOOKUP(AG1,'2_個別入力シート（支援プログラム以外）'!$B$7:$GI$25,'2_個別入力シート（支援プログラム以外）'!AD6,0) -> 0 | AO26: =VLOOKUP(AG1,'2_個別入力シート（支援プログラム以外）'!$B$7:$GI$25,'2_個別入力シート（支援プログラム以外）'!AG6,0) -> 0 | AP26: =VLOOKUP(AG1,'2_個別入力シート（支援プログラム以外）'!$B$7:$GI$25,'2_個別入力シート（支援プログラム以外）'!AJ6,0) -> 0
C27: 区分 | H27: 委託料 | L27: 使用料及び賃借料 | Q27: 負担金 | V27: 補助金 | AF27: 計
C28: 総事業費 | H28: =AK28*1 -> 0 | L28: =AL28*1 -> 0 | Q28: =AM28*1 -> 0 | V28: =AN28*1 -> 0 | AF28: =AP28*1 -> 0 | AK28: =VLOOKUP(AG1,'2_個別入力シート（支援プログラム以外）'!$B$7:$GI$25,'2_個別入力シート（支援プログラム以外）'!AK6,0) -> 0 | AL28: =VLOOKUP(AG1,'2_個別入力シート（支援プログラム以外）'!$B$7:$GI$25,'2_個別入力シート（支援プログラム以外）'!AN6,0) -> 0 | AM28: =VLOOKUP(AG1,'2_個別入力シート（支援プログラム以外）'!$B$7:$GI$25,'2_個別入力シート（支援プログラム以外）'!AQ6,0) -> 0 | AN28: =VLOOKUP(AG1,'2_個別入力シート（支援プログラム以外）'!$B$7:$GI$25,'2_個別入力シート（支援プログラム以外）'!AT6,0) -> 0 | AP28: =VLOOKUP(AG1,'2_個別入力シート（支援プログラム以外）'!$B$7:$GI$25,'2_個別入力シート（支援プログラム以外）'!AZ6,0)& "" -> 0
C29: 対象経費支出予定額 | H29: =AK29*1 -> 0 | L29: =AL29*1 -> 0 | Q29: =AM29*1 -> 0 | V29: =AN29*1 -> 0 | AF29: =AP29*1 -> 0 | AK29: =VLOOKUP(AG1,'2_個別入力シート（支援プログラム以外）'!$B$7:$GI$25,'2_個別入力シート（支援プログラム以外）'!AL6,0) -> 0 | AL29: =VLOOKUP(AG1,'2_個別入力シート（支援プログラム以外）'!$B$7:$GI$25,'2_個別入力シート（支援プログラム以外）'!AO6,0) -> 0 | AM29: =VLOOKUP(AG1,'2_個別入力シート（支援プログラム以外）'!$B$7:$GI$25,'2_個別入力シート（支援プログラム以外）'!AR6,0) -> 0 | AN29: =VLOOKUP(AG1,'2_個別入力シート（支援プログラム以外）'!$B$7:$GI$25,'2_個別入力シート（支援プログラム以外）'!AU6,0) -> 0 | AP29: =VLOOKUP(AG1,'2_個別入力シート（支援プログラム以外）'!$B$7:$GI$25,'2_個別入力シート（支援プログラム以外）'!BA6,0)& "" -> 0
C30: 対象外経費支出予定額 | H30: 0 | L30: 0 | Q30: 0 | V30: 0 | AF30: 0 | AK30: =VLOOKUP(AG1,'2_個別入力シート（支援プログラム以外）'!$B$7:$GI$25,'2_個別入力シート（支援プログラム以外）'!AM6,0) -> 0 | AL30: =VLOOKUP(AG1,'2_個別入力シート（支援プログラム以外）'!$B$7:$GI$25,'2_個別入力シート（支援プログラム以外）'!AP6,0) -> 0 | AM30: =VLOOKUP(AG1,'2_個別入力シート（支援プログラム以外）'!$B$7:$GI$25,'2_個別入力シート（支援プログラム以外）'!AS6,0) -> 0 | AN30: =VLOOKUP(AG1,'2_個別入力シート（支援プログラム以外）'!$B$7:$GI$25,'2_個別入力シート（支援プログラム以外）'!AV6,0) -> 0 | AP30: =VLOOKUP(AG1,'2_個別入力シート（支援プログラム以外）'!$B$7:$GI$25,'2_個別入力シート（支援プログラム以外）'!BB6,0)& "" -> 0
C31: =IF(OR(AK31="NG",AL31="NG"),"---","〇") -> --- | H31: ※上記対象経費支出予定額に本交付金の対象外となる経費は含まれていない。 | AK31: =VLOOKUP(AG1,'2_個別入力シート（支援プログラム以外）'!$B$7:$GI$25,'2_個別入力シート（支援プログラム以外）'!FL6,0)& "" -> NG | AL31: =VLOOKUP(AG1,'2_個別入力シート（支援プログラム以外）'!$B$7:$GI$25,'2_個別入力シート（支援プログラム以外）'!FY6,0)& "" -> OK
A32: 自治体における少子化対策の全体像及びその中での本個別事業の位置付け | H32: ＜自治体における少子化対策の全体像＞※全事業共通
H33: =_xlfn.XLOOKUP(AG1, '2_個別入力シート（支援プログラム以外）'!$B$7:$B$25, '2_個別入力シート（支援プログラム以外）'!BI$7:BI$25, "") -> 結婚・妊娠・共育ての相談機会提供・支援プログラムを実施し、結婚に伴う新生活を経済的に支援するため新生活費用に対して補助を行う。 また、荒尾・玉名地域結婚サポートセンター（有明広域行政事務組合）と連携して婚活事業を実施し、出会いの場の創出を重点的に行う。事業実施後には、対象者にアンケート調査等を行い、次年度以降により効果的な取組を行えるように留意する。
H37: ＜本個別事業の位置付け＞
H38: =_xlfn.XLOOKUP(AG1, '2_個別入力シート（支援プログラム以外）'!$B$7:$B$25, '2_個別入力シート（支援プログラム以外）'!BJ$7:BJ$25, "") -> 0
A41: 個別事業の内容 | C41: 番号 | E41: 項目 | J41: 内容
C43: 1 | E43: =VLOOKUP(AG1,'2_個別入力シート（支援プログラム以外）'!$B$7:$GI$25,'2_個別入力シート（支援プログラム以外）'!BK6,0)& "" ->  | J43: =VLOOKUP(AG1,'2_個別入力シート（支援プログラム以外）'!$B$7:$GI$25,'2_個別入力シート（支援プログラム以外）'!BL6,0)& "" -> 
C47: 2 | E47: =VLOOKUP(AG1,'2_個別入力シート（支援プログラム以外）'!$B$7:$GI$25,'2_個別入力シート（支援プログラム以外）'!BM6,0)& "" ->  | J47: =VLOOKUP(AG1,'2_個別入力シート（支援プログラム以外）'!$B$7:$GI$25,'2_個別入力シート（支援プログラム以外）'!BN6,0)& "" -> 
C51: 3 | E51: =VLOOKUP(AG1,'2_個別入力シート（支援プログラム以外）'!$B$7:$GI$25,'2_個別入力シート（支援プログラム以外）'!BO6,0)& "" ->  | J51: =VLOOKUP(AG1,'2_個別入力シート（支援プログラム以外）'!$B$7:$GI$25,'2_個別入力シート（支援プログラム以外）'!BP6,0)& "" -> 
C55: 4 | E55: =VLOOKUP(AG1,'2_個別入力シート（支援プログラム以外）'!$B$7:$GI$25,'2_個別入力シート（支援プログラム以外）'!BQ6,0)& "" ->  | J55: =VLOOKUP(AG1,'2_個別入力シート（支援プログラム以外）'!$B$7:$GI$25,'2_個別入力シート（支援プログラム以外）'!BR6,0)& "" -> 
C59: 5 | E59: =VLOOKUP(AG1,'2_個別入力シート（支援プログラム以外）'!$B$7:$GI$25,'2_個別入力シート（支援プログラム以外）'!BS6,0)& "" ->  | J59: =VLOOKUP(AG1,'2_個別入力シート（支援プログラム以外）'!$B$7:$GI$25,'2_個別入力シート（支援プログラム以外）'!BT6,0)& "" -> 
C63: 6 | E63: =VLOOKUP(AG1,'2_個別入力シート（支援プログラム以外）'!$B$7:$GI$25,'2_個別入力シート（支援プログラム以外）'!BU6,0)& "" ->  | J63: =VLOOKUP(AG1,'2_個別入力シート（支援プログラム以外）'!$B$7:$GI$25,'2_個別入力シート（支援プログラム以外）'!BV6,0)& "" -> 
C67: 7 | E67: =VLOOKUP(AG1,'2_個別入力シート（支援プログラム以外）'!$B$7:$GI$25,'2_個別入力シート（支援プログラム以外）'!BW6,0)& "" ->  | J67: =VLOOKUP(AG1,'2_個別入力シート（支援プログラム以外）'!$B$7:$GI$25,'2_個別入力シート（支援プログラム以外）'!BX6,0)& "" -> 
C71: 8 | E71: =VLOOKUP(AG1,'2_個別入力シート（支援プログラム以外）'!$B$7:$GI$25,'2_個別入力シート（支援プログラム以外）'!BY6,0)& "" ->  | J71: =VLOOKUP(AG1,'2_個別入力シート（支援プログラム以外）'!$B$7:$GI$25,'2_個別入力シート（支援プログラム以外）'!BZ6,0)& "" -> 
C75: 9 | E75: =VLOOKUP(AG1,'2_個別入力シート（支援プログラム以外）'!$B$7:$GI$25,'2_個別入力シート（支援プログラム以外）'!CA6,0)& "" ->  | J75: =VLOOKUP(AG1,'2_個別入力シート（支援プログラム以外）'!$B$7:$GI$25,'2_個別入力シート（支援プログラム以外）'!CB6,0)& "" -> 
C79: 10 | E79: =VLOOKUP(AG1,'2_個別入力シート（支援プログラム以外）'!$B$7:$GI$25,'2_個別入力シート（支援プログラム以外）'!CC6,0)& "" ->  | J79: =VLOOKUP(AG1,'2_個別入力シート（支援プログラム以外）'!$B$7:$GI$25,'2_個別入力シート（支援プログラム以外）'!CD6,0)& "" -> 
C83: ＜過年度の本個別事業で浮かび上がった課題の分析及びそれに対する取組（ステップアップ）＞
C84: =VLOOKUP(AG1,'2_個別入力シート（支援プログラム以外）'!$B$7:$GI$25,'2_個別入力シート（支援プログラム以外）'!CE6,0)& "" -> 
A89: 少子化対策全体の重要業績評価指標(KPI)及び定量的成果目標 ※全事業共通 | H89: KPI項目 | Y89: 単位 | AA89: 目標値（時点） | AF89: 現状値（時点）
H90: =VLOOKUP(AG1,'2_個別入力シート（支援プログラム以外）'!$B$7:$GI$25,'2_個別入力シート（支援プログラム以外）'!CF6,0)& "" -> 荒尾・玉名地域結婚サポートセンター新規会員数 | Y90: =VLOOKUP(AG1,'2_個別入力シート（支援プログラム以外）'!$B$7:$GI$25,'2_個別入力シート（支援プログラム以外）'!CG6,0)& "" -> 人 | AA90: =VLOOKUP(AG1,'2_個別入力シート（支援プログラム以外）'!$B$7:$GI$25,'2_個別入力シート（支援プログラム以外）'!CH6,0)& "" -> 1 （R7年度～R11年度） | AF90: =VLOOKUP(AG1,'2_個別入力シート（支援プログラム以外）'!$B$7:$GI$25,'2_個別入力シート（支援プログラム以外）'!CI6,0)& "" -> 0 （R6年度 1月時点）
H91: =VLOOKUP(AG1,'2_個別入力シート（支援プログラム以外）'!$B$7:$GI$25,'2_個別入力シート（支援プログラム以外）'!CJ6,0)& "" -> 不妊治療補助件数 | Y91: =VLOOKUP(AG1,'2_個別入力シート（支援プログラム以外）'!$B$7:$GI$25,'2_個別入力シート（支援プログラム以外）'!CK6,0)& "" -> 件 | AA91: =VLOOKUP(AG1,'2_個別入力シート（支援プログラム以外）'!$B$7:$GI$25,'2_個別入力シート（支援プログラム以外）'!CL6,0)& "" -> 5 （R7年度～R11年度） | AF91: =VLOOKUP(AG1,'2_個別入力シート（支援プログラム以外）'!$B$7:$GI$25,'2_個別入力シート（支援プログラム以外）'!CM6,0)& "" -> 3 （R6.4～R7.2）
H92: =VLOOKUP(AG1,'2_個別入力シート（支援プログラム以外）'!$B$7:$GI$25,'2_個別入力シート（支援プログラム以外）'!CN6,0)& "" -> 子育て関連講座参加者数 | Y92: =VLOOKUP(AG1,'2_個別入力シート（支援プログラム以外）'!$B$7:$GI$25,'2_個別入力シート（支援プログラム以外）'!CO6,0)& "" -> 人 | AA92: =VLOOKUP(AG1,'2_個別入力シート（支援プログラム以外）'!$B$7:$GI$25,'2_個別入力シート（支援プログラム以外）'!CP6,0)& "" -> 488 （R7年度～R11年度） | AF92: =VLOOKUP(AG1,'2_個別入力シート（支援プログラム以外）'!$B$7:$GI$25,'2_個別入力シート（支援プログラム以外）'!CQ6,0)& "" -> 487 （R6.4～R7.1）
H93: =VLOOKUP(AG1,'2_個別入力シート（支援プログラム以外）'!$B$7:$GI$25,'2_個別入力シート（支援プログラム以外）'!CR6,0)& "" -> こども家庭センターにおける相談支援件数 | Y93: =VLOOKUP(AG1,'2_個別入力シート（支援プログラム以外）'!$B$7:$GI$25,'2_個別入力シート（支援プログラム以外）'!CS6,0)& "" -> 件 | AA93: =VLOOKUP(AG1,'2_個別入力シート（支援プログラム以外）'!$B$7:$GI$25,'2_個別入力シート（支援プログラム以外）'!CT6,0)& "" -> 60/年 （R7年度～R11年度） | AF93: =VLOOKUP(AG1,'2_個別入力シート（支援プログラム以外）'!$B$7:$GI$25,'2_個別入力シート（支援プログラム以外）'!CU6,0)& "" -> 47/年 （R6.4～R7.1）
H94: =VLOOKUP(AG1,'2_個別入力シート（支援プログラム以外）'!$B$7:$GI$25,'2_個別入力シート（支援プログラム以外）'!CV6,0)& "" ->  | Y94: =VLOOKUP(AG1,'2_個別入力シート（支援プログラム以外）'!$B$7:$GI$25,'2_個別入力シート（支援プログラム以外）'!CW6,0)& "" ->  | AA94: =VLOOKUP(AG1,'2_個別入力シート（支援プログラム以外）'!$B$7:$GI$25,'2_個別入力シート（支援プログラム以外）'!CX6,0)& "" ->  | AF94: =VLOOKUP(AG1,'2_個別入力シート（支援プログラム以外）'!$B$7:$GI$25,'2_個別入力シート（支援プログラム以外）'!CY6,0)& "" -> 
A95: 参考指標 ※全事業共通 | H95: 項目 | Y95: 単位 | AA95: 直近の実績値（時点）
H96: 合計特殊出生率 | AA96: =VLOOKUP(AG1,'2_個別入力シート（支援プログラム以外）'!$B$7:$GI$25,'2_個別入力シート（支援プログラム以外）'!DB6,0)& "" -> 2.44 （R6年）
H97: 婚姻件数 | Y97: 件 | AA97: =VLOOKUP(AG1,'2_個別入力シート（支援プログラム以外）'!$B$7:$GI$25,'2_個別入力シート（支援プログラム以外）'!DE6,0)& "" -> 22 （R6年）
H98: 婚姻率 | AA98: =VLOOKUP(AG1,'2_個別入力シート（支援プログラム以外）'!$B$7:$GI$25,'2_個別入力シート（支援プログラム以外）'!DH6,0)& "" -> 4.27 （R6年）
A99: 個別事業の重要業績評価指標(KPI)及び定量的成果目標 | H99: KPI項目 | Y99: 単位 | AA99: 目標値（時点） | AF99: 現状値（時点）
H100: 番号 | J100: 項目
J101: （アウトプット）
H102: ① | J102: =VLOOKUP(AG1,'2_個別入力シート（支援プログラム以外）'!$B$7:$GI$25,'2_個別入力シート（支援プログラム以外）'!DI6,0)& "" ->  | Y102: =VLOOKUP(AG1,'2_個別入力シート（支援プログラム以外）'!$B$7:$GI$25,'2_個別入力シート（支援プログラム以外）'!DJ6,0)& "" ->  | AA102: =VLOOKUP(AG1,'2_個別入力シート（支援プログラム以外）'!$B$7:$GI$25,'2_個別入力シート（支援プログラム以外）'!DK6,0)& "" ->  | AF102: =VLOOKUP(AG1,'2_個別入力シート（支援プログラム以外）'!$B$7:$GI$25,'2_個別入力シート（支援プログラム以外）'!DL6,0)& "" -> 
H103: ② | J103: =VLOOKUP(AG1,'2_個別入力シート（支援プログラム以外）'!$B$7:$GI$25,'2_個別入力シート（支援プログラム以外）'!DM6,0)& "" ->  | Y103: =VLOOKUP(AG1,'2_個別入力シート（支援プログラム以外）'!$B$7:$GI$25,'2_個別入力シート（支援プログラム以外）'!DN6,0)& "" ->  | AA103: =VLOOKUP(AG1,'2_個別入力シート（支援プログラム以外）'!$B$7:$GI$25,'2_個別入力シート（支援プログラム以外）'!DO6,0)& "" ->  | AF103: =VLOOKUP(AG1,'2_個別入力シート（支援プログラム以外）'!$B$7:$GI$25,'2_個別入力シート（支援プログラム以外）'!DP6,0)& "" -> 
H104: ③ | J104: =VLOOKUP(AG1,'2_個別入力シート（支援プログラム以外）'!$B$7:$GI$25,'2_個別入力シート（支援プログラム以外）'!DQ6,0)& "" ->  | Y104: =VLOOKUP(AG1,'2_個別入力シート（支援プログラム以外）'!$B$7:$GI$25,'2_個別入力シート（支援プログラム以外）'!DR6,0)& "" ->  | AA104: =VLOOKUP(AG1,'2_個別入力シート（支援プログラム以外）'!$B$7:$GI$25,'2_個別入力シート（支援プログラム以外）'!DS6,0)& "" ->  | AF104: =VLOOKUP(AG1,'2_個別入力シート（支援プログラム以外）'!$B$7:$GI$25,'2_個別入力シート（支援プログラム以外）'!DT6,0)& "" -> 
H105: ④ | J105: =VLOOKUP(AG1,'2_個別入力シート（支援プログラム以外）'!$B$7:$GI$25,'2_個別入力シート（支援プログラム以外）'!DU6,0)& "" ->  | Y105: =VLOOKUP(AG1,'2_個別入力シート（支援プログラム以外）'!$B$7:$GI$25,'2_個別入力シート（支援プログラム以外）'!DV6,0)& "" ->  | AA105: =VLOOKUP(AG1,'2_個別入力シート（支援プログラム以外）'!$B$7:$GI$25,'2_個別入力シート（支援プログラム以外）'!DW6,0)& "" ->  | AF105: =VLOOKUP(AG1,'2_個別入力シート（支援プログラム以外）'!$B$7:$GI$25,'2_個別入力シート（支援プログラム以外）'!DX6,0)& "" -> 
H106: ⑤ | J106: =VLOOKUP(AG1,'2_個別入力シート（支援プログラム以外）'!$B$7:$GI$25,'2_個別入力シート（支援プログラム以外）'!DY6,0)& "" ->  | Y106: =VLOOKUP(AG1,'2_個別入力シート（支援プログラム以外）'!$B$7:$GI$25,'2_個別入力シート（支援プログラム以外）'!DZ6,0)& "" ->  | AA106: =VLOOKUP(AG1,'2_個別入力シート（支援プログラム以外）'!$B$7:$GI$25,'2_個別入力シート（支援プログラム以外）'!EA6,0)& "" ->  | AF106: =VLOOKUP(AG1,'2_個別入力シート（支援プログラム以外）'!$B$7:$GI$25,'2_個別入力シート（支援プログラム以外）'!EB6,0)& "" -> 
J107: （アウトカム)
H108: ① | J108: 交付金事業に対する事業対象者（住民等）の満足度（該当事業に限る。） | Y108: ％ | AA108: =VLOOKUP(AG1,'2_個別入力シート（支援プログラム以外）'!$B$7:$GI$25,'2_個別入力シート（支援プログラム以外）'!EE6,0)& "" ->  | AF108: =VLOOKUP(AG1,'2_個別入力シート（支援プログラム以外）'!$B$7:$GI$25,'2_個別入力シート（支援プログラム以外）'!EF6,0)& "" -> 
H109: ② | J109: 希望どおりの結婚に向けて後押ししてくれたと感じた人の割合（該当事業に限る。） | Y109: ％ | AA109: =VLOOKUP(AG1,'2_個別入力シート（支援プログラム以外）'!$B$7:$GI$25,'2_個別入力シート（支援プログラム以外）'!EI6,0)& "" ->  | AF109: =VLOOKUP(AG1,'2_個別入力シート（支援プログラム以外）'!$B$7:$GI$25,'2_個別入力シート（支援プログラム以外）'!EJ6,0)& "" -> 
H110: ③ | J110: 結婚、妊娠・出産、子育てに前向きになったと感じた人の割合（該当事業に限る。） | Y110: ％ | AA110: =VLOOKUP(AG1,'2_個別入力シート（支援プログラム以外）'!$B$7:$GI$25,'2_個別入力シート（支援プログラム以外）'!EM6,0)& "" ->  | AF110: =VLOOKUP(AG1,'2_個別入力シート（支援プログラム以外）'!$B$7:$GI$25,'2_個別入力シート（支援プログラム以外）'!EN6,0)& "" -> 
H111: ④ | J111: =VLOOKUP(AG1,'2_個別入力シート（支援プログラム以外）'!$B$7:$GI$25,'2_個別入力シート（支援プログラム以外）'!EO6,0)& "" ->  | Y111: =VLOOKUP(AG1,'2_個別入力シート（支援プログラム以外）'!$B$7:$GI$25,'2_個別入力シート（支援プログラム以外）'!EP6,0)& "" ->  | AA111: =VLOOKUP(AG1,'2_個別入力シート（支援プログラム以外）'!$B$7:$GI$25,'2_個別入力シート（支援プログラム以外）'!EQ6,0)& "" ->  | AF111: =VLOOKUP(AG1,'2_個別入力シート（支援プログラム以外）'!$B$7:$GI$25,'2_個別入力シート（支援プログラム以外）'!ER6,0)& "" -> 
H112: ⑤ | J112: =VLOOKUP(AG1,'2_個別入力シート（支援プログラム以外）'!$B$7:$GI$25,'2_個別入力シート（支援プログラム以外）'!ES6,0)& "" ->  | Y112: =VLOOKUP(AG1,'2_個別入力シート（支援プログラム以外）'!$B$7:$GI$25,'2_個別入力シート（支援プログラム以外）'!ET6,0)& "" ->  | AA112: =VLOOKUP(AG1,'2_個別入力シート（支援プログラム以外）'!$B$7:$GI$25,'2_個別入力シート（支援プログラム以外）'!EU6,0)& "" ->  | AF112: =VLOOKUP(AG1,'2_個別入力シート（支援プログラム以外）'!$B$7:$GI$25,'2_個別入力シート（支援プログラム以外）'!EV6,0)& "" -> 
H113: ⑥ | J113: =VLOOKUP(AG1,'2_個別入力シート（支援プログラム以外）'!$B$7:$GI$25,'2_個別入力シート（支援プログラム以外）'!EW6,0)& "" ->  | Y113: =VLOOKUP(AG1,'2_個別入力シート（支援プログラム以外）'!$B$7:$GI$25,'2_個別入力シート（支援プログラム以外）'!EX6,0)& "" ->  | AA113: =VLOOKUP(AG1,'2_個別入力シート（支援プログラム以外）'!$B$7:$GI$25,'2_個別入力シート（支援プログラム以外）'!EY6,0)& "" ->  | AF113: =VLOOKUP(AG1,'2_個別入力シート（支援プログラム以外）'!$B$7:$GI$25,'2_個別入力シート（支援プログラム以外）'!EZ6,0)& "" -> 
H114: ⑦ | J114: =VLOOKUP(AG1,'2_個別入力シート（支援プログラム以外）'!$B$7:$GI$25,'2_個別入力シート（支援プログラム以外）'!FA6,0)& "" ->  | Y114: =VLOOKUP(AG1,'2_個別入力シート（支援プログラム以外）'!$B$7:$GI$25,'2_個別入力シート（支援プログラム以外）'!FB6,0)& "" ->  | AA114: =VLOOKUP(AG1,'2_個別入力シート（支援プログラム以外）'!$B$7:$GI$25,'2_個別入力シート（支援プログラム以外）'!FC6,0)& "" ->  | AF114: =VLOOKUP(AG1,'2_個別入力シート（支援プログラム以外）'!$B$7:$GI$25,'2_個別入力シート（支援プログラム以外）'!FD6,0)& "" -> 
H115: ⑧ | J115: =VLOOKUP(AG1,'2_個別入力シート（支援プログラム以外）'!$B$7:$GI$25,'2_個別入力シート（支援プログラム以外）'!FE6,0)& "" ->  | Y115: =VLOOKUP(AG1,'2_個別入力シート（支援プログラム以外）'!$B$7:$GI$25,'2_個別入力シート（支援プログラム以外）'!FF6,0)& "" ->  | AA115: =VLOOKUP(AG1,'2_個別入力シート（支援プログラム以外）'!$B$7:$GI$25,'2_個別入力シート（支援プログラム以外）'!FG6,0)& "" ->  | AF115: =VLOOKUP(AG1,'2_個別入力シート（支援プログラム以外）'!$B$7:$GI$25,'2_個別入力シート（支援プログラム以外）'!FH6,0)& "" -> 

Sheet 個票（支援プログラム）
A1: 別紙様式第１ 様式２ | AF1: 個票 | AG1: 支援プ① | AK1: データ整理用欄
E3: =IF(AK3="R8","（令和８年度予算分）",IF(AK3="R7","（令和７年度予算分）","")) -> （令和７年度予算分） | M3: 地域少子化対策重点推進交付金 実施計画書 | AB3: =IF(AL3="都道府県","（都道府県分）",IF(AL3="政令指定都市","（市町村分）",IF(AL3="市町村","（市町村分）",""))) -> （市町村分） | AH3: 個票 | AK3: =VLOOKUP(AG1,'3_個別入力シート（支援プログラム）'!$B$7:$CR$7,'3_個別入力シート（支援プログラム）'!I6,0) -> R7 | AL3: =VLOOKUP(AG1,'3_個別入力シート（支援プログラム）'!$B$7:$CR$7,'3_個別入力シート（支援プログラム）'!D6,0) -> 市町村
N5: 自治体名 | T5: =VLOOKUP(AG1,'3_個別入力シート（支援プログラム）'!$B$7:$CR$7,'3_個別入力シート（支援プログラム）'!G6,0)& "" -> 熊本県玉東町
N6: 本事業の担当部局名 | T6: =VLOOKUP(AG1,'3_個別入力シート（支援プログラム）'!$B$7:$CR$7,'3_個別入力シート（支援プログラム）'!H6,0)& "" -> 企画財政課
A8: 事業メニュー | H8: 結婚・妊娠・共育ての相談機会提供・支援プログラム
A10: 区分 | H10: =VLOOKUP(AG1,'3_個別入力シート（支援プログラム）'!$B$7:$CR$7,'3_個別入力シート（支援プログラム）'!K6,0)& "" -> 一般コース
A12: 関連事業メニュー | H12: =VLOOKUP(AG1,'3_個別入力シート（支援プログラム）'!$B$7:$CR$7,'3_個別入力シート（支援プログラム）'!L6,0)& "" -> 4_1 結婚・妊娠・共育ての相談機会提供・支援プログラム（一般コース）
A14: 個別事業名 | H14: =VLOOKUP(AG1,'3_個別入力シート（支援プログラム）'!$B$7:$CR$7,'3_個別入力シート（支援プログラム）'!M6,0)& "" -> 玉東町結婚新生活支援事業 | AB14: 新規／継続 (一般財源での 実施も含む) | AF14: =VLOOKUP(AG1,'3_個別入力シート（支援プログラム）'!$B$7:$CR$7,'3_個別入力シート（支援プログラム）'!U6,0)& "" -> 継続
A17: 実施期間 | H17: =VLOOKUP(AG1,'3_個別入力シート（支援プログラム）'!$B$7:$CR$7,'3_個別入力シート（支援プログラム）'!S6,0)& "" -> 令和8年4月1日 | Q17: ～ | S17: =VLOOKUP(AG1,'3_個別入力シート（支援プログラム）'!$B$7:$CR$7,'3_個別入力シート（支援プログラム）'!T6,0)& "" -> 令和9年3月31日 | AB17: 事業開始年度 | AF17: =DATEVALUE(AK17&"年12月31日") -> 42735 | AK17: =VLOOKUP(AG1,'3_個別入力シート（支援プログラム）'!$B$7:$CR$7,'3_個別入力シート（支援プログラム）'!V6,0)& "" -> 2016
A19: 総事業費（Ａ）（円） | H19: =AK19*1 -> 2400000 | Q19: 寄付金その他の収入予定額（Ｂ）（円） | W19: =AL19*1 -> 0 | AB19: 差引額（Ａ-Ｂ）（円） | AF19: =AM19*1 -> 2400000 | AK19: =VLOOKUP(AG1,'3_個別入力シート（支援プログラム）'!$B$7:$CR$7,'3_個別入力シート（支援プログラム）'!O6,0) -> 2400000 | AL19: =VLOOKUP(AG1,'3_個別入力シート（支援プログラム）'!$B$7:$CR$7,'3_個別入力シート（支援プログラム）'!P6,0) -> 0 | AM19: =VLOOKUP(AG1,'3_個別入力シート（支援プログラム）'!$B$7:$CR$7,'3_個別入力シート（支援プログラム）'!R6,0) -> 2400000
A21: 対象経費支出予定額（円） ※補助率を乗じる前の額 | H21: =AK21*1 -> 2400000 | AK21: =VLOOKUP(AG1,'3_個別入力シート（支援プログラム）'!$B$7:$CR$7,'3_個別入力シート（支援プログラム）'!Q6,0) -> 2400000
A23: 費用内訳（円） | H23: 個別事業の内容のとおり
A32: 自治体における少子化対策の全体像及びその中での本個別事業の位置付け | H32: ＜自治体における少子化対策の全体像＞※全事業共通
H33: =VLOOKUP(AG1,'3_個別入力シート（支援プログラム）'!$B$7:$CR$7,'3_個別入力シート（支援プログラム）'!Y6,0) &"" -> 結婚・妊娠・共育ての相談機会提供・支援プログラムを実施し、結婚に伴う新生活を経済的に支援するため新生活費用に対して補助を行う。 また、荒尾・玉名地域結婚サポートセンター（有明広域行政事務組合）と連携して婚活事業を実施し、出会いの場の創出を重点的に行う。事業実施後には、対象者にアンケート調査等を行い、次年度以降により効果的な取組を行えるように留意する。
H37: ＜本個別事業の位置付け＞
H38: =VLOOKUP(AG1,'3_個別入力シート（支援プログラム）'!$B$7:$CR$7,'3_個別入力シート（支援プログラム）'!Z6,0)& "" -> 結婚・出産・子育ての希望をかなえ、安心して暮らすことが出来る魅力的な地域をつくる。
A41: 個別事業の内容 | C41: １．概要
C42: 【対象費用】
D43: =VLOOKUP(AG1,'3_個別入力シート（支援プログラム）'!$B$7:$CR$7,'3_個別入力シート（支援プログラム）'!AA6,0)& "" -> ○ | F43: 住宅取得費用 | L43: =VLOOKUP(AG1,'3_個別入力シート（支援プログラム）'!$B$7:$CR$7,'3_個別入力シート（支援プログラム）'!AB6,0)& "" -> ○ | N43: 住宅リフォーム費用 | T43: =VLOOKUP(AG1,'3_個別入力シート（支援プログラム）'!$B$7:$CR$7,'3_個別入力シート（支援プログラム）'!AC6,0)& "" -> ○ | V43: 住宅賃借費用 | AB43: =VLOOKUP(AG1,'3_個別入力シート（支援プログラム）'!$B$7:$CR$7,'3_個別入力シート（支援プログラム）'!AD6,0)& "" -> ○ | AD43: 引越費用
C45: 【補助対象要件】 原則として国基準とし、自治体独自基準による場合は当該欄に記載
C46: 所得要件 | F46: 国基準 | K46: 夫婦の合計所得が500万円未満
F47: 自治体独自基準 | K47: =VLOOKUP(AG1,'3_個別入力シート（支援プログラム）'!$B$7:$CR$7,'3_個別入力シート（支援プログラム）'!AE6,0)& "" -> 
C48: 年齢要件 | F48: 国基準 | K48: 夫婦ともに婚姻日における年齢が39歳以下の世帯
F49: 自治体独自基準 | K49: =VLOOKUP(AG1,'3_個別入力シート（支援プログラム）'!$B$7:$CR$7,'3_個別入力シート（支援プログラム）'!AF6,0)& "" -> 
C50: 【補助上限額】 原則として国基準とし、自治体独自基準による場合は当該欄に記載
C51: 29歳以下 の場合 | F51: 国基準 | K51: 各費用に係る合計が60万円
F52: 自治体独自基準 | K52: =VLOOKUP(AG1,'3_個別入力シート（支援プログラム）'!$B$7:$CR$7,'3_個別入力シート（支援プログラム）'!AG6,0)& "" -> 
C53: 39歳以下 の場合 | F53: 国基準 | K53: 各費用に係る合計が30万円
F54: 自治体独自基準 | K54: =VLOOKUP(AG1,'3_個別入力シート（支援プログラム）'!$B$7:$CR$7,'3_個別入力シート（支援プログラム）'!AH6,0)& "" -> 
C55: 【その他独自要件】
C56: =VLOOKUP(AG1,'3_個別入力シート（支援プログラム）'!$B$7:$CR$7,'3_個別入力シート（支援プログラム）'!AI6,0)& "" -> 
C60: ２．申請見込
C61: ①新規世帯見込 | H61: =VLOOKUP(AG1,'3_個別入力シート（支援プログラム）'!$B$7:$CR$7,'3_個別入力シート（支援プログラム）'!AP6,0)& "" -> 4 | Q61: 世帯 | T61: ②継続補助世帯見込 | Y61: =VLOOKUP(AG1,'3_個別入力シート（支援プログラム）'!$B$7:$CR$7,'3_個別入力シート（支援プログラム）'!AQ6,0) -> 2 | AH61: 世帯
D62: 上記のうち | I62: ともに29歳以下 | N62: =VLOOKUP(AG1,'3_個別入力シート（支援プログラム）'!$B$7:$CR$7,'3_個別入力シート（支援プログラム）'!AN6,0) -> 2 | R62: 世帯 | T62: （継続補助規定の有無） | Y62: =VLOOKUP(AG1,'3_個別入力シート（支援プログラム）'!$B$7:$CR$7,'3_個別入力シート（支援プログラム）'!AR6,0)& "" -> 有
I63: その他 | N63: =VLOOKUP(AG1,'3_個別入力シート（支援プログラム）'!$B$7:$CR$7,'3_個別入力シート（支援プログラム）'!AO6,0) -> 2 | R63: 世帯
C64: 【世帯数積算根拠】
C65: =VLOOKUP(AG1,'3_個別入力シート（支援プログラム）'!$B$7:$CR$7,'3_個別入力シート（支援プログラム）'!AS6,0)& "" -> ・申請見込については、令和5年度及び令和6年度の当事業における支給実績から4世帯とした。（R5年度：4件、R6年度5件） | Y65: (参考）
Y66: 【令和７年度申請状況】 | AF66: =VLOOKUP(AG1,'3_個別入力シート（支援プログラム）'!$B$7:$CR$7,'3_個別入力シート（支援プログラム）'!AJ6,0)& "" -> 実施中
Z67: 申請世帯数見込 | AE67: =VLOOKUP(AG1,'3_個別入力シート（支援プログラム）'!$B$7:$CR$7,'3_個別入力シート（支援プログラム）'!AM6,0)& "" -> 2 | AG67: 世帯
AA68: ～12月(実績) | AF68: =VLOOKUP(AG1,'3_個別入力シート（支援プログラム）'!$B$7:$CR$7,'3_個別入力シート（支援プログラム）'!AK6,0) -> 1 | AH68: 世帯
AA69: 1月～3月(見込) | AF69: =VLOOKUP(AG1,'3_個別入力シート（支援プログラム）'!$B$7:$CR$7,'3_個別入力シート（支援プログラム）'!AL6,0) -> 1 | AH69: 世帯
C84: 【金額積算根拠】
C85: ＜上限額＞ | V85: ＜左記の上限額の合計を使用しない場合の積算＞
C86: （29歳以下） | G86: =N62 -> 2 | I86: 世帯 | K86: × | L86: 600000 | O86: 円 | P86: = | Q86: =G86*L86 -> 1200000 | U86: 円 | V86: =VLOOKUP(AG1,'3_個別入力シート（支援プログラム）'!$B$7:$CR$7,'3_個別入力シート（支援プログラム）'!AX6,0)& "" -> 
C87: （その他） | G87: =N63 -> 2 | I87: 世帯 | K87: × | L87: 300000 | O87: 円 | P87: = | Q87: =G87*L87 -> 600000 | U87: 円
L88: （継続補助） | Q88: =AK88*1 -> 600000 | U88: 円 | AK88: =VLOOKUP(AG1,'3_個別入力シート（支援プログラム）'!$B$7:$CR$7,'3_個別入力シート（支援プログラム）'!AV6,0) -> 600000
M89: 合計 | Q89: =SUM(Q86:T88) -> 2400000 | U89: 円
C98: ３．広報の実施予定
C99: =VLOOKUP(AG1,'3_個別入力シート（支援プログラム）'!$B$7:$CR$7,'3_個別入力シート（支援プログラム）'!AY6,0)& "" -> ・町ホームページおよび広報紙、公式ＬＩＮＥを活用し積極的に周知するほか、窓口において婚姻者に周知を図る。
A102: 少子化対策全体の重要業績評価指標(KPI)及び定量的成果目標 ※全事業共通 | H102: KPI項目 | Y102: 単位 | AA102: 目標値（時点） | AF102: 現状値（時点）
H103: =VLOOKUP(AG1,'3_個別入力シート（支援プログラム）'!$B$7:$CR$7,'3_個別入力シート（支援プログラム）'!AZ6,0)& "" -> 荒尾・玉名地域結婚サポートセンター新規会員数 | Y103: =VLOOKUP(AG1,'3_個別入力シート（支援プログラム）'!$B$7:$CR$7,'3_個別入力シート（支援プログラム）'!BA6,0)& "" -> 人 | AA103: =VLOOKUP(AG1,'3_個別入力シート（支援プログラム）'!$B$7:$CR$7,'3_個別入力シート（支援プログラム）'!BB6,0)& "" -> 1 （R7年度～R11年度） | AF103: =VLOOKUP(AG1,'3_個別入力シート（支援プログラム）'!$B$7:$CR$7,'3_個別入力シート（支援プログラム）'!BC6,0)& "" -> 0 （R6年度 1月時点）
H104: =VLOOKUP(AG1,'3_個別入力シート（支援プログラム）'!$B$7:$CR$7,'3_個別入力シート（支援プログラム）'!BD6,0)& "" -> 不妊治療補助件数 | Y104: =VLOOKUP(AG1,'3_個別入力シート（支援プログラム）'!$B$7:$CR$7,'3_個別入力シート（支援プログラム）'!BE6,0)& "" -> 件 | AA104: =VLOOKUP(AG1,'3_個別入力シート（支援プログラム）'!$B$7:$CR$7,'3_個別入力シート（支援プログラム）'!BF6,0)& "" -> 5 （R7年度～R11年度） | AF104: =VLOOKUP(AG1,'3_個別入力シート（支援プログラム）'!$B$7:$CR$7,'3_個別入力シート（支援プログラム）'!BG6,0)& "" -> 3 （R6.4～R7.2）
H105: =VLOOKUP(AG1,'3_個別入力シート（支援プログラム）'!$B$7:$CR$7,'3_個別入力シート（支援プログラム）'!BH6,0)& "" -> 子育て関連講座参加者数 | Y105: =VLOOKUP(AG1,'3_個別入力シート（支援プログラム）'!$B$7:$CR$7,'3_個別入力シート（支援プログラム）'!BI6,0)& "" -> 人 | AA105: =VLOOKUP(AG1,'3_個別入力シート（支援プログラム）'!$B$7:$CR$7,'3_個別入力シート（支援プログラム）'!BJ6,0)& "" -> 488 （R7年度～R11年度） | AF105: =VLOOKUP(AG1,'3_個別入力シート（支援プログラム）'!$B$7:$CR$7,'3_個別入力シート（支援プログラム）'!BK6,0)& "" -> 487 （R6.4～R7.1）
H106: =VLOOKUP(AG1,'3_個別入力シート（支援プログラム）'!$B$7:$CR$7,'3_個別入力シート（支援プログラム）'!BL6,0)& "" -> こども家庭センターにおける相談支援件数 | Y106: =VLOOKUP(AG1,'3_個別入力シート（支援プログラム）'!$B$7:$CR$7,'3_個別入力シート（支援プログラム）'!BM6,0)& "" -> 件 | AA106: =VLOOKUP(AG1,'3_個別入力シート（支援プログラム）'!$B$7:$CR$7,'3_個別入力シート（支援プログラム）'!BN6,0)& "" -> 60/年 （R7年度～R11年度） | AF106: =VLOOKUP(AG1,'3_個別入力シート（支援プログラム）'!$B$7:$CR$7,'3_個別入力シート（支援プログラム）'!BO6,0)& "" -> 47/年 （R6.4～R7.1）
H107: =VLOOKUP(AG1,'3_個別入力シート（支援プログラム）'!$B$7:$CR$7,'3_個別入力シート（支援プログラム）'!BP6,0)& "" ->  | Y107: =VLOOKUP(AG1,'3_個別入力シート（支援プログラム）'!$B$7:$CR$7,'3_個別入力シート（支援プログラム）'!BQ6,0)& "" ->  | AA107: =VLOOKUP(AG1,'3_個別入力シート（支援プログラム）'!$B$7:$CR$7,'3_個別入力シート（支援プログラム）'!BR6,0)& "" ->  | AF107: =VLOOKUP(AG1,'3_個別入力シート（支援プログラム）'!$B$7:$CR$7,'3_個別入力シート（支援プログラム）'!BS6,0)& "" -> 
A108: 参考指標 ※全事業共通 | H108: 項目 | Y108: 単位 | AA108: 直近の実績値（時点）
H109: 合計特殊出生率 | AA109: =VLOOKUP(AG1,'3_個別入力シート（支援プログラム）'!$B$7:$CR$7,'3_個別入力シート（支援プログラム）'!BV6,0)& "" -> 2.44 （R6年）
H110: 婚姻件数 | Y110: 件 | AA110: =VLOOKUP(AG1,'3_個別入力シート（支援プログラム）'!$B$7:$CR$7,'3_個別入力シート（支援プログラム）'!BY6,0)& "" -> 22 （R6年）
H111: 婚姻率 | AA111: =VLOOKUP(AG1,'3_個別入力シート（支援プログラム）'!$B$7:$CR$7,'3_個別入力シート（支援プログラム）'!CB6,0)& "" -> 4.27 （R6年）
A112: 個別事業の重要業績評価指標(KPI)及び定量的成果目標 | H112: KPI項目 | Y112: 単位 | AA112: 目標値（時点） | AF112: 現状値（時点）
H113: 番号 | J113: 項目
J114: （アウトプット）
H115: ① | J115: 支給世帯実績／支給見込世帯数の割合 | Y115: ％ | AA115: =VLOOKUP(AG1,'3_個別入力シート（支援プログラム）'!$B$7:$CR$7,'3_個別入力シート（支援プログラム）'!CE6,0)& "" -> 100（R8年度） | AF115: =VLOOKUP(AG1,'3_個別入力シート（支援プログラム）'!$B$7:$CR$7,'3_個別入力シート（支援プログラム）'!CF6,0)& "" -> 33.3（R7年度見込）
J125: （アウトカム)
H126: ① | J126: 結婚・妊娠・共育ての相談機会提供・支援プログラムに関するアンケートにおける「本事業の認知度」 | Y126: ％ | AA126: =VLOOKUP(AG1,'3_個別入力シート（支援プログラム）'!$B$7:$CR$7,'3_個別入力シート（支援プログラム）'!CI6,0)& "" -> 80（R8年度） | AF126: =VLOOKUP(AG1,'3_個別入力シート（支援プログラム）'!$B$7:$CR$7,'3_個別入力シート（支援プログラム）'!CJ6,0)& "" -> 80（R6年度実績）
H127: ② | J127: 結婚・妊娠・共育ての相談機会提供・支援プログラムに関するアンケートにおける「地域に応援されていると感じた世帯の割合」 | Y127: ％ | AA127: =VLOOKUP(AG1,'3_個別入力シート（支援プログラム）'!$B$7:$CR$7,'3_個別入力シート（支援プログラム）'!CM6,0)& "" -> 80（R8年度） | AF127: =VLOOKUP(AG1,'3_個別入力シート（支援プログラム）'!$B$7:$CR$7,'3_個別入力シート（支援プログラム）'!CN6,0)& "" -> 80（R6年度実績）

Sheet リンク先 (hidden)
G1: 補助率(令和8年度) | J1: 補助率(令和7年度)
A2: 様式１－１ | B2: タイトル | C2: 地域少子化対策重点推進交付金 | F2: 事業メニュー | G2: 財政力指数 1.0以上 (1) | H2: 通常 (2) | I2: 財政力指数 0.3以下 (3) | J2: 共通 (4)
A3: 様式１－１ | B3: 基準額R7 | C3: 都道府県 | D3: 210000000 | F3: ライフデザイン・結婚支援重点推進事業一般メニュー | G3: 0.5 | H3: 0.6666666667 | I3: 0.75 | J3: 0.6666666667
C4: 政令指定都市 | D4: 105000000 | F4: ライフデザイン・結婚支援重点推進事業重点メニュー | G4: 0.5 | H4: 0.75 | I4: 0.75 | J4: 0.75
C5: 市町村 | D5: 70000000 | F5: 結婚支援コンシェルジュ事業結婚支援コンシェルジュ事業 | G5: 0.5 | H5: 0.75 | I5: 0.75 | J5: 0.75
B6: 基準額R8 | C6: =C3 -> 都道府県 | D6: 30000000 | F6: 結婚_妊娠・出産_子育てに温かい社会づくり・気運醸成事業一般メニュー | G6: 0.5 | H6: 0.5 | I6: 0.6666666667 | J6: 0.5
C7: 政令指定都市 | D7: 15000000 | F7: 結婚_妊娠・出産_子育てに温かい社会づくり・気運醸成事業重点メニュー | G7: 0.5 | H7: 0.6666666667 | I7: 0.75 | J7: 0.6666666667
C8: 市町村 | D8: 10000000 | F8: 結婚・妊娠・共育ての相談機会提供・支援プログラム一般コース | G8: 0.5 | H8: 0.5 | I8: 0.5 | J8: 0.5
A9: 様式１－２ | B9: 自治体区分 | C9: =C3 -> 都道府県 | F9: 結婚・妊娠・共育ての相談機会提供・支援プログラム都道府県主導型市町村連携コース | G9: 0.5 | H9: 0.6666666667 | I9: 0.6666666667 | J9: 0.6666666667
C10: 政令指定都市
C11: 市町村
B12: 年度 | C12: R7
C13: R8
A15: 様式１－２ | B15: 事業メニュー
B16: R7 | C16: ライフデザイン・結婚支援重点推進事業
C17: 結婚支援コンシェルジュ事業
C18: 結婚_妊娠・出産_子育てに温かい社会づくり・気運醸成事業
C19: 結婚・妊娠・共育ての相談機会提供・支援プログラム
B20: R8 | C20: =C16 -> ライフデザイン・結婚支援重点推進事業
C21: 結婚支援コンシェルジュ事業
C22: 結婚_妊娠・出産_子育てに温かい社会づくり・気運醸成事業
C23: 結婚・妊娠・共育ての相談機会提供・支援プログラム
A24: 様式１－２ | B24: 区分
B25: R7 | C25: ライフデザイン・結婚支援重点推進事業 | D25: 一般メニュー
D26: 重点メニュー
C27: 結婚支援コンシェルジュ事業 | D27: 結婚支援コンシェルジュ事業
C28: 結婚_妊娠・出産_子育てに温かい社会づくり・気運醸成事業 | D28: 一般メニュー
D29: 重点メニュー
C30: 結婚・妊娠・共育ての相談機会提供・支援プログラム | D30: 一般コース
D31: 都道府県主導型市町村連携コース
B32: R8 | C32: ライフデザイン・結婚支援重点推進事業 | D32: 一般メニュー
D33: 重点メニュー
C34: 結婚支援コンシェルジュ事業 | D34: 結婚支援コンシェルジュ事業
C35: 結婚_妊娠・出産_子育てに温かい社会づくり・気運醸成事業 | D35: 一般メニュー
D36: 重点メニュー
C37: 結婚・妊娠・共育ての相談機会提供・支援プログラム | D37: 一般コース
D38: 都道府県主導型市町村連携コース
A39: 様式１－２ | B39: 関連事業メニュー
B40: R7 | C40: ライフデザイン・結婚支援重点推進事業 | D40: 一般メニュー | E40: 1_1_1 結婚支援センターに関する取組
E41: 1_1_2 結婚支援ボランティア等に関する取組
E42: 1_1_3 出会いの機会・場の提供に関する取組
E43: 1_1_4 結婚支援事業者との官民連携型結婚支援
E44: 1_1_5 AIを始めとするマッチングシステムの高度化・地域連携
E45: 1_1_6 その他、ライフデザイン・結婚支援重点推進事業
D46: 重点メニュー | E46: 1_2_1 自治体間連携を伴うライフデザイン・結婚支援重点推進
E47: 1_2_2 若い世代の描くライフデザイン支援
E48: 1_2_3 地域の結婚支援ボランティア・事業者等を活用した伴走型結婚支援の充実
C51: 結婚支援コンシェルジュ事業 | D51: 結婚支援コンシェルジュ事業 | E51: 2_1 結婚支援コンシェルジュ事業
C52: 結婚_妊娠・出産_子育てに温かい社会づくり・気運醸成事業 | D52: 一般メニュー | E52: 3_1_1 その他、結婚、妊娠・出産、子育てに温かい社会づくり・気運醸成事業
E53: 3_1_2 ICT活用、官民連携等による結婚支援等の更なる推進のための調査研究
E54: 3_1_3 企業等が地域等のために結婚を希望する者の新たなマッチングの可能性を創出する取組
D59: 重点メニュー | E59: 3_2_1 自治体間連携を伴う結婚、妊娠・出産、子育てに温かい社会づくり・気運醸成
E60: 3_2_2 地域全体で結婚・子育て、子育てと仕事の両立と多様な働き方を応援する気運醸成
E61: 3_2_3 育児休業取得と家事・育児分担の促進
C65: 結婚・妊娠・共育ての相談機会提供・支援プログラム | D65: 一般コース | E65: 4_1 結婚・妊娠・共育ての相談機会提供・支援プログラム（一般コース）
D66: 都道府県主導型市町村連携コース | E66: 4_2 結婚・妊娠・共育ての相談機会提供・支援プログラム（都道府県主導型市町村連携コース）
B67: R8 | C67: ライフデザイン・結婚支援重点推進事業 | D67: 一般メニュー | E67: =E40 &"" -> 1_1_1 結婚支援センターに関する取組
E68: =E41 &"" -> 1_1_2 結婚支援ボランティア等に関する取組
E69: 1_1_3 出会いの機会・場の提供に関する取組
E70: 1_1_4 結婚支援事業者との官民連携型結婚支援
E71: 1_1_5 AIを始めとするマッチングシステムの高度化・地域連携
E72: 1_1_6 その他、ライフデザイン・結婚支援重点推進事業
D73: 重点メニュー | E73: 1_2_1 自治体間連携を伴うライフデザイン・結婚支援重点推進
E74: 1_2_2 若い世代の描くライフデザイン支援
E75: 1_2_3 地域の結婚支援ボランティア・事業者等を活用した伴走型結婚支援の充実
C78: 結婚支援コンシェルジュ事業 | D78: 結婚支援コンシェルジュ事業 | E78: 2_1 結婚支援コンシェルジュ事業
C79: 結婚_妊娠・出産_子育てに温かい社会づくり・気運醸成事業 | D79: 一般メニュー | E79: 3_1_1 その他、結婚、妊娠・出産、子育てに温かい社会づくり・気運醸成事業
E80: 3_1_2 ICT活用、官民連携等による結婚支援等の更なる推進のための調査研究
E81: 3_1_3 企業等が地域等のために結婚を希望する者の新たなマッチングの可能性を創出する取組
D86: 重点メニュー | E86: 3_2_1 自治体間連携を伴う結婚、妊娠・出産、子育てに温かい社会づくり・気運醸成
E87: 3_2_2 地域全体で結婚・子育て、子育てと仕事の両立と多様な働き方を応援する気運醸成
E88: 3_2_3 育児休業取得と家事・育児分担の促進
C92: 結婚・妊娠・共育ての相談機会提供・支援プログラム | D92: 一般コース | E92: 4_1 結婚・妊娠・共育ての相談機会提供・支援プログラム（一般コース）
D93: 都道府県主導型市町村連携コース | E93: 4_2 結婚・妊娠・共育ての相談機会提供・支援プログラム（都道府県主導型市町村連携コース）
L94: 確認 チェック欄
A96: 単位など | H96: （要件充足-共通-）プルダウン
A97: 都道府県 | B97: 北海道 | C97: R8 | D97: ① | E97: ％ | F97: 諸謝金 | H97: (共通要件_各種経費)
A98: 政令指定都市 | B98: 青森県 | C98: R7 | D98: ② | E98: 人 | F98: 賃金 | H98: 含まれている
A99: 市町村 | B99: 岩手県 | D99: ③ | E99: 件 | F99: 報償費 | H99: 含まれていない
B100: 宮城県 | D100: ④ | E100: 回 | F100: 旅費
A101: （都道府県分）※不使用 | B101: 秋田県 | D101: ⑤ | E101: 団体 | F101: 需用費 | H101: (共通要件_個人給付②)
A102: （市町村分）※不使用 | B102: 山形県 | D102: ⑥ | E102: 割 | F102: 役務費 | H102: 含まれている（留意点等の要件ア〜エを満たしている）
B103: 福島県 | D103: ⑦ | E103: 社 | F103: 委託料 | H103: 含まれている（留意点等の要件ア〜エを満たしていない）
B104: 茨城県 | D104: ⑧ | E104: 組 | F104: 使用料及び賃借料 | H104: 含まれていない
B105: 栃木県 | D105: ⑨ | E105: 店舗 | F105: 備品購入費
B106: 群馬県 | D106: ⑩ | E106: 校 | F106: 負担金
B107: 埼玉県 | D107: ⑪ | E107: 部 | F107: 補助金
B108: 千葉県 | D108: ⑫ | E108: 枚
B109: 東京都 | D109: ⑬ | E109: 市区町村 | F109: 寄付金
B110: 神奈川県 | D110: ⑭ | E110: 市町村 | F110: その他の収入
B111: 新潟県 | D111: ⑮ | E111: 市町
B112: 富山県 | D112: ⑯ | E112: か所
B113: 石川県 | D113: ⑰ | E113: 世帯 | F113: 【事業流用の有無】
B114: 福井県 | D114: ⑱ | F114: 有
B115: 山梨県 | D115: ⑲ | F115: 無
B116: 長野県
B117: 岐阜県
B118: 静岡県
B119: 愛知県
B120: 三重県
B121: 滋賀県
B122: 京都府
B123: 大阪府
B124: 兵庫県
B125: 奈良県
B126: 和歌山県
B127: 鳥取県
B128: 島根県
B129: 岡山県
B130: 広島県
B131: 山口県
B132: 徳島県
B133: 香川県
B134: 愛媛県
B135: 高知県
B136: 福岡県
B137: 佐賀県
B138: 長崎県
B139: 熊本県
B140: 大分県
B141: 宮崎県
B142: 鹿児島県
B143: 沖縄県
F145: 要件１ | G145: 要件２ | H145: 要件３ | I145: 要件４ | J145: 要件５ | K145: 要件６ | L145: 要件７ | M145: 要件８
C146: 共通要件 | F146: ＜人件費＞ 職員の人件費（次に掲げるものを除く。）が含まれていないか。 ・事業に伴う会計年度任用職員のもの ・結婚支援センターのもの 【リスト選択】 | G146: ＜備品購入＞ 備品購入に要する経費が含まれていないか。 【リスト選択】 | H146: ＜施設整備＞ 施設整備に要する経費が含まれていないか。 【リスト選択】 | I146: ＜個人給付①＞ 個人への金銭給付などによる個人の負担を直接的に軽減する事業に要する経費（次に掲げるものを除く。）が含まれていないか。 ・結婚支援センター及び結婚支援事業者の登録優待費用 【リスト選択】 | J146: ＜個人給付②＞ 結婚支援センター及び結婚支援事業者の登録優待費用が含まれていないか。 【リスト選択】 | K146: ＜他の国庫負担金等＞ 他の国庫負担金、補助金又は交付金の交付の対象となる事業に要する経費が含まれていないか。 【リスト選択】
C147: ライフデザイン・結婚支援重点推進事業 | D147: 重点メニュー | E147: 1_2_1 自治体間連携を伴うライフデザイン・結婚支援重点推進 | F147: 実施要領別記１第２の１（２）アに規定する事業内容となっているか。 | G147: 複数の自治体により構成されるライフデザイン・結婚支援その他の少子化対策に関して地域が抱える課題を解決する場（協議会等）を設けているか。 | H147: 協議会等を構成する自治体による「実質的な協働」(費用、役務の分担)が認められるものであるか。
E148: 1_2_2 若い世代の描くライフデザイン支援 | F148: 実施要領別記１第２の１（２）イに規定する事業内容となっているか。
E149: 1_2_3 結婚支援事業者との官民連携型結婚支援 | F149: 実施要領別記１第２の１（２）ウに規定する事業内容となっているか。 | G149: 連携する結婚支援事業者について、利用者の安全が十分に確保されていることを確認しているか。
E150: 1_2_4 AIを始めとするマッチングシステムの高度化・地域連携 | F150: 実施要領別記１第２の１（２）エに規定する事業内容となっているか。
E151: 1_2_5 地域の結婚支援ボランティア・事業者等を活用した伴走型結婚支援の充実 | F151: 実施要領別記１第２の１（２）オに規定する事業内容となっているか。
C152: 結婚支援コンシェルジュ事業 | D152: 結婚支援コンシェルジュ事業 | E152: 2_1 結婚支援コンシェルジュ事業 | F152: 実施要領別記１第２の２に規定する事業内容となっているか。
C153: 結婚_妊娠・出産_子育てに温かい社会づくり・気運醸成事業 | D153: 重点メニュー | E153: 3_2_1 自治体間連携を伴う結婚、妊娠・出産、子育てに温かい社会づくり・気運醸成 | F153: 実施要領別記１第２の３（２）アに規定する事業内容となっているか。 | G153: 複数の自治体により構成されるライフデザイン・結婚支援その他の少子化対策に関して地域が抱える課題を解決する場（協議会等）を設けているか。 | H153: 協議会等を構成する自治体による「実質的な協働」(費用、役務の分担)が認められるものであるか。
E154: 3_2_2 地域全体で結婚・子育てを応援する気運醸成 | F154: 実施要領別記１第２の３（２）イに規定する事業内容となっているか。
E155: 3_2_3 育児休業取得と家事・育児分担の促進 | F155: 実施要領別記１第２の３（２）ウに規定する事業内容となっているか。
E156: 3_2_4 子育てと仕事の両立と多様な働き方の促進 | F156: 実施要領別記１第２の３（２）エに規定する事業内容となっているか。
E157: 3_2_5 ICT活用、官民連携等による結婚支援等の更なる推進のための調査研究 | F157: 実施要領別記１第２の３（２）オに規定する事業内容となっているか。

Sheet 自治体CD (hidden)
A1: 団体コード | B1: 都道府県名 （漢字） | C1: 市区町村名 （漢字） | D1: 都道府県名 （カナ） | E1: 市区町村名 （カナ）
A2: 010006 | B2: 北海道 | D2: ﾎｯｶｲﾄﾞｳ
A3: 011002 | B3: 北海道 | C3: 札幌市 | D3: ﾎｯｶｲﾄﾞｳ | E3: ｻｯﾎﾟﾛｼ
A4: 012025 | B4: 北海道 | C4: 函館市 | D4: ﾎｯｶｲﾄﾞｳ | E4: ﾊｺﾀﾞﾃｼ
A5: 012033 | B5: 北海道 | C5: 小樽市 | D5: ﾎｯｶｲﾄﾞｳ | E5: ｵﾀﾙｼ
A6: 012041 | B6: 北海道 | C6: 旭川市 | D6: ﾎｯｶｲﾄﾞｳ | E6: ｱｻﾋｶﾜｼ
A7: 012050 | B7: 北海道 | C7: 室蘭市 | D7: ﾎｯｶｲﾄﾞｳ | E7: ﾑﾛﾗﾝｼ
A8: 012068 | B8: 北海道 | C8: 釧路市 | D8: ﾎｯｶｲﾄﾞｳ | E8: ｸｼﾛｼ
A9: 012076 | B9: 北海道 | C9: 帯広市 | D9: ﾎｯｶｲﾄﾞｳ | E9: ｵﾋﾞﾋﾛｼ
A10: 012084 | B10: 北海道 | C10: 北見市 | D10: ﾎｯｶｲﾄﾞｳ | E10: ｷﾀﾐｼ
A11: 012092 | B11: 北海道 | C11: 夕張市 | D11: ﾎｯｶｲﾄﾞｳ | E11: ﾕｳﾊﾞﾘｼ
A12: 012106 | B12: 北海道 | C12: 岩見沢市 | D12: ﾎｯｶｲﾄﾞｳ | E12: ｲﾜﾐｻﾞﾜｼ
A13: 012114 | B13: 北海道 | C13: 網走市 | D13: ﾎｯｶｲﾄﾞｳ | E13: ｱﾊﾞｼﾘｼ
A14: 012122 | B14: 北海道 | C14: 留萌市 | D14: ﾎｯｶｲﾄﾞｳ | E14: ﾙﾓｲｼ
A15: 012131 | B15: 北海道 | C15: 苫小牧市 | D15: ﾎｯｶｲﾄﾞｳ | E15: ﾄﾏｺﾏｲｼ
A16: 012149 | B16: 北海道 | C16: 稚内市 | D16: ﾎｯｶｲﾄﾞｳ | E16: ﾜｯｶﾅｲｼ
A17: 012157 | B17: 北海道 | C17: 美唄市 | D17: ﾎｯｶｲﾄﾞｳ | E17: ﾋﾞﾊﾞｲｼ
A18: 012165 | B18: 北海道 | C18: 芦別市 | D18: ﾎｯｶｲﾄﾞｳ | E18: ｱｼﾍﾞﾂｼ
A19: 012173 | B19: 北海道 | C19: 江別市 | D19: ﾎｯｶｲﾄﾞｳ | E19: ｴﾍﾞﾂｼ
A20: 012181 | B20: 北海道 | C20: 赤平市 | D20: ﾎｯｶｲﾄﾞｳ | E20: ｱｶﾋﾞﾗｼ
A21: 012190 | B21: 北海道 | C21: 紋別市 | D21: ﾎｯｶｲﾄﾞｳ | E21: ﾓﾝﾍﾞﾂｼ
A22: 012203 | B22: 北海道 | C22: 士別市 | D22: ﾎｯｶｲﾄﾞｳ | E22: ｼﾍﾞﾂｼ
A23: 012211 | B23: 北海道 | C23: 名寄市 | D23: ﾎｯｶｲﾄﾞｳ | E23: ﾅﾖﾛｼ
A24: 012220 | B24: 北海道 | C24: 三笠市 | D24: ﾎｯｶｲﾄﾞｳ | E24: ﾐｶｻｼ
A25: 012238 | B25: 北海道 | C25: 根室市 | D25: ﾎｯｶｲﾄﾞｳ | E25: ﾈﾑﾛｼ
A26: 012246 | B26: 北海道 | C26: 千歳市 | D26: ﾎｯｶｲﾄﾞｳ | E26: ﾁﾄｾｼ
A27: 012254 | B27: 北海道 | C27: 滝川市 | D27: ﾎｯｶｲﾄﾞｳ | E27: ﾀｷｶﾜｼ
A28: 012262 | B28: 北海道 | C28: 砂川市 | D28: ﾎｯｶｲﾄﾞｳ | E28: ｽﾅｶﾞﾜｼ
A29: 012271 | B29: 北海道 | C29: 歌志内市 | D29: ﾎｯｶｲﾄﾞｳ | E29: ｳﾀｼﾅｲｼ
A30: 012289 | B30: 北海道 | C30: 深川市 | D30: ﾎｯｶｲﾄﾞｳ | E30: ﾌｶｶﾞﾜｼ
A31: 012297 | B31: 北海道 | C31: 富良野市 | D31: ﾎｯｶｲﾄﾞｳ | E31: ﾌﾗﾉｼ
A32: 012301 | B32: 北海道 | C32: 登別市 | D32: ﾎｯｶｲﾄﾞｳ | E32: ﾉﾎﾞﾘﾍﾞﾂｼ
A33: 012319 | B33: 北海道 | C33: 恵庭市 | D33: ﾎｯｶｲﾄﾞｳ | E33: ｴﾆﾜｼ
A34: 012335 | B34: 北海道 | C34: 伊達市 | D34: ﾎｯｶｲﾄﾞｳ | E34: ﾀﾞﾃｼ
A35: 012343 | B35: 北海道 | C35: 北広島市 | D35: ﾎｯｶｲﾄﾞｳ | E35: ｷﾀﾋﾛｼﾏｼ
A36: 012351 | B36: 北海道 | C36: 石狩市 | D36: ﾎｯｶｲﾄﾞｳ | E36: ｲｼｶﾘｼ
A37: 012360 | B37: 北海道 | C37: 北斗市 | D37: ﾎｯｶｲﾄﾞｳ | E37: ﾎｸﾄｼ
A38: 013030 | B38: 北海道 | C38: 当別町 | D38: ﾎｯｶｲﾄﾞｳ | E38: ﾄｳﾍﾞﾂﾁｮｳ
A39: 013048 | B39: 北海道 | C39: 新篠津村 | D39: ﾎｯｶｲﾄﾞｳ | E39: ｼﾝｼﾉﾂﾑﾗ
A40: 013315 | B40: 北海道 | C40: 松前町 | D40: ﾎｯｶｲﾄﾞｳ | E40: ﾏﾂﾏｴﾁｮｳ
A41: 013323 | B41: 北海道 | C41: 福島町 | D41: ﾎｯｶｲﾄﾞｳ | E41: ﾌｸｼﾏﾁｮｳ
A42: 013331 | B42: 北海道 | C42: 知内町 | D42: ﾎｯｶｲﾄﾞｳ | E42: ｼﾘｳﾁﾁｮｳ
A43: 013340 | B43: 北海道 | C43: 木古内町 | D43: ﾎｯｶｲﾄﾞｳ | E43: ｷｺﾅｲﾁｮｳ
A44: 013374 | B44: 北海道 | C44: 七飯町 | D44: ﾎｯｶｲﾄﾞｳ | E44: ﾅﾅｴﾁｮｳ
A45: 013439 | B45: 北海道 | C45: 鹿部町 | D45: ﾎｯｶｲﾄﾞｳ | E45: ｼｶﾍﾞﾁｮｳ
A46: 013455 | B46: 北海道 | C46: 森町 | D46: ﾎｯｶｲﾄﾞｳ | E46: ﾓﾘﾏﾁ
A47: 013463 | B47: 北海道 | C47: 八雲町 | D47: ﾎｯｶｲﾄﾞｳ | E47: ﾔｸﾓﾁｮｳ
A48: 013471 | B48: 北海道 | C48: 長万部町 | D48: ﾎｯｶｲﾄﾞｳ | E48: ｵｼｬﾏﾝﾍﾞﾁｮｳ
A49: 013617 | B49: 北海道 | C49: 江差町 | D49: ﾎｯｶｲﾄﾞｳ | E49: ｴｻｼﾁｮｳ
A50: 013625 | B50: 北海道 | C50: 上ノ国町 | D50: ﾎｯｶｲﾄﾞｳ | E50: ｶﾐﾉｸﾆﾁｮｳ
A51: 013633 | B51: 北海道 | C51: 厚沢部町 | D51: ﾎｯｶｲﾄﾞｳ | E51: ｱｯｻﾌﾞﾁｮｳ
A52: 013641 | B52: 北海道 | C52: 乙部町 | D52: ﾎｯｶｲﾄﾞｳ | E52: ｵﾄﾍﾞﾁｮｳ
A53: 013676 | B53: 北海道 | C53: 奥尻町 | D53: ﾎｯｶｲﾄﾞｳ | E53: ｵｸｼﾘﾁｮｳ
A54: 013706 | B54: 北海道 | C54: 今金町 | D54: ﾎｯｶｲﾄﾞｳ | E54: ｲﾏｶﾈﾁｮｳ
A55: 013714 | B55: 北海道 | C55: せたな町 | D55: ﾎｯｶｲﾄﾞｳ | E55: ｾﾀﾅﾁｮｳ
A56: 013919 | B56: 北海道 | C56: 島牧村 | D56: ﾎｯｶｲﾄﾞｳ | E56: ｼﾏﾏｷﾑﾗ
A57: 013927 | B57: 北海道 | C57: 寿都町 | D57: ﾎｯｶｲﾄﾞｳ | E57: ｽｯﾂﾁｮｳ
A58: 013935 | B58: 北海道 | C58: 黒松内町 | D58: ﾎｯｶｲﾄﾞｳ | E58: ｸﾛﾏﾂﾅｲﾁｮｳ
A59: 013943 | B59: 北海道 | C59: 蘭越町 | D59: ﾎｯｶｲﾄﾞｳ | E59: ﾗﾝｺｼﾁｮｳ
A60: 013951 | B60: 北海道 | C60: ニセコ町 | D60: ﾎｯｶｲﾄﾞｳ | E60: ﾆｾｺﾁｮｳ
A61: 013960 | B61: 北海道 | C61: 真狩村 | D61: ﾎｯｶｲﾄﾞｳ | E61: ﾏｯｶﾘﾑﾗ
A62: 013978 | B62: 北海道 | C62: 留寿都村 | D62: ﾎｯｶｲﾄﾞｳ | E62: ﾙｽﾂﾑﾗ
A63: 013986 | B63: 北海道 | C63: 喜茂別町 | D63: ﾎｯｶｲﾄﾞｳ | E63: ｷﾓﾍﾞﾂﾁｮｳ
A64: 013994 | B64: 北海道 | C64: 京極町 | D64: ﾎｯｶｲﾄﾞｳ | E64: ｷｮｳｺﾞｸﾁｮｳ
A65: 014001 | B65: 北海道 | C65: 倶知安町 | D65: ﾎｯｶｲﾄﾞｳ | E65: ｸｯﾁｬﾝﾁｮｳ
A66: 014010 | B66: 北海道 | C66: 共和町 | D66: ﾎｯｶｲﾄﾞｳ | E66: ｷｮｳﾜﾁｮｳ
A67: 014028 | B67: 北海道 | C67: 岩内町 | D67: ﾎｯｶｲﾄﾞｳ | E67: ｲﾜﾅｲﾁｮｳ
A68: 014036 | B68: 北海道 | C68: 泊村 | D68: ﾎｯｶｲﾄﾞｳ | E68: ﾄﾏﾘﾑﾗ
A69: 014044 | B69: 北海道 | C69: 神恵内村 | D69: ﾎｯｶｲﾄﾞｳ | E69: ｶﾓｴﾅｲﾑﾗ
A70: 014052 | B70: 北海道 | C70: 積丹町 | D70: ﾎｯｶｲﾄﾞｳ | E70: ｼｬｺﾀﾝﾁｮｳ
A71: 014061 | B71: 北海道 | C71: 古平町 | D71: ﾎｯｶｲﾄﾞｳ | E71: ﾌﾙﾋﾞﾗﾁｮｳ
A72: 014079 | B72: 北海道 | C72: 仁木町 | D72: ﾎｯｶｲﾄﾞｳ | E72: ﾆｷﾁｮｳ
A73: 014087 | B73: 北海道 | C73: 余市町 | D73: ﾎｯｶｲﾄﾞｳ | E73: ﾖｲﾁﾁｮｳ
A74: 014095 | B74: 北海道 | C74: 赤井川村 | D74: ﾎｯｶｲﾄﾞｳ | E74: ｱｶｲｶﾞﾜﾑﾗ
A75: 014231 | B75: 北海道 | C75: 南幌町 | D75: ﾎｯｶｲﾄﾞｳ | E75: ﾅﾝﾎﾟﾛﾁｮｳ
A76: 014249 | B76: 北海道 | C76: 奈井江町 | D76: ﾎｯｶｲﾄﾞｳ | E76: ﾅｲｴﾁｮｳ
A77: 014257 | B77: 北海道 | C77: 上砂川町 | D77: ﾎｯｶｲﾄﾞｳ | E77: ｶﾐｽﾅｶﾞﾜﾁｮｳ
A78: 014273 | B78: 北海道 | C78: 由仁町 | D78: ﾎｯｶｲﾄﾞｳ | E78: ﾕﾆﾁｮｳ
A79: 014281 | B79: 北海道 | C79: 長沼町 | D79: ﾎｯｶｲﾄﾞｳ | E79: ﾅｶﾞﾇﾏﾁｮｳ
A80: 014290 | B80: 北海道 | C80: 栗山町 | D80: ﾎｯｶｲﾄﾞｳ | E80: ｸﾘﾔﾏﾁｮｳ
A81: 014303 | B81: 北海道 | C81: 月形町 | D81: ﾎｯｶｲﾄﾞｳ | E81: ﾂｷｶﾞﾀﾁｮｳ
A82: 014311 | B82: 北海道 | C82: 浦臼町 | D82: ﾎｯｶｲﾄﾞｳ | E82: ｳﾗｳｽﾁｮｳ
A83: 014320 | B83: 北海道 | C83: 新十津川町 | D83: ﾎｯｶｲﾄﾞｳ | E83: ｼﾝﾄﾂｶﾜﾁｮｳ
A84: 014338 | B84: 北海道 | C84: 妹背牛町 | D84: ﾎｯｶｲﾄﾞｳ | E84: ﾓｾｳｼﾁｮｳ
A85: 014346 | B85: 北海道 | C85: 秩父別町 | D85: ﾎｯｶｲﾄﾞｳ | E85: ﾁｯﾌﾟﾍﾞﾂﾁｮｳ
A86: 014362 | B86: 北海道 | C86: 雨竜町 | D86: ﾎｯｶｲﾄﾞｳ | E86: ｳﾘｭｳﾁｮｳ
A87: 014371 | B87: 北海道 | C87: 北竜町 | D87: ﾎｯｶｲﾄﾞｳ | E87: ﾎｸﾘｭｳﾁｮｳ
A88: 014389 | B88: 北海道 | C88: 沼田町 | D88: ﾎｯｶｲﾄﾞｳ | E88: ﾇﾏﾀﾁｮｳ
A89: 014524 | B89: 北海道 | C89: 鷹栖町 | D89: ﾎｯｶｲﾄﾞｳ | E89: ﾀｶｽﾁｮｳ
A90: 014532 | B90: 北海道 | C90: 東神楽町 | D90: ﾎｯｶｲﾄﾞｳ | E90: ﾋｶﾞｼｶｸﾞﾗﾁｮｳ
A91: 014541 | B91: 北海道 | C91: 当麻町 | D91: ﾎｯｶｲﾄﾞｳ | E91: ﾄｳﾏﾁｮｳ
A92: 014559 | B92: 北海道 | C92: 比布町 | D92: ﾎｯｶｲﾄﾞｳ | E92: ﾋﾟｯﾌﾟﾁｮｳ
A93: 014567 | B93: 北海道 | C93: 愛別町 | D93: ﾎｯｶｲﾄﾞｳ | E93: ｱｲﾍﾞﾂﾁｮｳ
A94: 014575 | B94: 北海道 | C94: 上川町 | D94: ﾎｯｶｲﾄﾞｳ | E94: ｶﾐｶﾜﾁｮｳ
A95: 014583 | B95: 北海道 | C95: 東川町 | D95: ﾎｯｶｲﾄﾞｳ | E95: ﾋｶﾞｼｶﾜﾁｮｳ
A96: 014591 | B96: 北海道 | C96: 美瑛町 | D96: ﾎｯｶｲﾄﾞｳ | E96: ﾋﾞｴｲﾁｮｳ
A97: 014605 | B97: 北海道 | C97: 上富良野町 | D97: ﾎｯｶｲﾄﾞｳ | E97: ｶﾐﾌﾗﾉﾁｮｳ
A98: 014613 | B98: 北海道 | C98: 中富良野町 | D98: ﾎｯｶｲﾄﾞｳ | E98: ﾅｶﾌﾗﾉﾁｮｳ
A99: 014621 | B99: 北海道 | C99: 南富良野町 | D99: ﾎｯｶｲﾄﾞｳ | E99: ﾐﾅﾐﾌﾗﾉﾁｮｳ
A100: 014630 | B100: 北海道 | C100: 占冠村 | D100: ﾎｯｶｲﾄﾞｳ | E100: ｼﾑｶｯﾌﾟﾑﾗ
A101: 014648 | B101: 北海道 | C101: 和寒町 | D101: ﾎｯｶｲﾄﾞｳ | E101: ﾜｯｻﾑﾁｮｳ
A102: 014656 | B102: 北海道 | C102: 剣淵町 | D102: ﾎｯｶｲﾄﾞｳ | E102: ｹﾝﾌﾞﾁﾁｮｳ
A103: 014681 | B103: 北海道 | C103: 下川町 | D103: ﾎｯｶｲﾄﾞｳ | E103: ｼﾓｶﾜﾁｮｳ
A104: 014699 | B104: 北海道 | C104: 美深町 | D104: ﾎｯｶｲﾄﾞｳ | E104: ﾋﾞﾌｶﾁｮｳ
A105: 014702 | B105: 北海道 | C105: 音威子府村 | D105: ﾎｯｶｲﾄﾞｳ | E105: ｵﾄｲﾈｯﾌﾟﾑﾗ
A106: 014711 | B106: 北海道 | C106: 中川町 | D106: ﾎｯｶｲﾄﾞｳ | E106: ﾅｶｶﾞﾜﾁｮｳ
A107: 014729 | B107: 北海道 | C107: 幌加内町 | D107: ﾎｯｶｲﾄﾞｳ | E107: ﾎﾛｶﾅｲﾁｮｳ
A108: 014818 | B108: 北海道 | C108: 増毛町 | D108: ﾎｯｶｲﾄﾞｳ | E108: ﾏｼｹﾁｮｳ
A109: 014826 | B109: 北海道 | C109: 小平町 | D109: ﾎｯｶｲﾄﾞｳ | E109: ｵﾋﾞﾗﾁｮｳ
A110: 014834 | B110: 北海道 | C110: 苫前町 | D110: ﾎｯｶｲﾄﾞｳ | E110: ﾄﾏﾏｴﾁｮｳ
A111: 014842 | B111: 北海道 | C111: 羽幌町 | D111: ﾎｯｶｲﾄﾞｳ | E111: ﾊﾎﾞﾛﾁｮｳ
A112: 014851 | B112: 北海道 | C112: 初山別村 | D112: ﾎｯｶｲﾄﾞｳ | E112: ｼｮｻﾝﾍﾞﾂﾑﾗ
A113: 014869 | B113: 北海道 | C113: 遠別町 | D113: ﾎｯｶｲﾄﾞｳ | E113: ｴﾝﾍﾞﾂﾁｮｳ
A114: 014877 | B114: 北海道 | C114: 天塩町 | D114: ﾎｯｶｲﾄﾞｳ | E114: ﾃｼｵﾁｮｳ
A115: 015113 | B115: 北海道 | C115: 猿払村 | D115: ﾎｯｶｲﾄﾞｳ | E115: ｻﾙﾌﾂﾑﾗ
A116: 015121 | B116: 北海道 | C116: 浜頓別町 | D116: ﾎｯｶｲﾄﾞｳ | E116: ﾊﾏﾄﾝﾍﾞﾂﾁｮｳ
A117: 015130 | B117: 北海道 | C117: 中頓別町 | D117: ﾎｯｶｲﾄﾞｳ | E117: ﾅｶﾄﾝﾍﾞﾂﾁｮｳ
A118: 015148 | B118: 北海道 | C118: 枝幸町 | D118: ﾎｯｶｲﾄﾞｳ | E118: ｴｻｼﾁｮｳ
A119: 015164 | B119: 北海道 | C119: 豊富町 | D119: ﾎｯｶｲﾄﾞｳ | E119: ﾄﾖﾄﾐﾁｮｳ
A120: 015172 | B120: 北海道 | C120: 礼文町 | D120: ﾎｯｶｲﾄﾞｳ | E120: ﾚﾌﾞﾝﾁｮｳ
A121: 015181 | B121: 北海道 | C121: 利尻町 | D121: ﾎｯｶｲﾄﾞｳ | E121: ﾘｼﾘﾁｮｳ
A122: 015199 | B122: 北海道 | C122: 利尻富士町 | D122: ﾎｯｶｲﾄﾞｳ | E122: ﾘｼﾘﾌｼﾞﾁｮｳ
A123: 015202 | B123: 北海道 | C123: 幌延町 | D123: ﾎｯｶｲﾄﾞｳ | E123: ﾎﾛﾉﾍﾞﾁｮｳ
A124: 015431 | B124: 北海道 | C124: 美幌町 | D124: ﾎｯｶｲﾄﾞｳ | E124: ﾋﾞﾎﾛﾁｮｳ
A125: 015440 | B125: 北海道 | C125: 津別町 | D125: ﾎｯｶｲﾄﾞｳ | E125: ﾂﾍﾞﾂﾁｮｳ
A126: 015458 | B126: 北海道 | C126: 斜里町 | D126: ﾎｯｶｲﾄﾞｳ | E126: ｼｬﾘﾁｮｳ
A127: 015466 | B127: 北海道 | C127: 清里町 | D127: ﾎｯｶｲﾄﾞｳ | E127: ｷﾖｻﾄﾁｮｳ
A128: 015474 | B128: 北海道 | C128: 小清水町 | D128: ﾎｯｶｲﾄﾞｳ | E128: ｺｼﾐｽﾞﾁｮｳ
A129: 015491 | B129: 北海道 | C129: 訓子府町 | D129: ﾎｯｶｲﾄﾞｳ | E129: ｸﾝﾈｯﾌﾟﾁｮｳ
A130: 015504 | B130: 北海道 | C130: 置戸町 | D130: ﾎｯｶｲﾄﾞｳ | E130: ｵｹﾄﾁｮｳ
A131: 015521 | B131: 北海道 | C131: 佐呂間町 | D131: ﾎｯｶｲﾄﾞｳ | E131: ｻﾛﾏﾁｮｳ
A132: 015555 | B132: 北海道 | C132: 遠軽町 | D132: ﾎｯｶｲﾄﾞｳ | E132: ｴﾝｶﾞﾙﾁｮｳ
A133: 015598 | B133: 北海道 | C133: 湧別町 | D133: ﾎｯｶｲﾄﾞｳ | E133: ﾕｳﾍﾞﾂﾁｮｳ
A134: 015601 | B134: 北海道 | C134: 滝上町 | D134: ﾎｯｶｲﾄﾞｳ | E134: ﾀｷﾉｳｴﾁｮｳ
A135: 015610 | B135: 北海道 | C135: 興部町 | D135: ﾎｯｶｲﾄﾞｳ | E135: ｵｺｯﾍﾟﾁｮｳ
A136: 015628 | B136: 北海道 | C136: 西興部村 | D136: ﾎｯｶｲﾄﾞｳ | E136: ﾆｼｵｺｯﾍﾟﾑﾗ
A137: 015636 | B137: 北海道 | C137: 雄武町 | D137: ﾎｯｶｲﾄﾞｳ | E137: ｵｳﾑﾁｮｳ
A138: 015644 | B138: 北海道 | C138: 大空町 | D138: ﾎｯｶｲﾄﾞｳ | E138: ｵｵｿﾞﾗﾁｮｳ
A139: 015717 | B139: 北海道 | C139: 豊浦町 | D139: ﾎｯｶｲﾄﾞｳ | E139: ﾄﾖｳﾗﾁｮｳ
A140: 015750 | B140: 北海道 | C140: 壮瞥町 | D140: ﾎｯｶｲﾄﾞｳ | E140: ｿｳﾍﾞﾂﾁｮｳ
A141: 015784 | B141: 北海道 | C141: 白老町 | D141: ﾎｯｶｲﾄﾞｳ | E141: ｼﾗｵｲﾁｮｳ
A142: 015814 | B142: 北海道 | C142: 厚真町 | D142: ﾎｯｶｲﾄﾞｳ | E142: ｱﾂﾏﾁｮｳ
A143: 015849 | B143: 北海道 | C143: 洞爺湖町 | D143: ﾎｯｶｲﾄﾞｳ | E143: ﾄｳﾔｺﾁｮｳ
A144: 015857 | B144: 北海道 | C144: 安平町 | D144: ﾎｯｶｲﾄﾞｳ | E144: ｱﾋﾞﾗﾁｮｳ
A145: 015865 | B145: 北海道 | C145: むかわ町 | D145: ﾎｯｶｲﾄﾞｳ | E145: ﾑｶﾜﾁｮｳ
A146: 016012 | B146: 北海道 | C146: 日高町 | D146: ﾎｯｶｲﾄﾞｳ | E146: ﾋﾀﾞｶﾁｮｳ
A147: 016021 | B147: 北海道 | C147: 平取町 | D147: ﾎｯｶｲﾄﾞｳ | E147: ﾋﾞﾗﾄﾘﾁｮｳ
A148: 016047 | B148: 北海道 | C148: 新冠町 | D148: ﾎｯｶｲﾄﾞｳ | E148: ﾆｲｶｯﾌﾟﾁｮｳ
A149: 016071 | B149: 北海道 | C149: 浦河町 | D149: ﾎｯｶｲﾄﾞｳ | E149: ｳﾗｶﾜﾁｮｳ
A150: 016080 | B150: 北海道 | C150: 様似町 | D150: ﾎｯｶｲﾄﾞｳ | E150: ｻﾏﾆﾁｮｳ
A151: 016098 | B151: 北海道 | C151: えりも町 | D151: ﾎｯｶｲﾄﾞｳ | E151: ｴﾘﾓﾁｮｳ
A152: 016101 | B152: 北海道 | C152: 新ひだか町 | D152: ﾎｯｶｲﾄﾞｳ | E152: ｼﾝﾋﾀﾞｶﾁｮｳ
A153: 016314 | B153: 北海道 | C153: 音更町 | D153: ﾎｯｶｲﾄﾞｳ | E153: ｵﾄﾌｹﾁｮｳ
A154: 016322 | B154: 北海道 | C154: 士幌町 | D154: ﾎｯｶｲﾄﾞｳ | E154: ｼﾎﾛﾁｮｳ
A155: 016331 | B155: 北海道 | C155: 上士幌町 | D155: ﾎｯｶｲﾄﾞｳ | E155: ｶﾐｼﾎﾛﾁｮｳ
A156: 016349 | B156: 北海道 | C156: 鹿追町 | D156: ﾎｯｶｲﾄﾞｳ | E156: ｼｶｵｲﾁｮｳ
A157: 016357 | B157: 北海道 | C157: 新得町 | D157: ﾎｯｶｲﾄﾞｳ | E157: ｼﾝﾄｸﾁｮｳ
A158: 016365 | B158: 北海道 | C158: 清水町 | D158: ﾎｯｶｲﾄﾞｳ | E158: ｼﾐｽﾞﾁｮｳ
A159: 016373 | B159: 北海道 | C159: 芽室町 | D159: ﾎｯｶｲﾄﾞｳ | E159: ﾒﾑﾛﾁｮｳ
A160: 016381 | B160: 北海道 | C160: 中札内村 | D160: ﾎｯｶｲﾄﾞｳ | E160: ﾅｶｻﾂﾅｲﾑﾗ
A161: 016390 | B161: 北海道 | C161: 更別村 | D161: ﾎｯｶｲﾄﾞｳ | E161: ｻﾗﾍﾞﾂﾑﾗ
A162: 016411 | B162: 北海道 | C162: 大樹町 | D162: ﾎｯｶｲﾄﾞｳ | E162: ﾀｲｷﾁｮｳ
A163: 016420 | B163: 北海道 | C163: 広尾町 | D163: ﾎｯｶｲﾄﾞｳ | E163: ﾋﾛｵﾁｮｳ
A164: 016438 | B164: 北海道 | C164: 幕別町 | D164: ﾎｯｶｲﾄﾞｳ | E164: ﾏｸﾍﾞﾂﾁｮｳ
A165: 016446 | B165: 北海道 | C165: 池田町 | D165: ﾎｯｶｲﾄﾞｳ | E165: ｲｹﾀﾞﾁｮｳ
A166: 016454 | B166: 北海道 | C166: 豊頃町 | D166: ﾎｯｶｲﾄﾞｳ | E166: ﾄﾖｺﾛﾁｮｳ
A167: 016462 | B167: 北海道 | C167: 本別町 | D167: ﾎｯｶｲﾄﾞｳ | E167: ﾎﾝﾍﾞﾂﾁｮｳ
A168: 016471 | B168: 北海道 | C168: 足寄町 | D168: ﾎｯｶｲﾄﾞｳ | E168: ｱｼｮﾛﾁｮｳ
A169: 016489 | B169: 北海道 | C169: 陸別町 | D169: ﾎｯｶｲﾄﾞｳ | E169: ﾘｸﾍﾞﾂﾁｮｳ
A170: 016497 | B170: 北海道 | C170: 浦幌町 | D170: ﾎｯｶｲﾄﾞｳ | E170: ｳﾗﾎﾛﾁｮｳ
A171: 016616 | B171: 北海道 | C171: 釧路町 | D171: ﾎｯｶｲﾄﾞｳ | E171: ｸｼﾛﾁｮｳ
A172: 016624 | B172: 北海道 | C172: 厚岸町 | D172: ﾎｯｶｲﾄﾞｳ | E172: ｱｯｹｼﾁｮｳ
A173: 016632 | B173: 北海道 | C173: 浜中町 | D173: ﾎｯｶｲﾄﾞｳ | E173: ﾊﾏﾅｶﾁｮｳ
A174: 016641 | B174: 北海道 | C174: 標茶町 | D174: ﾎｯｶｲﾄﾞｳ | E174: ｼﾍﾞﾁｬﾁｮｳ
A175: 016659 | B175: 北海道 | C175: 弟子屈町 | D175: ﾎｯｶｲﾄﾞｳ | E175: ﾃｼｶｶﾞﾁｮｳ
A176: 016675 | B176: 北海道 | C176: 鶴居村 | D176: ﾎｯｶｲﾄﾞｳ | E176: ﾂﾙｲﾑﾗ
A177: 016683 | B177: 北海道 | C177: 白糠町 | D177: ﾎｯｶｲﾄﾞｳ | E177: ｼﾗﾇｶﾁｮｳ
A178: 016918 | B178: 北海道 | C178: 別海町 | D178: ﾎｯｶｲﾄﾞｳ | E178: ﾍﾞﾂｶｲﾁｮｳ
A179: 016926 | B179: 北海道 | C179: 中標津町 | D179: ﾎｯｶｲﾄﾞｳ | E179: ﾅｶｼﾍﾞﾂﾁｮｳ
A180: 016934 | B180: 北海道 | C180: 標津町 | D180: ﾎｯｶｲﾄﾞｳ | E180: ｼﾍﾞﾂﾁｮｳ
A181: 016942 | B181: 北海道 | C181: 羅臼町 | D181: ﾎｯｶｲﾄﾞｳ | E181: ﾗｳｽﾁｮｳ
A182: 020001 | B182: 青森県 | D182: ｱｵﾓﾘｹﾝ
A183: 022012 | B183: 青森県 | C183: 青森市 | D183: ｱｵﾓﾘｹﾝ | E183: ｱｵﾓﾘｼ
A184: 022021 | B184: 青森県 | C184: 弘前市 | D184: ｱｵﾓﾘｹﾝ | E184: ﾋﾛｻｷｼ
A185: 022039 | B185: 青森県 | C185: 八戸市 | D185: ｱｵﾓﾘｹﾝ | E185: ﾊﾁﾉﾍｼ
A186: 022047 | B186: 青森県 | C186: 黒石市 | D186: ｱｵﾓﾘｹﾝ | E186: ｸﾛｲｼｼ
A187: 022055 | B187: 青森県 | C187: 五所川原市 | D187: ｱｵﾓﾘｹﾝ | E187: ｺﾞｼｮｶﾞﾜﾗｼ
A188: 022063 | B188: 青森県 | C188: 十和田市 | D188: ｱｵﾓﾘｹﾝ | E188: ﾄﾜﾀﾞｼ
A189: 022071 | B189: 青森県 | C189: 三沢市 | D189: ｱｵﾓﾘｹﾝ | E189: ﾐｻﾜｼ
A190: 022080 | B190: 青森県 | C190: むつ市 | D190: ｱｵﾓﾘｹﾝ | E190: ﾑﾂｼ
A191: 022098 | B191: 青森県 | C191: つがる市 | D191: ｱｵﾓﾘｹﾝ | E191: ﾂｶﾞﾙｼ
A192: 022101 | B192: 青森県 | C192: 平川市 | D192: ｱｵﾓﾘｹﾝ | E192: ﾋﾗｶﾜｼ
A193: 023019 | B193: 青森県 | C193: 平内町 | D193: ｱｵﾓﾘｹﾝ | E193: ﾋﾗﾅｲﾏﾁ
A194: 023035 | B194: 青森県 | C194: 今別町 | D194: ｱｵﾓﾘｹﾝ | E194: ｲﾏﾍﾞﾂﾏﾁ
A195: 023043 | B195: 青森県 | C195: 蓬田村 | D195: ｱｵﾓﾘｹﾝ | E195: ﾖﾓｷﾞﾀﾑﾗ
A196: 023078 | B196: 青森県 | C196: 外ヶ浜町 | D196: ｱｵﾓﾘｹﾝ | E196: ｿﾄｶﾞﾊﾏﾏﾁ
A197: 023213 | B197: 青森県 | C197: 鰺ヶ沢町 | D197: ｱｵﾓﾘｹﾝ | E197: ｱｼﾞｶﾞｻﾜﾏﾁ
A198: 023230 | B198: 青森県 | C198: 深浦町 | D198: ｱｵﾓﾘｹﾝ | E198: ﾌｶｳﾗﾏﾁ
A199: 023434 | B199: 青森県 | C199: 西目屋村 | D199: ｱｵﾓﾘｹﾝ | E199: ﾆｼﾒﾔﾑﾗ
A200: 023612 | B200: 青森県 | C200: 藤崎町 | D200: ｱｵﾓﾘｹﾝ | E200: ﾌｼﾞｻｷﾏﾁ
... 1589 more rows

Sheet 補助率判定 (hidden)
A1: 分類 | B1: 団体コード | C1: 都道府県名 | D1: 団体名 | E1: 財政力指数 | F1: 財政力指数(統一) | G1: 補助率一時判定 | H1: 特定団体コード判定 | I1: 補助率判定
A2: 都道府県 | B2: 010006 | C2: 北海道 | E2: 46275 | F2: =IF(A2="都道府県",E2/100000,IF(A2="市区町村",E2/100,"エラー")) -> 0.46275 | G2: =IF(F2<>"エラー",IF(F2>=$N$16, 1, IF(F2<=$N$18, 3, 2)),"エラー") -> 2 | H2: =IF(_xlfn.IFNA(VLOOKUP(B2,$T:$T,1,0),"")="","","〇") ->  | I2: =IF(H2="〇",1,G2) -> 2
A3: 都道府県 | B3: 020001 | C3: 青森県 | E3: 36141 | F3: =IF(A3="都道府県",E3/100000,IF(A3="市区町村",E3/100,"エラー")) -> 0.36141 | G3: =IF(F3<>"エラー",IF(F3>=$N$16, 1, IF(F3<=$N$18, 3, 2)),"エラー") -> 2 | I3: =IF(H3="〇",1,G3) -> 2
A4: 都道府県 | B4: 030007 | C4: 岩手県 | E4: 36343 | F4: 0.36343 | G4: 2 | I4: 2
A5: 都道府県 | B5: 040002 | C5: 宮城県 | E5: 60728 | F5: =IF(A5="都道府県",E5/100000,IF(A5="市区町村",E5/100,"エラー")) -> 0.60728 | G5: 2 | I5: 2
A6: 都道府県 | B6: 050008 | C6: 秋田県 | E6: 32741 | F6: 0.32741 | G6: 2 | I6: 2
A7: 都道府県 | B7: 060003 | C7: 山形県 | E7: 37417 | F7: =IF(A7="都道府県",E7/100000,IF(A7="市区町村",E7/100,"エラー")) -> 0.37417 | G7: 2 | I7: 2
A8: 都道府県 | B8: 070009 | C8: 福島県 | E8: 51927 | F8: 0.51927 | G8: 2 | I8: 2 | K8: 令和8年度用 補助率の変動パターン設定
A9: 都道府県 | B9: 080004 | C9: 茨城県 | E9: 63608 | F9: 0.63608 | G9: 2 | I9: 2
A10: 都道府県 | B10: 090000 | C10: 栃木県 | E10: 61911 | F10: 0.61911 | G10: 2 | I10: 2 | T10: 特定団体コード
A11: 都道府県 | B11: 100005 | C11: 群馬県 | E11: 61000 | F11: 0.61 | G11: 2 | I11: 2
A12: 都道府県 | B12: 110001 | C12: 埼玉県 | E12: 74307 | F12: 0.74307 | G12: 2 | I12: 2 | L12: ・ 特定団体コード一覧に存在する場合 | P12: → パターン1 | T12: 団体コード | U12: 都道府県名 | V12: 団体名
A13: 都道府県 | B13: 120006 | C13: 千葉県 | E13: 75137 | F13: 0.75137 | G13: 2 | I13: 2
A14: 都道府県 | B14: 130001 | C14: 東京都 | E14: 121132 | F14: 1.21132 | G14: 1 | I14: 1 | L14: 上記以外
A15: 都道府県 | B15: 140007 | C15: 神奈川県 | E15: 86325 | F15: 0.86325 | G15: 2 | I15: 2
A16: 都道府県 | B16: 150002 | C16: 新潟県 | E16: 46842 | F16: 0.46842 | G16: 2 | I16: 2 | L16: ・ 財政力指数 | N16: 1 | O16: 以上 | P16: → パターン1
A17: 都道府県 | B17: 160008 | C17: 富山県 | E17: 46593 | F17: 0.46593 | G17: 2 | I17: 2 | L17: ・ 通常 | P17: → パターン2
A18: 都道府県 | B18: 170003 | C18: 石川県 | E18: 49769 | F18: 0.49769 | G18: 2 | I18: 2 | L18: ・ 財政力指数 | N18: 0 | O18: 以下 | P18: → パターン3
A19: 都道府県 | B19: 180009 | C19: 福井県 | E19: 42101 | F19: 0.42101 | G19: 2 | I19: 2
A20: 都道府県 | B20: 190004 | C20: 山梨県 | E20: 40292 | F20: 0.40292 | G20: 2 | I20: 2
A21: 都道府県 | B21: 200000 | C21: 長野県 | E21: 52667 | F21: 0.52667 | G21: 2 | I21: 2
A22: 都道府県 | B22: 210005 | C22: 岐阜県 | E22: 53775 | F22: 0.53775 | G22: 2 | I22: 2
A23: 都道府県 | B23: 220001 | C23: 静岡県 | E23: 68341 | F23: 0.68341 | G23: 2 | I23: 2
A24: 都道府県 | B24: 230006 | C24: 愛知県 | E24: 87787 | F24: 0.87787 | G24: 2 | I24: 2
A25: 都道府県 | B25: 240001 | C25: 三重県 | E25: 57393 | F25: 0.57393 | G25: 2 | I25: 2
A26: 都道府県 | B26: 250007 | C26: 滋賀県 | E26: 54888 | F26: 0.54888 | G26: 2 | I26: 2
A27: 都道府県 | B27: 260002 | C27: 京都府 | E27: 58058 | F27: 0.58058 | G27: 2 | I27: 2
A28: 都道府県 | B28: 270008 | C28: 大阪府 | E28: 75388 | F28: 0.75388 | G28: 2 | I28: 2
A29: 都道府県 | B29: 280003 | C29: 兵庫県 | E29: 62169 | F29: 0.62169 | G29: 2 | I29: 2
A30: 都道府県 | B30: 290009 | C30: 奈良県 | E30: 41554 | F30: 0.41554 | G30: 2 | I30: 2
A31: 都道府県 | B31: 300004 | C31: 和歌山県 | E31: 32913 | F31: 0.32913 | G31: 2 | I31: 2
A32: 都道府県 | B32: 310000 | C32: 鳥取県 | E32: 28178 | F32: 0.28178 | G32: 2 | I32: 2
A33: 都道府県 | B33: 320005 | C33: 島根県 | E33: 27455 | F33: 0.27455 | G33: 2 | I33: 2
A34: 都道府県 | B34: 330001 | C34: 岡山県 | E34: 52853 | F34: 0.52853 | G34: 2 | I34: 2
A35: 都道府県 | B35: 340006 | C35: 広島県 | E35: 60229 | F35: 0.60229 | G35: 2 | I35: 2
A36: 都道府県 | B36: 350001 | C36: 山口県 | E36: 45134 | F36: 0.45134 | G36: 2 | I36: 2
A37: 都道府県 | B37: 360007 | C37: 徳島県 | E37: 33554 | F37: 0.33554 | G37: 2 | I37: 2
A38: 都道府県 | B38: 370002 | C38: 香川県 | E38: 45890 | F38: 0.4589 | G38: 2 | I38: 2
A39: 都道府県 | B39: 380008 | C39: 愛媛県 | E39: 44758 | F39: 0.44758 | G39: 2 | I39: 2
A40: 都道府県 | B40: 390003 | C40: 高知県 | E40: 27477 | F40: 0.27477 | G40: 2 | I40: 2
A41: 都道府県 | B41: 400009 | C41: 福岡県 | E41: 63618 | F41: 0.63618 | G41: 2 | I41: 2
A42: 都道府県 | B42: 410004 | C42: 佐賀県 | E42: 36078 | F42: 0.36078 | G42: 2 | I42: 2
A43: 都道府県 | B43: 420000 | C43: 長崎県 | E43: 34583 | F43: 0.34583 | G43: 2 | I43: 2
A44: 都道府県 | B44: 430005 | C44: 熊本県 | E44: 42277 | F44: 0.42277 | G44: 2 | I44: 2
A45: 都道府県 | B45: 440001 | C45: 大分県 | E45: 39115 | F45: 0.39115 | G45: 2 | I45: 2
A46: 都道府県 | B46: 450006 | C46: 宮崎県 | E46: 36028 | F46: 0.36028 | G46: 2 | I46: 2
A47: 都道府県 | B47: 460001 | C47: 鹿児島県 | E47: 35726 | F47: 0.35726 | G47: 2 | I47: 2
A48: 都道府県 | B48: 470007 | C48: 沖縄県 | E48: 38002 | F48: 0.38002 | G48: 2 | I48: 2
A49: 市区町村 | B49: 011002 | C49: 北海道 | D49: 札幌市 | E49: 70 | F49: 0.7 | G49: 2 | I49: 2
A50: 市区町村 | B50: 012025 | C50: 北海道 | D50: 函館市 | E50: 48 | F50: 0.48 | G50: 2 | I50: 2
A51: 市区町村 | B51: 012033 | C51: 北海道 | D51: 小樽市 | E51: 47 | F51: 0.47 | G51: 2 | I51: 2
A52: 市区町村 | B52: 012041 | C52: 北海道 | D52: 旭川市 | E52: 53 | F52: =IF(A52="都道府県",E52/100000,IF(A52="市区町村",E52/100,"エラー")) -> 0.53 | G52: 2 | I52: 2
A53: 市区町村 | B53: 012050 | C53: 北海道 | D53: 室蘭市 | E53: 62 | F53: 0.62 | G53: 2 | I53: 2
A54: 市区町村 | B54: 012068 | C54: 北海道 | D54: 釧路市 | E54: 45 | F54: 0.45 | G54: 2 | I54: 2
A55: 市区町村 | B55: 012076 | C55: 北海道 | D55: 帯広市 | E55: 60 | F55: 0.6 | G55: 2 | I55: 2
A56: 市区町村 | B56: 012084 | C56: 北海道 | D56: 北見市 | E56: 44 | F56: 0.44 | G56: 2 | I56: 2
A57: 市区町村 | B57: 012092 | C57: 北海道 | D57: 夕張市 | E57: 19 | F57: 0.19 | G57: 2 | I57: 2
A58: 市区町村 | B58: 012106 | C58: 北海道 | D58: 岩見沢市 | E58: 38 | F58: 0.38 | G58: 2 | I58: 2
A59: 市区町村 | B59: 012114 | C59: 北海道 | D59: 網走市 | E59: 45 | F59: 0.45 | G59: 2 | I59: 2
A60: 市区町村 | B60: 012122 | C60: 北海道 | D60: 留萌市 | E60: 32 | F60: 0.32 | G60: 2 | I60: 2
A61: 市区町村 | B61: 012131 | C61: 北海道 | D61: 苫小牧市 | E61: 75 | F61: 0.75 | G61: 2 | I61: 2
A62: 市区町村 | B62: 012149 | C62: 北海道 | D62: 稚内市 | E62: 40 | F62: 0.4 | G62: 2 | I62: 2
A63: 市区町村 | B63: 012157 | C63: 北海道 | D63: 美唄市 | E63: 26 | F63: 0.26 | G63: 2 | I63: 2
A64: 市区町村 | B64: 012165 | C64: 北海道 | D64: 芦別市 | E64: 25 | F64: 0.25 | G64: 2 | I64: 2
A65: 市区町村 | B65: 012173 | C65: 北海道 | D65: 江別市 | E65: 52 | F65: 0.52 | G65: 2 | I65: 2
A66: 市区町村 | B66: 012181 | C66: 北海道 | D66: 赤平市 | E66: 18 | F66: 0.18 | G66: 2 | H66: =IF(_xlfn.IFNA(VLOOKUP(B66,$T:$T,1,0),"")="","","〇") ->  | I66: 2
A67: 市区町村 | B67: 012190 | C67: 北海道 | D67: 紋別市 | E67: 34 | F67: 0.34 | G67: =IF(F67<>"エラー",IF(F67>=$N$16, 1, IF(F67<=$N$18, 3, 2)),"エラー") -> 2 | I67: =IF(H67="〇",1,G67) -> 2
A68: 市区町村 | B68: 012203 | C68: 北海道 | D68: 士別市 | E68: 25 | F68: 0.25 | G68: 2 | I68: 2
A69: 市区町村 | B69: 012211 | C69: 北海道 | D69: 名寄市 | E69: 27 | F69: 0.27 | G69: 2 | I69: 2
A70: 市区町村 | B70: 012220 | C70: 北海道 | D70: 三笠市 | E70: 19 | F70: 0.19 | G70: 2 | I70: 2
A71: 市区町村 | B71: 012238 | C71: 北海道 | D71: 根室市 | E71: 34 | F71: 0.34 | G71: 2 | I71: 2
A72: 市区町村 | B72: 012246 | C72: 北海道 | D72: 千歳市 | E72: 71 | F72: 0.71 | G72: 2 | I72: 2
A73: 市区町村 | B73: 012254 | C73: 北海道 | D73: 滝川市 | E73: 39 | F73: 0.39 | G73: 2 | I73: 2
A74: 市区町村 | B74: 012262 | C74: 北海道 | D74: 砂川市 | E74: 30 | F74: 0.3 | G74: 2 | I74: 2
A75: 市区町村 | B75: 012271 | C75: 北海道 | D75: 歌志内市 | E75: 11 | F75: 0.11 | G75: 2 | I75: 2
A76: 市区町村 | B76: 012289 | C76: 北海道 | D76: 深川市 | E76: 26 | F76: 0.26 | G76: 2 | I76: 2
A77: 市区町村 | B77: 012297 | C77: 北海道 | D77: 富良野市 | E77: 36 | F77: 0.36 | G77: 2 | I77: 2
A78: 市区町村 | B78: 012301 | C78: 北海道 | D78: 登別市 | E78: 47 | F78: 0.47 | G78: 2 | I78: 2
A79: 市区町村 | B79: 012319 | C79: 北海道 | D79: 恵庭市 | E79: 59 | F79: 0.59 | G79: 2 | I79: 2
A80: 市区町村 | B80: 012335 | C80: 北海道 | D80: 伊達市 | E80: 38 | F80: 0.38 | G80: 2 | I80: 2
A81: 市区町村 | B81: 012343 | C81: 北海道 | D81: 北広島市 | E81: 62 | F81: 0.62 | G81: 2 | I81: 2
A82: 市区町村 | B82: 012351 | C82: 北海道 | D82: 石狩市 | E82: 55 | F82: 0.55 | G82: 2 | I82: 2
A83: 市区町村 | B83: 012360 | C83: 北海道 | D83: 北斗市 | E83: 48 | F83: 0.48 | G83: 2 | I83: 2
A84: 市区町村 | B84: 013030 | C84: 北海道 | D84: 当別町 | E84: 37 | F84: 0.37 | G84: 2 | I84: 2
A85: 市区町村 | B85: 013048 | C85: 北海道 | D85: 新篠津村 | E85: 18 | F85: 0.18 | G85: 2 | I85: 2
A86: 市区町村 | B86: 013315 | C86: 北海道 | D86: 松前町 | E86: 18 | F86: 0.18 | G86: 2 | I86: 2
A87: 市区町村 | B87: 013323 | C87: 北海道 | D87: 福島町 | E87: 21 | F87: 0.21 | G87: 2 | I87: 2
A88: 市区町村 | B88: 013331 | C88: 北海道 | D88: 知内町 | E88: 27 | F88: 0.27 | G88: 2 | I88: 2
A89: 市区町村 | B89: 013340 | C89: 北海道 | D89: 木古内町 | E89: 20 | F89: 0.2 | G89: 2 | I89: 2
A90: 市区町村 | B90: 013374 | C90: 北海道 | D90: 七飯町 | E90: 45 | F90: 0.45 | G90: 2 | I90: 2
A91: 市区町村 | B91: 013439 | C91: 北海道 | D91: 鹿部町 | E91: 23 | F91: 0.23 | G91: 2 | I91: 2
A92: 市区町村 | B92: 013455 | C92: 北海道 | D92: 森町 | E92: 32 | F92: 0.32 | G92: 2 | I92: 2
A93: 市区町村 | B93: 013463 | C93: 北海道 | D93: 八雲町 | E93: 30 | F93: 0.3 | G93: 2 | I93: 2
A94: 市区町村 | B94: 013471 | C94: 北海道 | D94: 長万部町 | E94: 23 | F94: 0.23 | G94: 2 | I94: 2
A95: 市区町村 | B95: 013617 | C95: 北海道 | D95: 江差町 | E95: 25 | F95: 0.25 | G95: 2 | I95: 2
A96: 市区町村 | B96: 013625 | C96: 北海道 | D96: 上ノ国町 | E96: 16 | F96: 0.16 | G96: 2 | I96: 2
A97: 市区町村 | B97: 013633 | C97: 北海道 | D97: 厚沢部町 | E97: 16 | F97: 0.16 | G97: 2 | I97: 2
A98: 市区町村 | B98: 013641 | C98: 北海道 | D98: 乙部町 | E98: 14 | F98: 0.14 | G98: 2 | I98: 2
A99: 市区町村 | B99: 013676 | C99: 北海道 | D99: 奥尻町 | E99: 13 | F99: 0.13 | G99: 2 | I99: 2
A100: 市区町村 | B100: 013706 | C100: 北海道 | D100: 今金町 | E100: 19 | F100: 0.19 | G100: 2 | I100: 2
A101: 市区町村 | B101: 013714 | C101: 北海道 | D101: せたな町 | E101: 17 | F101: 0.17 | G101: 2 | I101: 2
A102: 市区町村 | B102: 013919 | C102: 北海道 | D102: 島牧村 | E102: 8 | F102: 0.08 | G102: 2 | I102: 2
A103: 市区町村 | B103: 013927 | C103: 北海道 | D103: 寿都町 | E103: 15 | F103: 0.15 | G103: 2 | I103: 2
A104: 市区町村 | B104: 013935 | C104: 北海道 | D104: 黒松内町 | E104: 14 | F104: 0.14 | G104: 2 | I104: 2
A105: 市区町村 | B105: 013943 | C105: 北海道 | D105: 蘭越町 | E105: 19 | F105: 0.19 | G105: 2 | I105: 2
A106: 市区町村 | B106: 013951 | C106: 北海道 | D106: ニセコ町 | E106: 30 | F106: 0.3 | G106: 2 | I106: 2
A107: 市区町村 | B107: 013960 | C107: 北海道 | D107: 真狩村 | E107: 16 | F107: 0.16 | G107: 2 | I107: 2
A108: 市区町村 | B108: 013978 | C108: 北海道 | D108: 留寿都村 | E108: 25 | F108: 0.25 | G108: 2 | I108: 2
A109: 市区町村 | B109: 013986 | C109: 北海道 | D109: 喜茂別町 | E109: 18 | F109: 0.18 | G109: 2 | I109: 2
A110: 市区町村 | B110: 013994 | C110: 北海道 | D110: 京極町 | E110: 59 | F110: 0.59 | G110: 2 | I110: 2
A111: 市区町村 | B111: 014001 | C111: 北海道 | D111: 倶知安町 | E111: 70 | F111: 0.7 | G111: 2 | I111: 2
A112: 市区町村 | B112: 014010 | C112: 北海道 | D112: 共和町 | E112: 23 | F112: 0.23 | G112: 2 | I112: 2
A113: 市区町村 | B113: 014028 | C113: 北海道 | D113: 岩内町 | E113: 30 | F113: 0.3 | G113: 2 | I113: 2
A114: 市区町村 | B114: 014036 | C114: 北海道 | D114: 泊村 | E114: 139 | F114: 1.39 | G114: 1 | I114: 1
A115: 市区町村 | B115: 014044 | C115: 北海道 | D115: 神恵内村 | E115: 10 | F115: 0.1 | G115: 2 | I115: 2
A116: 市区町村 | B116: 014052 | C116: 北海道 | D116: 積丹町 | E116: 11 | F116: =IF(A116="都道府県",E116/100000,IF(A116="市区町村",E116/100,"エラー")) -> 0.11 | G116: 2 | I116: 2
A117: 市区町村 | B117: 014061 | C117: 北海道 | D117: 古平町 | E117: 12 | F117: 0.12 | G117: 2 | I117: 2
A118: 市区町村 | B118: 014079 | C118: 北海道 | D118: 仁木町 | E118: 17 | F118: 0.17 | G118: 2 | I118: 2
A119: 市区町村 | B119: 014087 | C119: 北海道 | D119: 余市町 | E119: 34 | F119: 0.34 | G119: 2 | I119: 2
A120: 市区町村 | B120: 014095 | C120: 北海道 | D120: 赤井川村 | E120: 24 | F120: 0.24 | G120: 2 | I120: 2
A121: 市区町村 | B121: 014231 | C121: 北海道 | D121: 南幌町 | E121: 28 | F121: 0.28 | G121: 2 | I121: 2
A122: 市区町村 | B122: 014249 | C122: 北海道 | D122: 奈井江町 | E122: 24 | F122: 0.24 | G122: 2 | I122: 2
A123: 市区町村 | B123: 014257 | C123: 北海道 | D123: 上砂川町 | E123: 11 | F123: 0.11 | G123: 2 | I123: 2
A124: 市区町村 | B124: 014273 | C124: 北海道 | D124: 由仁町 | E124: 22 | F124: 0.22 | G124: 2 | I124: 2
A125: 市区町村 | B125: 014281 | C125: 北海道 | D125: 長沼町 | E125: 30 | F125: 0.3 | G125: 2 | I125: 2
A126: 市区町村 | B126: 014290 | C126: 北海道 | D126: 栗山町 | E126: 29 | F126: 0.29 | G126: 2 | I126: 2
A127: 市区町村 | B127: 014303 | C127: 北海道 | D127: 月形町 | E127: 15 | F127: 0.15 | G127: 2 | I127: 2
A128: 市区町村 | B128: 014311 | C128: 北海道 | D128: 浦臼町 | E128: 14 | F128: 0.14 | G128: 2 | I128: 2
A129: 市区町村 | B129: 014320 | C129: 北海道 | D129: 新十津川町 | E129: 18 | F129: 0.18 | G129: 2 | I129: 2
A130: 市区町村 | B130: 014338 | C130: 北海道 | D130: 妹背牛町 | E130: 16 | F130: 0.16 | G130: 2 | H130: =IF(_xlfn.IFNA(VLOOKUP(B130,$T:$T,1,0),"")="","","〇") ->  | I130: 2
A131: 市区町村 | B131: 014346 | C131: 北海道 | D131: 秩父別町 | E131: 15 | F131: 0.15 | G131: =IF(F131<>"エラー",IF(F131>=$N$16, 1, IF(F131<=$N$18, 3, 2)),"エラー") -> 2 | I131: =IF(H131="〇",1,G131) -> 2
A132: 市区町村 | B132: 014362 | C132: 北海道 | D132: 雨竜町 | E132: 15 | F132: 0.15 | G132: 2 | I132: 2
A133: 市区町村 | B133: 014371 | C133: 北海道 | D133: 北竜町 | E133: 12 | F133: 0.12 | G133: 2 | I133: 2
A134: 市区町村 | B134: 014389 | C134: 北海道 | D134: 沼田町 | E134: 15 | F134: 0.15 | G134: 2 | I134: 2
A135: 市区町村 | B135: 014524 | C135: 北海道 | D135: 鷹栖町 | E135: 27 | F135: 0.27 | G135: 2 | I135: 2
A136: 市区町村 | B136: 014532 | C136: 北海道 | D136: 東神楽町 | E136: 36 | F136: 0.36 | G136: 2 | I136: 2
A137: 市区町村 | B137: 014541 | C137: 北海道 | D137: 当麻町 | E137: 20 | F137: 0.2 | G137: 2 | I137: 2
A138: 市区町村 | B138: 014559 | C138: 北海道 | D138: 比布町 | E138: 17 | F138: 0.17 | G138: 2 | I138: 2
A139: 市区町村 | B139: 014567 | C139: 北海道 | D139: 愛別町 | E139: 15 | F139: 0.15 | G139: 2 | I139: 2
A140: 市区町村 | B140: 014575 | C140: 北海道 | D140: 上川町 | E140: 15 | F140: 0.15 | G140: 2 | I140: 2
A141: 市区町村 | B141: 014583 | C141: 北海道 | D141: 東川町 | E141: 24 | F141: 0.24 | G141: 2 | I141: 2
A142: 市区町村 | B142: 014591 | C142: 北海道 | D142: 美瑛町 | E142: 22 | F142: 0.22 | G142: 2 | I142: 2
A143: 市区町村 | B143: 014605 | C143: 北海道 | D143: 上富良野町 | E143: 30 | F143: 0.3 | G143: 2 | I143: 2
A144: 市区町村 | B144: 014613 | C144: 北海道 | D144: 中富良野町 | E144: 22 | F144: 0.22 | G144: 2 | I144: 2
A145: 市区町村 | B145: 014621 | C145: 北海道 | D145: 南富良野町 | E145: 13 | F145: 0.13 | G145: 2 | I145: 2
A146: 市区町村 | B146: 014630 | C146: 北海道 | D146: 占冠村 | E146: 26 | F146: 0.26 | G146: 2 | I146: 2
A147: 市区町村 | B147: 014648 | C147: 北海道 | D147: 和寒町 | E147: 16 | F147: 0.16 | G147: 2 | I147: 2
A148: 市区町村 | B148: 014656 | C148: 北海道 | D148: 剣淵町 | E148: 15 | F148: 0.15 | G148: 2 | I148: 2
A149: 市区町村 | B149: 014681 | C149: 北海道 | D149: 下川町 | E149: 15 | F149: 0.15 | G149: 2 | I149: 2
A150: 市区町村 | B150: 014699 | C150: 北海道 | D150: 美深町 | E150: 15 | F150: 0.15 | G150: 2 | I150: 2
A151: 市区町村 | B151: 014702 | C151: 北海道 | D151: 音威子府村 | E151: 10 | F151: 0.1 | G151: 2 | I151: 2
A152: 市区町村 | B152: 014711 | C152: 北海道 | D152: 中川町 | E152: 12 | F152: 0.12 | G152: 2 | I152: 2
A153: 市区町村 | B153: 014729 | C153: 北海道 | D153: 幌加内町 | E153: 10 | F153: 0.1 | G153: 2 | I153: 2
A154: 市区町村 | B154: 014818 | C154: 北海道 | D154: 増毛町 | E154: 15 | F154: 0.15 | G154: 2 | I154: 2
A155: 市区町村 | B155: 014826 | C155: 北海道 | D155: 小平町 | E155: 14 | F155: 0.14 | G155: 2 | I155: 2
A156: 市区町村 | B156: 014834 | C156: 北海道 | D156: 苫前町 | E156: 15 | F156: 0.15 | G156: 2 | I156: 2
A157: 市区町村 | B157: 014842 | C157: 北海道 | D157: 羽幌町 | E157: 20 | F157: 0.2 | G157: 2 | I157: 2
A158: 市区町村 | B158: 014851 | C158: 北海道 | D158: 初山別村 | E158: 11 | F158: 0.11 | G158: 2 | I158: 2
A159: 市区町村 | B159: 014869 | C159: 北海道 | D159: 遠別町 | E159: 13 | F159: 0.13 | G159: 2 | I159: 2
A160: 市区町村 | B160: 014877 | C160: 北海道 | D160: 天塩町 | E160: 17 | F160: 0.17 | G160: 2 | I160: 2
A161: 市区町村 | B161: 015113 | C161: 北海道 | D161: 猿払村 | E161: 23 | F161: 0.23 | G161: 2 | I161: 2
A162: 市区町村 | B162: 015121 | C162: 北海道 | D162: 浜頓別町 | E162: 20 | F162: 0.2 | G162: 2 | I162: 2
A163: 市区町村 | B163: 015130 | C163: 北海道 | D163: 中頓別町 | E163: 11 | F163: 0.11 | G163: 2 | I163: 2
A164: 市区町村 | B164: 015148 | C164: 北海道 | D164: 枝幸町 | E164: 22 | F164: 0.22 | G164: 2 | I164: 2
A165: 市区町村 | B165: 015164 | C165: 北海道 | D165: 豊富町 | E165: 25 | F165: 0.25 | G165: 2 | I165: 2
A166: 市区町村 | B166: 015172 | C166: 北海道 | D166: 礼文町 | E166: 12 | F166: 0.12 | G166: 2 | I166: 2
A167: 市区町村 | B167: 015181 | C167: 北海道 | D167: 利尻町 | E167: 11 | F167: 0.11 | G167: 2 | I167: 2
A168: 市区町村 | B168: 015199 | C168: 北海道 | D168: 利尻富士町 | E168: 12 | F168: 0.12 | G168: 2 | I168: 2
A169: 市区町村 | B169: 015202 | C169: 北海道 | D169: 幌延町 | E169: 24 | F169: 0.24 | G169: 2 | I169: 2
A170: 市区町村 | B170: 015431 | C170: 北海道 | D170: 美幌町 | E170: 36 | F170: 0.36 | G170: 2 | I170: 2
A171: 市区町村 | B171: 015440 | C171: 北海道 | D171: 津別町 | E171: 20 | F171: 0.2 | G171: 2 | I171: 2
A172: 市区町村 | B172: 015458 | C172: 北海道 | D172: 斜里町 | E172: 33 | F172: 0.33 | G172: 2 | I172: 2
A173: 市区町村 | B173: 015466 | C173: 北海道 | D173: 清里町 | E173: 18 | F173: 0.18 | G173: 2 | I173: 2
A174: 市区町村 | B174: 015474 | C174: 北海道 | D174: 小清水町 | E174: 21 | F174: 0.21 | G174: 2 | I174: 2
A175: 市区町村 | B175: 015491 | C175: 北海道 | D175: 訓子府町 | E175: 22 | F175: 0.22 | G175: 2 | I175: 2
A176: 市区町村 | B176: 015504 | C176: 北海道 | D176: 置戸町 | E176: 14 | F176: 0.14 | G176: 2 | I176: 2
A177: 市区町村 | B177: 015521 | C177: 北海道 | D177: 佐呂間町 | E177: 25 | F177: 0.25 | G177: 2 | I177: 2
A178: 市区町村 | B178: 015555 | C178: 北海道 | D178: 遠軽町 | E178: 26 | F178: 0.26 | G178: 2 | I178: 2
A179: 市区町村 | B179: 015598 | C179: 北海道 | D179: 湧別町 | E179: 27 | F179: 0.27 | G179: 2 | I179: 2
A180: 市区町村 | B180: 015601 | C180: 北海道 | D180: 滝上町 | E180: 12 | F180: =IF(A180="都道府県",E180/100000,IF(A180="市区町村",E180/100,"エラー")) -> 0.12 | G180: 2 | I180: 2
A181: 市区町村 | B181: 015610 | C181: 北海道 | D181: 興部町 | E181: 23 | F181: 0.23 | G181: 2 | I181: 2
A182: 市区町村 | B182: 015628 | C182: 北海道 | D182: 西興部村 | E182: 10 | F182: 0.1 | G182: 2 | I182: 2
A183: 市区町村 | B183: 015636 | C183: 北海道 | D183: 雄武町 | E183: 21 | F183: 0.21 | G183: 2 | I183: 2
A184: 市区町村 | B184: 015644 | C184: 北海道 | D184: 大空町 | E184: 25 | F184: 0.25 | G184: 2 | I184: 2
A185: 市区町村 | B185: 015717 | C185: 北海道 | D185: 豊浦町 | E185: 16 | F185: 0.16 | G185: 2 | I185: 2
A186: 市区町村 | B186: 015750 | C186: 北海道 | D186: 壮瞥町 | E186: 19 | F186: 0.19 | G186: 2 | I186: 2
A187: 市区町村 | B187: 015784 | C187: 北海道 | D187: 白老町 | E187: 38 | F187: 0.38 | G187: 2 | I187: 2
A188: 市区町村 | B188: 015814 | C188: 北海道 | D188: 厚真町 | E188: 37 | F188: 0.37 | G188: 2 | I188: 2
A189: 市区町村 | B189: 015849 | C189: 北海道 | D189: 洞爺湖町 | E189: 26 | F189: 0.26 | G189: 2 | I189: 2
A190: 市区町村 | B190: 015857 | C190: 北海道 | D190: 安平町 | E190: 43 | F190: 0.43 | G190: 2 | I190: 2
A191: 市区町村 | B191: 015865 | C191: 北海道 | D191: むかわ町 | E191: 23 | F191: 0.23 | G191: 2 | I191: 2
A192: 市区町村 | B192: 016012 | C192: 北海道 | D192: 日高町 | E192: 25 | F192: 0.25 | G192: 2 | I192: 2
A193: 市区町村 | B193: 016021 | C193: 北海道 | D193: 平取町 | E193: 17 | F193: 0.17 | G193: 2 | I193: 2
A194: 市区町村 | B194: 016047 | C194: 北海道 | D194: 新冠町 | E194: 23 | F194: 0.23 | G194: 2 | H194: =IF(_xlfn.IFNA(VLOOKUP(B194,$T:$T,1,0),"")="","","〇") ->  | I194: 2
A195: 市区町村 | B195: 016071 | C195: 北海道 | D195: 浦河町 | E195: 29 | F195: 0.29 | G195: =IF(F195<>"エラー",IF(F195>=$N$16, 1, IF(F195<=$N$18, 3, 2)),"エラー") -> 2 | I195: =IF(H195="〇",1,G195) -> 2
A196: 市区町村 | B196: 016080 | C196: 北海道 | D196: 様似町 | E196: 17 | F196: 0.17 | G196: 2 | I196: 2
A197: 市区町村 | B197: 016098 | C197: 北海道 | D197: えりも町 | E197: 18 | F197: 0.18 | G197: 2 | I197: 2
A198: 市区町村 | B198: 016101 | C198: 北海道 | D198: 新ひだか町 | E198: 34 | F198: 0.34 | G198: 2 | I198: 2
A199: 市区町村 | B199: 016314 | C199: 北海道 | D199: 音更町 | E199: 50 | F199: 0.5 | G199: 2 | I199: 2
A200: 市区町村 | B200: 016322 | C200: 北海道 | D200: 士幌町 | E200: 30 | F200: 0.3 | G200: 2 | I200: 2
... 1589 more rows
